﻿Directorate,Service,Division,Responsible Unit,Expense Type,Payment Date,Trans No,Net Amount,Supplier Name
Children & Culture,Cultural and Related Services,Open Spaces,Mile End Park,Rent Charges,01/12/2020,5493843,"10,749.30",The Arch Company Properties Limited
Children & Culture,Children's Social Care,Children Looked After,LCS/Allowances-Accom,Non Staff Transport Costs - Client Transport Costs,02/12/2020,5472101,969.1,Crown Promotions and Removals Ltd
Children & Culture,Children's Social Care,Support Service and Management Costs,Schools Catering,Kitchen Supplies - Packaging,02/12/2020,5478894,507.78,Tri-Star Packaging Supplies LTD
Children & Culture,Education Services,Services to Young People and Other Community Learners,Further and Higher Education,Education Trust - Grant,02/12/2020,5478907,"2,750.00",New City College
Children & Culture,Children's Social Care,Children Looked After,S23-Resi-P&V/OLA-Child Home,Childrens Act Section 23 - Placement Fee,02/12/2020,5478954,"12,400.00",Horizon Residential Homes LTD
Children & Culture,Children's Social Care,Children Looked After,LCS/Allowances-Accom,Leaving Care Financial Assistance - Supp Accom/Hous Rents,02/12/2020,5478987,"5,092.99",The Anchor Services-Semi Independent Living Ltd
Children & Culture,Education Services,Other Strategic Functions,Music Trading Account,Education & Training - Non Staff Tuition Fees,02/12/2020,5479018,"1,625.00",Redacted Section 40 FOI Act
Children & Culture,Children's Social Care,Support Service and Management Costs,Schools Catering,Kitchen Supplies - Food and Beverages,02/12/2020,5479029,"1,000.86",Thomas Ridley & Son Ltd
Children & Culture,Children's Social Care,Support Service and Management Costs,Schools Catering,Kitchen Supplies - Food and Beverages,02/12/2020,5479030,314.15,Thomas Ridley & Son Ltd
Children & Culture,Children's Social Care,Support Service and Management Costs,Schools Catering,Kitchen Supplies - Food and Beverages,02/12/2020,5479032,777.28,Thomas Ridley & Son Ltd
Children & Culture,Children's Social Care,Support Service and Management Costs,Schools Catering,Kitchen Supplies - Food and Beverages,02/12/2020,5479033,282.85,Thomas Ridley & Son Ltd
Children & Culture,Children's Social Care,Support Service and Management Costs,Swanlea,Kitchen Supplies - Food and Beverages,02/12/2020,5479035,452.87,Thomas Ridley & Son Ltd
Children & Culture,Children's Social Care,Support Service and Management Costs,Schools Catering,Kitchen Supplies - Food and Beverages,02/12/2020,5479037,287.8,Thomas Ridley & Son Ltd
Children & Culture,Children's Social Care,Support Service and Management Costs,Schools Catering,Kitchen Supplies - Food and Beverages,02/12/2020,5479039,548.81,Thomas Ridley & Son Ltd
Children & Culture,Children's Social Care,Support Service and Management Costs,Schools Catering,Kitchen Supplies - Food and Beverages,02/12/2020,5479041,620.2,Thomas Ridley & Son Ltd
Children & Culture,Children's Social Care,Support Service and Management Costs,Schools Catering,Kitchen Supplies - Food and Beverages,02/12/2020,5479042,330.88,Thomas Ridley & Son Ltd
Children & Culture,Children's Social Care,Support Service and Management Costs,Schools Catering,Kitchen Supplies - Food and Beverages,02/12/2020,5479043,383.9,Thomas Ridley & Son Ltd
Children & Culture,Children's Social Care,Support Service and Management Costs,Schools Catering,Kitchen Supplies - Food and Beverages,02/12/2020,5479046,"2,433.97",Thomas Ridley & Son Ltd
Children & Culture,Children's Social Care,Support Service and Management Costs,Schools Catering,Kitchen Supplies - Food and Beverages,02/12/2020,5479047,422.83,Thomas Ridley & Son Ltd
Children & Culture,Children's Social Care,Support Service and Management Costs,Schools Catering,Kitchen Supplies - Food and Beverages,02/12/2020,5479049,390.65,Thomas Ridley & Son Ltd
Children & Culture,Children's Social Care,Support Service and Management Costs,Schools Catering,Kitchen Supplies - Food and Beverages,02/12/2020,5479050,392.74,Thomas Ridley & Son Ltd
Children & Culture,Children's Social Care,Support Service and Management Costs,Schools Catering,Kitchen Supplies - Food and Beverages,02/12/2020,5479051,728.77,Thomas Ridley & Son Ltd
Children & Culture,Children's Social Care,Support Service and Management Costs,Schools Catering,Kitchen Supplies - Food and Beverages,02/12/2020,5479052,911.1,Thomas Ridley & Son Ltd
Children & Culture,Children's Social Care,Support Service and Management Costs,Schools Catering,Kitchen Supplies - Food and Beverages,02/12/2020,5479053,316.18,Thomas Ridley & Son Ltd
Children & Culture,Children's Social Care,Support Service and Management Costs,Schools Catering,Kitchen Supplies - Food and Beverages,02/12/2020,5479054,493.37,Thomas Ridley & Son Ltd
Children & Culture,Children's Social Care,Support Service and Management Costs,Schools Catering,Kitchen Supplies - Food and Beverages,02/12/2020,5479055,822.25,Thomas Ridley & Son Ltd
Children & Culture,Children's Social Care,Support Service and Management Costs,Schools Catering,Kitchen Supplies - Food and Beverages,02/12/2020,5479056,269.78,Thomas Ridley & Son Ltd
Children & Culture,Children's Social Care,Support Service and Management Costs,Schools Catering,Kitchen Supplies - Food and Beverages,02/12/2020,5479057,515.88,Thomas Ridley & Son Ltd
Children & Culture,Children's Social Care,Support Service and Management Costs,Schools Catering,Kitchen Supplies - Food and Beverages,02/12/2020,5479058,563.73,Thomas Ridley & Son Ltd
Children & Culture,Children's Social Care,Support Service and Management Costs,Schools Catering,Kitchen Supplies - Food and Beverages,02/12/2020,5479059,502.46,Thomas Ridley & Son Ltd
Children & Culture,Children's Social Care,Support Service and Management Costs,Schools Catering,Kitchen Supplies - Food and Beverages,02/12/2020,5479060,399.1,Thomas Ridley & Son Ltd
Children & Culture,Children's Social Care,Commissioning and Social Work,Advice and Assessment Section 17,Childrens Act Section 17 - Interpreting/Translation,02/12/2020,5479165,"5,227.85",Oncall Interpreters LTD
Children & Culture,Children's Social Care,Children's and Young People's Safety,Child Protection Mgt & Admin,Services - Professional Fees - Translation Fees,02/12/2020,5479191,885,Oncall Interpreters LTD
Children & Culture,Children's Social Care,Youth Justice,Youth Justice Team,Childrens Act Section 17 - Interpreting/Translation,02/12/2020,5479193,376,Oncall Interpreters LTD
Children & Culture,Children's Social Care,Service Strategy,FSP Sect 17 - Team 4,Childrens Act Section 17 - Interpreting/Translation,02/12/2020,5479196,902.45,Oncall Interpreters LTD
Children & Culture,Children's Social Care,Service Strategy,FSP Sect 17 - Team 9,Childrens Act Section 17 - Interpreting/Translation,02/12/2020,5479198,"1,873.30",Oncall Interpreters LTD
Children & Culture,Children's Social Care,Service Strategy,"FSP Sect 17 - Team 6		",Services - Professional Fees - Translation Fees,02/12/2020,5479199,"1,283.00",Oncall Interpreters LTD
Children & Culture,Children's Social Care,Support Service and Management Costs,Schools Catering,Kitchen Supplies - Food and Beverages,02/12/2020,5479256,448.16,Thomas Ridley & Son Ltd
Children & Culture,Children's Social Care,Support Service and Management Costs,Schools Catering,Kitchen Supplies - Food and Beverages,02/12/2020,5479257,333.93,Thomas Ridley & Son Ltd
Children & Culture,Children's Social Care,Support Service and Management Costs,Schools Catering,Kitchen Supplies - Food and Beverages,02/12/2020,5479258,696.9,Thomas Ridley & Son Ltd
Children & Culture,Children's Social Care,Support Service and Management Costs,Schools Catering,Kitchen Supplies - Food and Beverages,02/12/2020,5479259,337.52,Thomas Ridley & Son Ltd
Children & Culture,Children's Social Care,Support Service and Management Costs,Schools Catering,Kitchen Supplies - Food and Beverages,02/12/2020,5479260,373.5,Thomas Ridley & Son Ltd
Children & Culture,Children's Social Care,Support Service and Management Costs,Schools Catering,Kitchen Supplies - Food and Beverages,02/12/2020,5479261,867.92,Thomas Ridley & Son Ltd
Children & Culture,Children's Social Care,Support Service and Management Costs,Schools Catering,Kitchen Supplies - Food and Beverages,02/12/2020,5479263,"1,228.60",Thomas Ridley & Son Ltd
Children & Culture,Children's Social Care,Support Service and Management Costs,Schools Catering,Kitchen Supplies - Food and Beverages,02/12/2020,5479264,392.54,Thomas Ridley & Son Ltd
Children & Culture,Children's Social Care,Support Service and Management Costs,Schools Catering,Kitchen Supplies - Food and Beverages,02/12/2020,5479265,801.87,Thomas Ridley & Son Ltd
Children & Culture,Children's Social Care,Support Service and Management Costs,Schools Catering,Kitchen Supplies - Food and Beverages,02/12/2020,5479266,828.96,Thomas Ridley & Son Ltd
Children & Culture,Children's Social Care,Support Service and Management Costs,Schools Catering,Kitchen Supplies - Food and Beverages,02/12/2020,5479269,457.67,Thomas Ridley & Son Ltd
Children & Culture,Children's Social Care,Support Service and Management Costs,Schools Catering,Kitchen Supplies - Food and Beverages,02/12/2020,5479270,633.8,Thomas Ridley & Son Ltd
Children & Culture,Children's Social Care,Support Service and Management Costs,Schools Catering,Kitchen Supplies - Food and Beverages,02/12/2020,5479271,434.49,Thomas Ridley & Son Ltd
Children & Culture,Children's Social Care,Support Service and Management Costs,Schools Catering,Kitchen Supplies - Food and Beverages,02/12/2020,5479272,298.97,Thomas Ridley & Son Ltd
Children & Culture,Children's Social Care,Support Service and Management Costs,Schools Catering,Kitchen Supplies - Food and Beverages,02/12/2020,5479275,491.62,Thomas Ridley & Son Ltd
Children & Culture,Children's Social Care,Support Service and Management Costs,Schools Catering,Kitchen Supplies - Food and Beverages,02/12/2020,5479277,466.27,Thomas Ridley & Son Ltd
Children & Culture,Children's Social Care,Support Service and Management Costs,Schools Catering,Kitchen Supplies - Food and Beverages,02/12/2020,5479278,442.72,Thomas Ridley & Son Ltd
Children & Culture,Children's Social Care,Support Service and Management Costs,Schools Catering,Kitchen Supplies - Food and Beverages,02/12/2020,5479279,565.38,Thomas Ridley & Son Ltd
Children & Culture,Children's Social Care,Support Service and Management Costs,Schools Catering,Kitchen Supplies - Food and Beverages,02/12/2020,5479282,715.21,Thomas Ridley & Son Ltd
Children & Culture,Children's Social Care,Support Service and Management Costs,Schools Catering,Kitchen Supplies - Food and Beverages,02/12/2020,5479284,729.02,Thomas Ridley & Son Ltd
Children & Culture,Children's Social Care,Support Service and Management Costs,Sch. Meals A/c - Central Production Unit,Kitchen Supplies - Food and Beverages,02/12/2020,5479285,"2,630.14",Thomas Ridley & Son Ltd
Children & Culture,Children's Social Care,Support Service and Management Costs,Schools Catering,Kitchen Supplies - Food and Beverages,02/12/2020,5479288,"1,006.22",Thomas Ridley & Son Ltd
Children & Culture,Children's Social Care,Support Service and Management Costs,Schools Catering,Kitchen Supplies - Food and Beverages,02/12/2020,5479289,323.97,Thomas Ridley & Son Ltd
Children & Culture,Children's Social Care,Support Service and Management Costs,Schools Catering,Kitchen Supplies - Food and Beverages,02/12/2020,5479489,"1,010.30",Thomas Ridley & Son Ltd
Children & Culture,Children's Social Care,Support Service and Management Costs,Schools Catering,Kitchen Supplies - Food and Beverages,02/12/2020,5479492,345.21,Thomas Ridley & Son Ltd
Children & Culture,Children's Social Care,Support Service and Management Costs,Sch. Meals A/c - Central Production Unit,Kitchen Supplies - Food and Beverages,02/12/2020,5479493,"1,234.69",Thomas Ridley & Son Ltd
Children & Culture,Children's Social Care,Support Service and Management Costs,Schools Catering,Kitchen Supplies - Food and Beverages,02/12/2020,5479494,448.49,Thomas Ridley & Son Ltd
Children & Culture,Children's Social Care,Support Service and Management Costs,Schools Catering,Kitchen Supplies - Food and Beverages,02/12/2020,5479495,561.31,Thomas Ridley & Son Ltd
Children & Culture,Children's Social Care,Support Service and Management Costs,Swanlea,Kitchen Supplies - Food and Beverages,02/12/2020,5479496,"1,047.78",Thomas Ridley & Son Ltd
Children & Culture,Children's Social Care,Support Service and Management Costs,Schools Catering,Kitchen Supplies - Food and Beverages,02/12/2020,5479500,474.94,Thomas Ridley & Son Ltd
Children & Culture,Children's Social Care,Support Service and Management Costs,Schools Catering,Kitchen Supplies - Food and Beverages,02/12/2020,5479501,294.73,Thomas Ridley & Son Ltd
Children & Culture,Children's Social Care,Support Service and Management Costs,Schools Catering,Kitchen Supplies - Food and Beverages,02/12/2020,5479503,364.33,Thomas Ridley & Son Ltd
Children & Culture,Children's Social Care,Support Service and Management Costs,Schools Catering,Kitchen Supplies - Food and Beverages,02/12/2020,5479504,768.1,Thomas Ridley & Son Ltd
Children & Culture,Children's Social Care,Support Service and Management Costs,Schools Catering,Kitchen Supplies - Food and Beverages,02/12/2020,5479509,477.22,Thomas Ridley & Son Ltd
Children & Culture,Children's Social Care,Support Service and Management Costs,Schools Catering,Kitchen Supplies - Food and Beverages,02/12/2020,5479510,389.78,Thomas Ridley & Son Ltd
Children & Culture,Children's Social Care,Support Service and Management Costs,Schools Catering,Kitchen Supplies - Food and Beverages,02/12/2020,5479511,"1,344.45",Thomas Ridley & Son Ltd
Children & Culture,Children's Social Care,Children Looked After,Virtual School PPG,Education & Training - Non Staff Tuition Fees,02/12/2020,5479521,277.03,G L ASSESSMENT LTD
Children & Culture,Children's Social Care,Support Service and Management Costs,Schools Catering,Kitchen Supplies - Food and Beverages,02/12/2020,5479824,322.25,William White Meats Ltd
Children & Culture,Children's Social Care,Service Strategy,FSP Sect 17 - Team 5,Services - Professional Fees - Translation Fees,02/12/2020,5479896,990.5,Oncall Interpreters LTD
Children & Culture,Children's Social Care,Family Support Services,IPST S17 NRPF,Childrens Act Section 17 - Other Placements Bed & Breakfast,02/12/2020,5479901,400.5,Oncall Interpreters LTD
Children & Culture,Children's Social Care,Support Service and Management Costs,Schools Catering,Kitchen Supplies - Food and Beverages,02/12/2020,5479966,542.44,Thomas Ridley & Son Ltd
Children & Culture,Children's Social Care,Support Service and Management Costs,Schools Catering,Kitchen Supplies - Food and Beverages,02/12/2020,5479967,349.48,Thomas Ridley & Son Ltd
Children & Culture,Children's Social Care,Support Service and Management Costs,Schools Catering,Kitchen Supplies - Food and Beverages,02/12/2020,5479968,599.1,Thomas Ridley & Son Ltd
Children & Culture,Children's Social Care,Support Service and Management Costs,Schools Catering,Kitchen Supplies - Food and Beverages,02/12/2020,5479969,383.05,Thomas Ridley & Son Ltd
Children & Culture,Children's Social Care,Support Service and Management Costs,Schools Catering,Kitchen Supplies - Food and Beverages,02/12/2020,5479970,691.19,Thomas Ridley & Son Ltd
Children & Culture,Children's Social Care,Support Service and Management Costs,Sch. Meals A/c - Central Production Unit,Kitchen Supplies - Food and Beverages,02/12/2020,5479971,840.09,Thomas Ridley & Son Ltd
Children & Culture,Children's Social Care,Support Service and Management Costs,Schools Catering,Kitchen Supplies - Food and Beverages,02/12/2020,5479973,381.97,Thomas Ridley & Son Ltd
Children & Culture,Children's Social Care,Support Service and Management Costs,Schools Catering,Kitchen Supplies - Food and Beverages,02/12/2020,5479974,270.08,Thomas Ridley & Son Ltd
Children & Culture,Children's Social Care,Support Service and Management Costs,Schools Catering,Kitchen Supplies - Food and Beverages,02/12/2020,5479975,"1,165.12",Thomas Ridley & Son Ltd
Children & Culture,Children's Social Care,Support Service and Management Costs,Schools Catering,Kitchen Supplies - Food and Beverages,02/12/2020,5479977,605,Thomas Ridley & Son Ltd
Children & Culture,Children's Social Care,Support Service and Management Costs,Schools Catering,Kitchen Supplies - Food and Beverages,02/12/2020,5479978,361.09,Thomas Ridley & Son Ltd
Children & Culture,Children's Social Care,Support Service and Management Costs,Schools Catering,Kitchen Supplies - Food and Beverages,02/12/2020,5479979,"1,064.72",Thomas Ridley & Son Ltd
Children & Culture,Children's Social Care,Support Service and Management Costs,Schools Catering,Kitchen Supplies - Food and Beverages,02/12/2020,5479982,350.55,Thomas Ridley & Son Ltd
Children & Culture,Children's Social Care,Support Service and Management Costs,Schools Catering,Kitchen Supplies - Food and Beverages,02/12/2020,5479983,354.02,Thomas Ridley & Son Ltd
Children & Culture,Children's Social Care,Support Service and Management Costs,Schools Catering,Kitchen Supplies - Food and Beverages,02/12/2020,5479985,550.39,Thomas Ridley & Son Ltd
Children & Culture,Children's Social Care,Support Service and Management Costs,Schools Catering,Kitchen Supplies - Food and Beverages,02/12/2020,5479987,553.49,Thomas Ridley & Son Ltd
Children & Culture,Children's Social Care,Support Service and Management Costs,Schools Catering,Kitchen Supplies - Food and Beverages,02/12/2020,5479988,364.46,Thomas Ridley & Son Ltd
Children & Culture,Children's Social Care,Support Service and Management Costs,Schools Catering,Kitchen Supplies - Food and Beverages,02/12/2020,5479989,825.47,Thomas Ridley & Son Ltd
Children & Culture,Children's Social Care,Support Service and Management Costs,Schools Catering,Kitchen Supplies - Food and Beverages,02/12/2020,5479990,316.45,Thomas Ridley & Son Ltd
Children & Culture,Children's Social Care,Support Service and Management Costs,Schools Catering,Kitchen Supplies - Food and Beverages,02/12/2020,5479993,670.28,Thomas Ridley & Son Ltd
Children & Culture,Children's Social Care,Support Service and Management Costs,Schools Catering,Kitchen Supplies - Food and Beverages,02/12/2020,5479995,309.24,Thomas Ridley & Son Ltd
Children & Culture,Children's Social Care,Support Service and Management Costs,Schools Catering,Kitchen Supplies - Food and Beverages,02/12/2020,5479996,670.07,Thomas Ridley & Son Ltd
Children & Culture,Children's Social Care,Support Service and Management Costs,Schools Catering,Kitchen Supplies - Food and Beverages,02/12/2020,5479999,454.68,Thomas Ridley & Son Ltd
Children & Culture,Children's Social Care,Support Service and Management Costs,Schools Catering,Kitchen Supplies - Food and Beverages,02/12/2020,5480003,426.65,Thomas Ridley & Son Ltd
Children & Culture,Children's Social Care,Support Service and Management Costs,Schools Catering,Kitchen Supplies - Food and Beverages,02/12/2020,5480005,638.36,Thomas Ridley & Son Ltd
Children & Culture,Children's Social Care,Support Service and Management Costs,Schools Catering,Kitchen Supplies - Food and Beverages,02/12/2020,5480006,473.09,Thomas Ridley & Son Ltd
Children & Culture,Children's Social Care,Support Service and Management Costs,Schools Catering,Kitchen Supplies - Food and Beverages,02/12/2020,5480007,292.12,Thomas Ridley & Son Ltd
Children & Culture,Children's Social Care,Support Service and Management Costs,Schools Catering,Kitchen Supplies - Food and Beverages,02/12/2020,5480008,257.71,Thomas Ridley & Son Ltd
Children & Culture,Children's Social Care,Support Service and Management Costs,Schools Catering,Kitchen Supplies - Food and Beverages,02/12/2020,5480011,453.05,Thomas Ridley & Son Ltd
Children & Culture,Children's Social Care,Support Service and Management Costs,Swanlea,Kitchen Supplies - Food and Beverages,02/12/2020,5480012,"1,868.90",Thomas Ridley & Son Ltd
Children & Culture,Children's Social Care,Support Service and Management Costs,Schools Catering,Kitchen Supplies - Food and Beverages,02/12/2020,5480013,545.66,Thomas Ridley & Son Ltd
Children & Culture,Children's Social Care,Support Service and Management Costs,Schools Catering,Kitchen Supplies - Food and Beverages,02/12/2020,5480014,542.35,Thomas Ridley & Son Ltd
Children & Culture,Children's Social Care,Support Service and Management Costs,Schools Catering,Kitchen Supplies - Food and Beverages,02/12/2020,5480015,494.67,Thomas Ridley & Son Ltd
Children & Culture,Children's Social Care,Support Service and Management Costs,Schools Catering,Kitchen Supplies - Food and Beverages,02/12/2020,5480017,343.37,Thomas Ridley & Son Ltd
Children & Culture,Children's Social Care,Support Service and Management Costs,Schools Catering,Kitchen Supplies - Food and Beverages,02/12/2020,5480018,407.31,Thomas Ridley & Son Ltd
Children & Culture,Children's Social Care,Support Service and Management Costs,Schools Catering,Kitchen Supplies - Food and Beverages,02/12/2020,5480019,364.14,Thomas Ridley & Son Ltd
Children & Culture,Children's Social Care,Support Service and Management Costs,Schools Catering,Kitchen Supplies - Food and Beverages,02/12/2020,5480021,531.97,Thomas Ridley & Son Ltd
Children & Culture,Children's Social Care,Support Service and Management Costs,Schools Catering,Kitchen Supplies - Food and Beverages,02/12/2020,5480022,343.69,Thomas Ridley & Son Ltd
Children & Culture,Children's Social Care,Support Service and Management Costs,Schools Catering,Kitchen Supplies - Food and Beverages,02/12/2020,5480023,611.96,Thomas Ridley & Son Ltd
Children & Culture,Children's Social Care,Support Service and Management Costs,Schools Catering,Kitchen Supplies - Food and Beverages,02/12/2020,5480024,531.07,Thomas Ridley & Son Ltd
Children & Culture,Children's Social Care,Support Service and Management Costs,Schools Catering,Kitchen Supplies - Food and Beverages,02/12/2020,5480025,612.59,Thomas Ridley & Son Ltd
Children & Culture,Children's Social Care,Support Service and Management Costs,Schools Catering,Kitchen Supplies - Food and Beverages,02/12/2020,5480026,353.29,Thomas Ridley & Son Ltd
Children & Culture,Children's Social Care,Support Service and Management Costs,Schools Catering,Kitchen Supplies - Food and Beverages,02/12/2020,5480027,489.68,Thomas Ridley & Son Ltd
Children & Culture,Children's Social Care,Support Service and Management Costs,Schools Catering,Kitchen Supplies - Food and Beverages,02/12/2020,5480029,265.32,Thomas Ridley & Son Ltd
Children & Culture,Children's Social Care,Support Service and Management Costs,Schools Catering,Kitchen Supplies - Food and Beverages,02/12/2020,5480032,497.04,Thomas Ridley & Son Ltd
Children & Culture,Children's Social Care,Support Service and Management Costs,Schools Catering,Kitchen Supplies - Food and Beverages,02/12/2020,5480033,"1,228.70",Thomas Ridley & Son Ltd
Children & Culture,Children's Social Care,Support Service and Management Costs,Schools Catering,Kitchen Supplies - Food and Beverages,02/12/2020,5480034,663.6,Thomas Ridley & Son Ltd
Children & Culture,Children's Social Care,Children Looked After,LCS/Allowances-Accom,Leaving Care Financial Assistance - Supp Accom/Hous Rents,02/12/2020,5480922,"4,400.00",Deluxe Supported Living Services Ltd
Children & Culture,Children's Social Care,Children Looked After,Leaving Care-UASC,Leaving Care Financial Assistance - Supp Accom/Hous Rents,02/12/2020,5480923,"4,400.00",Deluxe Supported Living Services Ltd
Children & Culture,Children's Social Care,Children Looked After,S23 Fam Pl P&V-F/Care,Childrens Act Section 23 - Placement Fee,02/12/2020,5480924,"4,516.00",Deluxe Supported Living Services Ltd
Children & Culture,Children's Social Care,Children Looked After,LCS/Allowances-Accom,Leaving Care Financial Assistance - Supp Accom/Hous Rents,02/12/2020,5480925,"4,637.00",Deluxe Supported Living Services Ltd
Children & Culture,Children's Social Care,Children Looked After,S23 Fam Pl P&V-F/Care,Childrens Act Section 23 - Placement Fee,02/12/2020,5480926,"4,516.00",Deluxe Supported Living Services Ltd
Children & Culture,Children's Social Care,Children Looked After,S23-Other-Mother & Baby Unit,Childrens Act Section 23 - Placement Fee,02/12/2020,5480943,"14,840.01",Care 2 Share LTD
Children & Culture,Children's Social Care,Children Looked After,S23-Other-Mother & Baby Unit,Childrens Act Section 23 - Placement Fee,02/12/2020,5480945,"2,500.00",Care 2 Share LTD
Children & Culture,Children's Social Care,Children Looked After,S23 Fam Pl P&V-F/Care,Childrens Act Section 23 - Placement Fee,02/12/2020,5480955,"7,085.67",Real Life
Children & Culture,Children's Social Care,Children Looked After,S23-Other-Semi-Ind. Unit,Childrens Act Section 23 - Placement Fee,02/12/2020,5480956,"4,450.67",Real Life
Children & Culture,Children's Social Care,Children Looked After,S23-Other-Semi-Ind. Unit,Childrens Act Section 23 - Placement Fee,02/12/2020,5480958,"4,317.68",Real Life
Children & Culture,Children's Social Care,Support Service and Management Costs,Schools Catering,Kitchen Supplies - Food and Beverages,02/12/2020,5480975,568.88,Thomas Ridley & Son Ltd
Children & Culture,Children's Social Care,Support Service and Management Costs,Schools Catering,Kitchen Supplies - Food and Beverages,02/12/2020,5480977,545.42,Thomas Ridley & Son Ltd
Children & Culture,Children's Social Care,Support Service and Management Costs,Schools Catering,Kitchen Supplies - Food and Beverages,02/12/2020,5480978,429.11,Thomas Ridley & Son Ltd
Children & Culture,Children's Social Care,Support Service and Management Costs,Schools Catering,Kitchen Supplies - Food and Beverages,02/12/2020,5480980,483.32,Thomas Ridley & Son Ltd
Children & Culture,Children's Social Care,Support Service and Management Costs,Schools Catering,Kitchen Supplies - Food and Beverages,02/12/2020,5481181,582.05,Thomas Ridley & Son Ltd
Children & Culture,Children's Social Care,Support Service and Management Costs,Schools Catering,Kitchen Supplies - Food and Beverages,02/12/2020,5481182,416.74,Thomas Ridley & Son Ltd
Children & Culture,Children's Social Care,Support Service and Management Costs,Schools Catering,Kitchen Supplies - Food and Beverages,02/12/2020,5481183,440.99,Thomas Ridley & Son Ltd
Children & Culture,Children's Social Care,Support Service and Management Costs,Swanlea,Kitchen Supplies - Food and Beverages,02/12/2020,5481187,"1,173.18",Thomas Ridley & Son Ltd
Children & Culture,Children's Social Care,Support Service and Management Costs,Schools Catering,Kitchen Supplies - Food and Beverages,02/12/2020,5481189,324.47,Thomas Ridley & Son Ltd
Children & Culture,Children's Social Care,Support Service and Management Costs,Schools Catering,Kitchen Supplies - Food and Beverages,02/12/2020,5481190,367.65,Thomas Ridley & Son Ltd
Children & Culture,Children's Social Care,Support Service and Management Costs,Schools Catering,Kitchen Supplies - Food and Beverages,02/12/2020,5481191,500.08,Thomas Ridley & Son Ltd
Children & Culture,Children's Social Care,Support Service and Management Costs,Schools Catering,Kitchen Supplies - Food and Beverages,02/12/2020,5481193,259.63,Thomas Ridley & Son Ltd
Children & Culture,Children's Social Care,Support Service and Management Costs,Schools Catering,Kitchen Supplies - Food and Beverages,02/12/2020,5481197,"1,586.69",Thomas Ridley & Son Ltd
Children & Culture,Children's Social Care,Support Service and Management Costs,Schools Catering,Kitchen Supplies - Food and Beverages,02/12/2020,5481198,270.41,Thomas Ridley & Son Ltd
Children & Culture,Children's Social Care,Support Service and Management Costs,Schools Catering,Kitchen Supplies - Food and Beverages,02/12/2020,5481199,607.09,Thomas Ridley & Son Ltd
Children & Culture,Children's Social Care,Support Service and Management Costs,Schools Catering,Kitchen Supplies - Food and Beverages,02/12/2020,5481200,880.38,Thomas Ridley & Son Ltd
Children & Culture,Children's Social Care,Support Service and Management Costs,Schools Catering,Kitchen Supplies - Food and Beverages,02/12/2020,5481201,477.54,Thomas Ridley & Son Ltd
Children & Culture,Children's Social Care,Support Service and Management Costs,Schools Catering,Kitchen Supplies - Food and Beverages,02/12/2020,5481202,454.04,Thomas Ridley & Son Ltd
Children & Culture,Children's Social Care,Support Service and Management Costs,Schools Catering,Kitchen Supplies - Food and Beverages,02/12/2020,5481203,416.28,Thomas Ridley & Son Ltd
Children & Culture,Children's Social Care,Support Service and Management Costs,Schools Catering,Kitchen Supplies - Food and Beverages,02/12/2020,5481204,682.62,Thomas Ridley & Son Ltd
Children & Culture,Children's Social Care,Support Service and Management Costs,Schools Catering,Kitchen Supplies - Food and Beverages,02/12/2020,5481205,708.68,Thomas Ridley & Son Ltd
Children & Culture,Children's Social Care,Support Service and Management Costs,Schools Catering,Kitchen Supplies - Food and Beverages,02/12/2020,5481210,816.83,Thomas Ridley & Son Ltd
Children & Culture,Children's Social Care,Support Service and Management Costs,Sch. Meals A/c - Central Production Unit,Kitchen Supplies - Food and Beverages,02/12/2020,5481211,"2,533.05",Thomas Ridley & Son Ltd
Children & Culture,Children's Social Care,Support Service and Management Costs,Schools Catering,Kitchen Supplies - Food and Beverages,02/12/2020,5481212,340.67,Thomas Ridley & Son Ltd
Children & Culture,Children's Social Care,Support Service and Management Costs,Schools Catering,Kitchen Supplies - Food and Beverages,02/12/2020,5481213,693.86,Thomas Ridley & Son Ltd
Children & Culture,Children's Social Care,Support Service and Management Costs,Schools Catering,Kitchen Supplies - Food and Beverages,02/12/2020,5481214,725.85,Thomas Ridley & Son Ltd
Children & Culture,Children's Social Care,Support Service and Management Costs,Schools Catering,Kitchen Supplies - Food and Beverages,02/12/2020,5481222,515.11,Thomas Ridley & Son Ltd
Children & Culture,Children's Social Care,Support Service and Management Costs,Schools Catering,Kitchen Supplies - Food and Beverages,02/12/2020,5481223,267.68,Thomas Ridley & Son Ltd
Children & Culture,Children's Social Care,Support Service and Management Costs,Schools Catering,Kitchen Supplies - Food and Beverages,02/12/2020,5481224,413.67,Thomas Ridley & Son Ltd
Children & Culture,Children's Social Care,Support Service and Management Costs,Schools Catering,Kitchen Supplies - Food and Beverages,02/12/2020,5481225,348.83,Thomas Ridley & Son Ltd
Children & Culture,Children's Social Care,Support Service and Management Costs,Schools Catering,Kitchen Supplies - Food and Beverages,02/12/2020,5481226,526.21,Thomas Ridley & Son Ltd
Children & Culture,Children's Social Care,Support Service and Management Costs,Schools Catering,Kitchen Supplies - Food and Beverages,02/12/2020,5481227,491.59,Thomas Ridley & Son Ltd
Children & Culture,Children's Social Care,Support Service and Management Costs,Schools Catering,Kitchen Supplies - Food and Beverages,02/12/2020,5481228,903.41,Thomas Ridley & Son Ltd
Children & Culture,Children's Social Care,Support Service and Management Costs,Schools Catering,Kitchen Supplies - Food and Beverages,02/12/2020,5481229,425.11,Thomas Ridley & Son Ltd
Children & Culture,Children's Social Care,Support Service and Management Costs,Schools Catering,Kitchen Supplies - Food and Beverages,02/12/2020,5481230,993.02,Thomas Ridley & Son Ltd
Children & Culture,Children's Social Care,Support Service and Management Costs,Schools Catering,Kitchen Supplies - Food and Beverages,02/12/2020,5481231,317.36,Thomas Ridley & Son Ltd
Children & Culture,Children's Social Care,Support Service and Management Costs,Schools Catering,Kitchen Supplies - Food and Beverages,02/12/2020,5481233,294.4,Thomas Ridley & Son Ltd
Children & Culture,Children's Social Care,Support Service and Management Costs,Schools Catering,Kitchen Supplies - Food and Beverages,02/12/2020,5481235,406.46,Thomas Ridley & Son Ltd
Children & Culture,Children's Social Care,Support Service and Management Costs,Schools Catering,Kitchen Supplies - Food and Beverages,02/12/2020,5481238,359.02,Thomas Ridley & Son Ltd
Children & Culture,Children's Social Care,Support Service and Management Costs,Schools Catering,Kitchen Supplies - Food and Beverages,02/12/2020,5481241,376.56,Thomas Ridley & Son Ltd
Children & Culture,Children's Social Care,Support Service and Management Costs,Schools Catering,Kitchen Supplies - Food and Beverages,02/12/2020,5481242,386.72,Thomas Ridley & Son Ltd
Children & Culture,Children's Social Care,Support Service and Management Costs,Schools Catering,Kitchen Supplies - Food and Beverages,02/12/2020,5481243,326.43,Thomas Ridley & Son Ltd
Children & Culture,Children's Social Care,Support Service and Management Costs,Schools Catering,Kitchen Supplies - Food and Beverages,02/12/2020,5481246,305.71,Thomas Ridley & Son Ltd
Children & Culture,Children's Social Care,Support Service and Management Costs,Schools Catering,Kitchen Supplies - Food and Beverages,02/12/2020,5481247,579.58,Thomas Ridley & Son Ltd
Children & Culture,Children's Social Care,Support Service and Management Costs,Schools Catering,Kitchen Supplies - Food and Beverages,02/12/2020,5481250,418.72,Thomas Ridley & Son Ltd
Children & Culture,Children's Social Care,Support Service and Management Costs,Schools Catering,Kitchen Supplies - Food and Beverages,02/12/2020,5481251,661.24,Thomas Ridley & Son Ltd
Children & Culture,Children's Social Care,Support Service and Management Costs,Schools Catering,Kitchen Supplies - Food and Beverages,02/12/2020,5481253,786.94,Thomas Ridley & Son Ltd
Children & Culture,Children's Social Care,Support Service and Management Costs,Sch. Meals A/c - Central Production Unit,Kitchen Supplies - Food and Beverages,02/12/2020,5481254,"1,791.92",Thomas Ridley & Son Ltd
Children & Culture,Children's Social Care,Support Service and Management Costs,Schools Catering,Kitchen Supplies - Food and Beverages,02/12/2020,5481255,"1,106.56",Thomas Ridley & Son Ltd
Children & Culture,Education Services,Other Strategic Functions,Empty Properties,Services - Professional Fees - Security Fees,02/12/2020,5481398,930,Manpower Direct UK
Children & Culture,Education Services,Other Strategic Functions,Empty Properties,Services - Professional Fees - Security Fees,02/12/2020,5481404,"10,386.24",Manpower Direct UK
Children & Culture,Education Services,Secondary Schools,PFI Hldg Account-Mulberry Scho,Payments to Private Contractors - Other Contractors,02/12/2020,5481437,"7,918.97",D4E Mulberry LTD
Children & Culture,Education Services,Secondary Schools,PFI Hldg Account-Mulberry Scho,Payments to Private Contractors - Other Contractors,02/12/2020,5481438,"196,720.79",D4E Mulberry LTD
Children & Culture,Children's Social Care,Support Service and Management Costs,Schools Catering,Kitchen Supplies - Food and Beverages,02/12/2020,5481649,505.74,Thomas Ridley & Son Ltd
Children & Culture,Children's Social Care,Support Service and Management Costs,Schools Catering,Kitchen Supplies - Food and Beverages,02/12/2020,5481653,354.52,Thomas Ridley & Son Ltd
Children & Culture,Children's Social Care,Support Service and Management Costs,Schools Catering,Kitchen Supplies - Food and Beverages,02/12/2020,5481654,877.52,Thomas Ridley & Son Ltd
Children & Culture,Children's Social Care,Support Service and Management Costs,Swanlea,Kitchen Supplies - Food and Beverages,02/12/2020,5481656,"1,298.41",Thomas Ridley & Son Ltd
Children & Culture,Children's Social Care,Support Service and Management Costs,Schools Catering,Kitchen Supplies - Food and Beverages,02/12/2020,5481658,385.16,Thomas Ridley & Son Ltd
Children & Culture,Children's Social Care,Support Service and Management Costs,Schools Catering,Kitchen Supplies - Food and Beverages,02/12/2020,5481659,354.24,Thomas Ridley & Son Ltd
Children & Culture,Children's Social Care,Support Service and Management Costs,Schools Catering,Kitchen Supplies - Food and Beverages,02/12/2020,5481660,619.42,Thomas Ridley & Son Ltd
Children & Culture,Children's Social Care,Support Service and Management Costs,Schools Catering,Kitchen Supplies - Food and Beverages,02/12/2020,5481661,"1,079.40",Thomas Ridley & Son Ltd
Children & Culture,Children's Social Care,Support Service and Management Costs,Schools Catering,Kitchen Supplies - Food and Beverages,02/12/2020,5481664,603.34,Thomas Ridley & Son Ltd
Children & Culture,Children's Social Care,Support Service and Management Costs,Schools Catering,Kitchen Supplies - Food and Beverages,02/12/2020,5481666,434.79,Thomas Ridley & Son Ltd
Children & Culture,Children's Social Care,Support Service and Management Costs,Schools Catering,Kitchen Supplies - Food and Beverages,02/12/2020,5481667,386.53,Thomas Ridley & Son Ltd
Children & Culture,Children's Social Care,Support Service and Management Costs,Schools Catering,Kitchen Supplies - Food and Beverages,02/12/2020,5481668,504.2,Thomas Ridley & Son Ltd
Children & Culture,Children's Social Care,Support Service and Management Costs,Schools Catering,Kitchen Supplies - Food and Beverages,02/12/2020,5481669,"2,124.86",Thomas Ridley & Son Ltd
Children & Culture,Children's Social Care,Support Service and Management Costs,Schools Catering,Kitchen Supplies - Food and Beverages,02/12/2020,5481802,419.27,Thomas Ridley & Son Ltd
Children & Culture,Children's Social Care,Support Service and Management Costs,Schools Catering,Kitchen Supplies - Food and Beverages,02/12/2020,5481807,398.06,Thomas Ridley & Son Ltd
Children & Culture,Children's Social Care,Support Service and Management Costs,Schools Catering,Kitchen Supplies - Food and Beverages,02/12/2020,5481808,289.85,Thomas Ridley & Son Ltd
Children & Culture,Children's Social Care,Support Service and Management Costs,Schools Catering,Kitchen Supplies - Food and Beverages,02/12/2020,5481809,557.54,Thomas Ridley & Son Ltd
Children & Culture,Children's Social Care,Support Service and Management Costs,Schools Catering,Kitchen Supplies - Food and Beverages,02/12/2020,5481811,425.16,Thomas Ridley & Son Ltd
Children & Culture,Children's Social Care,Support Service and Management Costs,Schools Catering,Kitchen Supplies - Food and Beverages,02/12/2020,5481812,306.82,Thomas Ridley & Son Ltd
Children & Culture,Children's Social Care,Support Service and Management Costs,Schools Catering,Kitchen Supplies - Food and Beverages,02/12/2020,5481813,582.12,Thomas Ridley & Son Ltd
Children & Culture,Children's Social Care,Support Service and Management Costs,Schools Catering,Kitchen Supplies - Food and Beverages,02/12/2020,5481814,633.6,Thomas Ridley & Son Ltd
Children & Culture,Children's Social Care,Support Service and Management Costs,Schools Catering,Kitchen Supplies - Food and Beverages,02/12/2020,5481815,348.86,Thomas Ridley & Son Ltd
Children & Culture,Children's Social Care,Support Service and Management Costs,Schools Catering,Kitchen Supplies - Food and Beverages,02/12/2020,5481816,314.91,Thomas Ridley & Son Ltd
Children & Culture,Children's Social Care,Support Service and Management Costs,Schools Catering,Kitchen Supplies - Food and Beverages,02/12/2020,5481817,754.57,Thomas Ridley & Son Ltd
Children & Culture,Children's Social Care,Support Service and Management Costs,Schools Catering,Kitchen Supplies - Food and Beverages,02/12/2020,5481818,353.16,Thomas Ridley & Son Ltd
Children & Culture,Children's Social Care,Support Service and Management Costs,Schools Catering,Kitchen Supplies - Food and Beverages,02/12/2020,5481819,459.3,Thomas Ridley & Son Ltd
Children & Culture,Children's Social Care,Support Service and Management Costs,Sch. Meals A/c - Central Production Unit,Kitchen Supplies - Food and Beverages,02/12/2020,5481820,"1,815.90",Thomas Ridley & Son Ltd
Children & Culture,Children's Social Care,Support Service and Management Costs,Schools Catering,Kitchen Supplies - Food and Beverages,02/12/2020,5481822,274.64,Thomas Ridley & Son Ltd
Children & Culture,Children's Social Care,Support Service and Management Costs,Schools Catering,Kitchen Supplies - Food and Beverages,02/12/2020,5481825,691.22,Thomas Ridley & Son Ltd
Children & Culture,Children's Social Care,Support Service and Management Costs,Schools Catering,Kitchen Supplies - Food and Beverages,02/12/2020,5481826,880.26,Thomas Ridley & Son Ltd
Children & Culture,Children's Social Care,Support Service and Management Costs,Schools Catering,Kitchen Supplies - Food and Beverages,02/12/2020,5481830,314.82,Thomas Ridley & Son Ltd
Children & Culture,Children's Social Care,Support Service and Management Costs,Schools Catering,Kitchen Supplies - Food and Beverages,02/12/2020,5481832,553.62,Thomas Ridley & Son Ltd
Children & Culture,Children's Social Care,Support Service and Management Costs,Schools Catering,Kitchen Supplies - Food and Beverages,02/12/2020,5481833,300.9,Thomas Ridley & Son Ltd
Children & Culture,Children's Social Care,Support Service and Management Costs,Schools Catering,Kitchen Supplies - Food and Beverages,02/12/2020,5481834,370.16,Thomas Ridley & Son Ltd
Children & Culture,Children's Social Care,Support Service and Management Costs,Schools Catering,Kitchen Supplies - Food and Beverages,02/12/2020,5481837,251.5,Thomas Ridley & Son Ltd
Children & Culture,Children's Social Care,Support Service and Management Costs,Swanlea,Kitchen Supplies - Food and Beverages,02/12/2020,5481839,859.36,Thomas Ridley & Son Ltd
Children & Culture,Children's Social Care,Support Service and Management Costs,Schools Catering,Kitchen Supplies - Food and Beverages,02/12/2020,5481842,309.72,Thomas Ridley & Son Ltd
Children & Culture,Children's Social Care,Support Service and Management Costs,Schools Catering,Kitchen Supplies - Food and Beverages,02/12/2020,5481843,371.11,Thomas Ridley & Son Ltd
Children & Culture,Children's Social Care,Support Service and Management Costs,Schools Catering,Kitchen Supplies - Food and Beverages,02/12/2020,5481846,394.32,Thomas Ridley & Son Ltd
Children & Culture,Children's Social Care,Support Service and Management Costs,Schools Catering,Kitchen Supplies - Food and Beverages,02/12/2020,5481847,459.66,Thomas Ridley & Son Ltd
Children & Culture,Children's Social Care,Support Service and Management Costs,Schools Catering,Kitchen Supplies - Food and Beverages,02/12/2020,5481849,343.22,Thomas Ridley & Son Ltd
Children & Culture,Children's Social Care,Support Service and Management Costs,Schools Catering,Kitchen Supplies - Food and Beverages,02/12/2020,5481852,587.08,Thomas Ridley & Son Ltd
Children & Culture,Children's Social Care,Support Service and Management Costs,Schools Catering,Kitchen Supplies - Food and Beverages,02/12/2020,5481853,434.81,Thomas Ridley & Son Ltd
Children & Culture,Children's Social Care,Support Service and Management Costs,Schools Catering,Kitchen Supplies - Food and Beverages,02/12/2020,5481854,258.3,Thomas Ridley & Son Ltd
Children & Culture,Children's Social Care,Support Service and Management Costs,Schools Catering,Kitchen Supplies - Food and Beverages,02/12/2020,5481855,458.05,Thomas Ridley & Son Ltd
Children & Culture,Children's Social Care,Support Service and Management Costs,Schools Catering,Kitchen Supplies - Food and Beverages,02/12/2020,5481857,686.61,Thomas Ridley & Son Ltd
Children & Culture,Children's Social Care,Support Service and Management Costs,Schools Catering,Kitchen Supplies - Food and Beverages,02/12/2020,5481859,359.79,Thomas Ridley & Son Ltd
Children & Culture,Children's Social Care,Children Looked After,Virtual School PPG,Agency Staff - Associations,02/12/2020,5482642,254.97,Academics ltd
Children & Culture,Children's Social Care,Children Looked After,Virtual School PPG,Agency Staff - Associations,02/12/2020,5482649,254.97,Academics ltd
Children & Culture,Children's Social Care,Support Service and Management Costs,Schools Catering,Kitchen Supplies - Food and Beverages,02/12/2020,5482683,376.2,Thomas Ridley & Son Ltd
Children & Culture,Children's Social Care,Support Service and Management Costs,Schools Catering,Kitchen Supplies - Food and Beverages,02/12/2020,5482685,252.91,Thomas Ridley & Son Ltd
Children & Culture,Children's Social Care,Support Service and Management Costs,Schools Catering,Kitchen Supplies - Food and Beverages,02/12/2020,5482686,344.87,Thomas Ridley & Son Ltd
Children & Culture,Children's Social Care,Support Service and Management Costs,Schools Catering,Kitchen Supplies - Food and Beverages,02/12/2020,5482688,349.66,Thomas Ridley & Son Ltd
Children & Culture,Children's Social Care,Support Service and Management Costs,Schools Catering,Kitchen Supplies - Food and Beverages,02/12/2020,5482690,388.79,Thomas Ridley & Son Ltd
Children & Culture,Children's Social Care,Support Service and Management Costs,Schools Catering,Kitchen Supplies - Food and Beverages,02/12/2020,5482694,462.95,Thomas Ridley & Son Ltd
Children & Culture,Children's Social Care,Support Service and Management Costs,Schools Catering,Kitchen Supplies - Food and Beverages,02/12/2020,5482701,"1,048.00",Thomas Ridley & Son Ltd
Children & Culture,Children's Social Care,Support Service and Management Costs,Schools Catering,Kitchen Supplies - Food and Beverages,02/12/2020,5482704,327.06,Thomas Ridley & Son Ltd
Children & Culture,Children's Social Care,Support Service and Management Costs,Schools Catering,Kitchen Supplies - Food and Beverages,02/12/2020,5482705,549.07,Thomas Ridley & Son Ltd
Children & Culture,Children's Social Care,Support Service and Management Costs,Schools Catering,Kitchen Supplies - Food and Beverages,02/12/2020,5482707,305.19,Thomas Ridley & Son Ltd
Children & Culture,Children's Social Care,Support Service and Management Costs,Schools Catering,Kitchen Supplies - Food and Beverages,02/12/2020,5482714,601.39,Thomas Ridley & Son Ltd
Children & Culture,Children's Social Care,Support Service and Management Costs,Swanlea,Kitchen Supplies - Food and Beverages,02/12/2020,5482715,"1,547.61",Thomas Ridley & Son Ltd
Children & Culture,Children's Social Care,Support Service and Management Costs,Schools Catering,Kitchen Supplies - Food and Beverages,02/12/2020,5482720,407.78,Thomas Ridley & Son Ltd
Children & Culture,Children's Social Care,Support Service and Management Costs,Schools Catering,Kitchen Supplies - Food and Beverages,02/12/2020,5482723,288.97,Thomas Ridley & Son Ltd
Children & Culture,Children's Social Care,Support Service and Management Costs,Schools Catering,Kitchen Supplies - Food and Beverages,02/12/2020,5482724,419.39,Thomas Ridley & Son Ltd
Children & Culture,Children's Social Care,Support Service and Management Costs,Schools Catering,Kitchen Supplies - Food and Beverages,02/12/2020,5482725,251.54,Thomas Ridley & Son Ltd
Children & Culture,Children's Social Care,Support Service and Management Costs,Schools Catering,Kitchen Supplies - Food and Beverages,02/12/2020,5482726,964.11,Thomas Ridley & Son Ltd
Children & Culture,Children's Social Care,Support Service and Management Costs,Schools Catering,Kitchen Supplies - Food and Beverages,02/12/2020,5482729,624.98,Thomas Ridley & Son Ltd
Children & Culture,Children's Social Care,Support Service and Management Costs,Schools Catering,Kitchen Supplies - Food and Beverages,02/12/2020,5482730,333.29,Thomas Ridley & Son Ltd
Children & Culture,Children's Social Care,Support Service and Management Costs,Schools Catering,Kitchen Supplies - Food and Beverages,02/12/2020,5482731,423.78,Thomas Ridley & Son Ltd
Children & Culture,Children's Social Care,Support Service and Management Costs,Schools Catering,Kitchen Supplies - Food and Beverages,02/12/2020,5482732,706.41,Thomas Ridley & Son Ltd
Children & Culture,Children's Social Care,Support Service and Management Costs,Schools Catering,Kitchen Supplies - Food and Beverages,02/12/2020,5482733,415.12,Thomas Ridley & Son Ltd
Children & Culture,Children's Social Care,Support Service and Management Costs,Schools Catering,Kitchen Supplies - Food and Beverages,02/12/2020,5482734,537.28,Thomas Ridley & Son Ltd
Children & Culture,Children's Social Care,Support Service and Management Costs,Schools Catering,Kitchen Supplies - Food and Beverages,02/12/2020,5482737,670.68,Thomas Ridley & Son Ltd
Children & Culture,Children's Social Care,Support Service and Management Costs,Schools Catering,Kitchen Supplies - Food and Beverages,02/12/2020,5482739,491.14,Thomas Ridley & Son Ltd
Children & Culture,Children's Social Care,Support Service and Management Costs,Schools Catering,Kitchen Supplies - Food and Beverages,02/12/2020,5482740,339.71,Thomas Ridley & Son Ltd
Children & Culture,Children's Social Care,Support Service and Management Costs,Schools Catering,Kitchen Supplies - Food and Beverages,02/12/2020,5482741,499.88,Thomas Ridley & Son Ltd
Children & Culture,Children's Social Care,Support Service and Management Costs,Sch. Meals A/c - Central Production Unit,Kitchen Supplies - Food and Beverages,02/12/2020,5482743,"1,386.67",Thomas Ridley & Son Ltd
Children & Culture,Children's Social Care,Support Service and Management Costs,Schools Catering,Kitchen Supplies - Food and Beverages,02/12/2020,5482746,433.42,Thomas Ridley & Son Ltd
Children & Culture,Children's Social Care,Support Service and Management Costs,Schools Catering,Kitchen Supplies - Food and Beverages,02/12/2020,5483015,543.11,Thomas Ridley & Son Ltd
Children & Culture,Children's Social Care,Support Service and Management Costs,Schools Catering,Kitchen Supplies - Food and Beverages,02/12/2020,5483016,426.37,Thomas Ridley & Son Ltd
Children & Culture,Children's Social Care,Support Service and Management Costs,Schools Catering,Kitchen Supplies - Food and Beverages,02/12/2020,5483019,384.74,Thomas Ridley & Son Ltd
Children & Culture,Children's Social Care,Support Service and Management Costs,Schools Catering,Kitchen Supplies - Food and Beverages,02/12/2020,5483020,415.88,Thomas Ridley & Son Ltd
Children & Culture,Children's Social Care,Support Service and Management Costs,Schools Catering,Kitchen Supplies - Food and Beverages,02/12/2020,5483021,322.61,Thomas Ridley & Son Ltd
Children & Culture,Children's Social Care,Support Service and Management Costs,Schools Catering,Kitchen Supplies - Food and Beverages,02/12/2020,5483022,540.58,Thomas Ridley & Son Ltd
Children & Culture,Children's Social Care,Support Service and Management Costs,Schools Catering,Kitchen Supplies - Food and Beverages,02/12/2020,5483023,946.28,Thomas Ridley & Son Ltd
Children & Culture,Children's Social Care,Support Service and Management Costs,Schools Catering,Kitchen Supplies - Food and Beverages,02/12/2020,5483026,672.16,Thomas Ridley & Son Ltd
Children & Culture,Children's Social Care,Support Service and Management Costs,Sch. Meals A/c - Central Production Unit,Kitchen Supplies - Food and Beverages,02/12/2020,5483029,"1,284.09",Thomas Ridley & Son Ltd
Children & Culture,Children's Social Care,Support Service and Management Costs,Schools Catering,Kitchen Supplies - Food and Beverages,02/12/2020,5483031,320.27,Thomas Ridley & Son Ltd
Children & Culture,Children's Social Care,Support Service and Management Costs,Schools Catering,Kitchen Supplies - Food and Beverages,02/12/2020,5483032,254.15,Thomas Ridley & Son Ltd
Children & Culture,Children's Social Care,Family Support Services,CNN Pool: Children Direct Paym,Social Care - Direct Payments,02/12/2020,5483094,252.02,DH TOWER HAMLETS
Children & Culture,Children's Social Care,Commissioning and Social Work,Advice and Assessment Section 17,Childrens Act Section 17 - Other Placements Bed & Breakfast,02/12/2020,5483290,"1,000.00",Finefair Management
Children & Culture,Children's Social Care,Commissioning and Social Work,Advice and Assessment Section 17,Childrens Act Section 17 - Other Placements Bed & Breakfast,02/12/2020,5483291,770,Finefair Management
Children & Culture,Children's Social Care,Support Service and Management Costs,Schools Catering,Kitchen Supplies - Food and Beverages,02/12/2020,5483294,496.77,Thomas Ridley & Son Ltd
Children & Culture,Children's Social Care,Support Service and Management Costs,Schools Catering,Kitchen Supplies - Food and Beverages,02/12/2020,5483296,327.51,Thomas Ridley & Son Ltd
Children & Culture,Children's Social Care,Support Service and Management Costs,Schools Catering,Kitchen Supplies - Food and Beverages,02/12/2020,5483299,329.1,Thomas Ridley & Son Ltd
Children & Culture,Children's Social Care,Support Service and Management Costs,Schools Catering,Kitchen Supplies - Food and Beverages,02/12/2020,5483300,438.74,Thomas Ridley & Son Ltd
Children & Culture,Children's Social Care,Support Service and Management Costs,Schools Catering,Kitchen Supplies - Food and Beverages,02/12/2020,5483301,"1,056.90",Thomas Ridley & Son Ltd
Children & Culture,Children's Social Care,Support Service and Management Costs,Schools Catering,Kitchen Supplies - Food and Beverages,02/12/2020,5483302,426.37,Thomas Ridley & Son Ltd
Children & Culture,Children's Social Care,Support Service and Management Costs,Schools Catering,Kitchen Supplies - Food and Beverages,02/12/2020,5483303,681.98,Thomas Ridley & Son Ltd
Children & Culture,Children's Social Care,Support Service and Management Costs,Schools Catering,Kitchen Supplies - Food and Beverages,02/12/2020,5483306,692.88,Thomas Ridley & Son Ltd
Children & Culture,Children's Social Care,Support Service and Management Costs,Schools Catering,Kitchen Supplies - Food and Beverages,02/12/2020,5483308,275.27,Thomas Ridley & Son Ltd
Children & Culture,Children's Social Care,Support Service and Management Costs,Schools Catering,Kitchen Supplies - Food and Beverages,02/12/2020,5483310,352.74,Thomas Ridley & Son Ltd
Children & Culture,Children's Social Care,Support Service and Management Costs,Schools Catering,Kitchen Supplies - Food and Beverages,02/12/2020,5483312,656.27,Thomas Ridley & Son Ltd
Children & Culture,Children's Social Care,Support Service and Management Costs,Schools Catering,Kitchen Supplies - Food and Beverages,02/12/2020,5483313,313.89,Thomas Ridley & Son Ltd
Children & Culture,Children's Social Care,Support Service and Management Costs,Schools Catering,Kitchen Supplies - Food and Beverages,02/12/2020,5483316,399,Thomas Ridley & Son Ltd
Children & Culture,Children's Social Care,Support Service and Management Costs,Swanlea,Kitchen Supplies - Food and Beverages,02/12/2020,5483317,941.08,Thomas Ridley & Son Ltd
Children & Culture,Children's Social Care,Support Service and Management Costs,Schools Catering,Kitchen Supplies - Food and Beverages,02/12/2020,5483321,382.99,Thomas Ridley & Son Ltd
Children & Culture,Children's Social Care,Support Service and Management Costs,Schools Catering,Kitchen Supplies - Food and Beverages,02/12/2020,5483324,472.97,Thomas Ridley & Son Ltd
Children & Culture,Children's Social Care,Support Service and Management Costs,Schools Catering,Kitchen Supplies - Food and Beverages,02/12/2020,5483325,"1,717.05",Thomas Ridley & Son Ltd
Children & Culture,Children's Social Care,Support Service and Management Costs,Schools Catering,Kitchen Supplies - Food and Beverages,02/12/2020,5483327,"1,080.37",Thomas Ridley & Son Ltd
Children & Culture,Children's Social Care,Support Service and Management Costs,Schools Catering,Kitchen Supplies - Food and Beverages,02/12/2020,5483330,449.96,Thomas Ridley & Son Ltd
Children & Culture,Children's Social Care,Support Service and Management Costs,Schools Catering,Kitchen Supplies - Food and Beverages,02/12/2020,5483333,417.24,Thomas Ridley & Son Ltd
Children & Culture,Children's Social Care,Support Service and Management Costs,Schools Catering,Kitchen Supplies - Food and Beverages,02/12/2020,5483334,267.7,Thomas Ridley & Son Ltd
Children & Culture,Children's Social Care,Support Service and Management Costs,Schools Catering,Kitchen Supplies - Food and Beverages,02/12/2020,5483336,"1,352.88",Thomas Ridley & Son Ltd
Children & Culture,Children's Social Care,Children Looked After,Leaving Care-UASC,Leaving Care Financial Assistance - Supp Accom/Hous Rents,02/12/2020,5483474,"3,574.08",ThamesCare
Children & Culture,Children's Social Care,Support Service and Management Costs,Schools Catering,Kitchen Supplies - Food and Beverages,02/12/2020,5483511,712.2,Thomas Ridley & Son Ltd
Children & Culture,Children's Social Care,Support Service and Management Costs,Schools Catering,Kitchen Supplies - Food and Beverages,02/12/2020,5483514,328.92,Thomas Ridley & Son Ltd
Children & Culture,Children's Social Care,Support Service and Management Costs,Schools Catering,Kitchen Supplies - Food and Beverages,02/12/2020,5483516,351.61,Thomas Ridley & Son Ltd
Children & Culture,Children's Social Care,Support Service and Management Costs,Schools Catering,Kitchen Supplies - Food and Beverages,02/12/2020,5483520,371.89,Thomas Ridley & Son Ltd
Children & Culture,Education Services,Secondary Schools,PFI Hldg Account-Grouped Schoo,Repairs and Maintenance - Responsive - Buildings,02/12/2020,5484730,519.78,Tower Hamlets Schools LTD
Children & Culture,Education Services,Secondary Schools,PFI Hldg Account-Grouped Schoo,Repairs and Maintenance - Responsive - Buildings,02/12/2020,5484733,"1,904.96",Tower Hamlets Schools LTD
Children & Culture,Education Services,Secondary Schools,PFI Hldg Account-Grouped Schoo,Repairs and Maintenance - Responsive - Buildings,02/12/2020,5484734,"1,629.60",Tower Hamlets Schools LTD
Children & Culture,Education Services,Secondary Schools,PFI Hldg Account-Grouped Schoo,Repairs and Maintenance - Responsive - Buildings,02/12/2020,5484735,"2,118.48",Tower Hamlets Schools LTD
Children & Culture,Education Services,Secondary Schools,PFI Hldg Account-Grouped Schoo,Repairs and Maintenance - Responsive - Buildings,02/12/2020,5484739,"2,172.80",Tower Hamlets Schools LTD
Children & Culture,Education Services,Secondary Schools,PFI Hldg Account-Grouped Schoo,Repairs and Maintenance - Responsive - Buildings,02/12/2020,5484740,"1,004.92",Tower Hamlets Schools LTD
Children & Culture,Education Services,Secondary Schools,PFI Hldg Account-Grouped Schoo,Repairs and Maintenance - Responsive - Buildings,02/12/2020,5484741,"4,019.68",Tower Hamlets Schools LTD
Children & Culture,Education Services,Secondary Schools,PFI Hldg Account-Grouped Schoo,Repairs and Maintenance - Responsive - Buildings,02/12/2020,5484742,"3,911.04",Tower Hamlets Schools LTD
Children & Culture,Education Services,Secondary Schools,PFI Hldg Account-Grouped Schoo,Repairs and Maintenance - Responsive - Buildings,02/12/2020,5484747,338.76,Tower Hamlets Schools LTD
Children & Culture,Children's Social Care,Support Service and Management Costs,Schools Catering,Kitchen Supplies - Food and Beverages,02/12/2020,5484825,495.89,Thomas Ridley & Son Ltd
Children & Culture,Children's Social Care,Support Service and Management Costs,Schools Catering,Kitchen Supplies - Food and Beverages,02/12/2020,5484827,547.93,Thomas Ridley & Son Ltd
Children & Culture,Children's Social Care,Support Service and Management Costs,Schools Catering,Kitchen Supplies - Food and Beverages,02/12/2020,5484832,264.32,Thomas Ridley & Son Ltd
Children & Culture,Children's Social Care,Support Service and Management Costs,Schools Catering,Kitchen Supplies - Food and Beverages,02/12/2020,5484833,413.16,Thomas Ridley & Son Ltd
Children & Culture,Children's Social Care,Support Service and Management Costs,Schools Catering,Kitchen Supplies - Food and Beverages,02/12/2020,5484835,775.85,Thomas Ridley & Son Ltd
Children & Culture,Children's Social Care,Support Service and Management Costs,Schools Catering,Kitchen Supplies - Food and Beverages,02/12/2020,5484836,424.33,Thomas Ridley & Son Ltd
Children & Culture,Children's Social Care,Support Service and Management Costs,Schools Catering,Kitchen Supplies - Food and Beverages,02/12/2020,5484837,253.38,Thomas Ridley & Son Ltd
Children & Culture,Children's Social Care,Support Service and Management Costs,Schools Catering,Kitchen Supplies - Food and Beverages,02/12/2020,5484838,302.02,Thomas Ridley & Son Ltd
Children & Culture,Children's Social Care,Support Service and Management Costs,Schools Catering,Kitchen Supplies - Food and Beverages,02/12/2020,5484839,773.89,Thomas Ridley & Son Ltd
Children & Culture,Children's Social Care,Support Service and Management Costs,Schools Catering,Kitchen Supplies - Food and Beverages,02/12/2020,5484841,427.53,Thomas Ridley & Son Ltd
Children & Culture,Children's Social Care,Support Service and Management Costs,Schools Catering,Kitchen Supplies - Food and Beverages,02/12/2020,5484843,499.38,Thomas Ridley & Son Ltd
Children & Culture,Children's Social Care,Support Service and Management Costs,Schools Catering,Kitchen Supplies - Food and Beverages,02/12/2020,5484845,671.5,Thomas Ridley & Son Ltd
Children & Culture,Children's Social Care,Support Service and Management Costs,Schools Catering,Kitchen Supplies - Food and Beverages,02/12/2020,5484848,304.09,Thomas Ridley & Son Ltd
Children & Culture,Children's Social Care,Support Service and Management Costs,Schools Catering,Kitchen Supplies - Food and Beverages,02/12/2020,5484849,315.47,Thomas Ridley & Son Ltd
Children & Culture,Children's Social Care,Support Service and Management Costs,Schools Catering,Kitchen Supplies - Food and Beverages,02/12/2020,5484850,687.76,Thomas Ridley & Son Ltd
Children & Culture,Children's Social Care,Support Service and Management Costs,Sch. Meals A/c - Central Production Unit,Kitchen Supplies - Food and Beverages,02/12/2020,5484851,"1,919.93",Thomas Ridley & Son Ltd
Children & Culture,Children's Social Care,Support Service and Management Costs,Sch. Meals A/c - Central Production Unit,Kitchen Supplies - Food and Beverages,02/12/2020,5484852,583.1,Thomas Ridley & Son Ltd
Children & Culture,Children's Social Care,Support Service and Management Costs,Schools Catering,Kitchen Supplies - Food and Beverages,02/12/2020,5484854,614.67,Thomas Ridley & Son Ltd
Children & Culture,Children's Social Care,Support Service and Management Costs,Schools Catering,Kitchen Supplies - Food and Beverages,02/12/2020,5484857,329.99,Thomas Ridley & Son Ltd
Children & Culture,Children's Social Care,Support Service and Management Costs,Schools Catering,Kitchen Supplies - Food and Beverages,02/12/2020,5484859,326.97,Thomas Ridley & Son Ltd
Children & Culture,Children's Social Care,Support Service and Management Costs,Schools Catering,Kitchen Supplies - Food and Beverages,02/12/2020,5484860,334.23,Thomas Ridley & Son Ltd
Children & Culture,Children's Social Care,Support Service and Management Costs,Schools Catering,Kitchen Supplies - Food and Beverages,02/12/2020,5484861,828.17,Thomas Ridley & Son Ltd
Children & Culture,Children's Social Care,Support Service and Management Costs,Schools Catering,Kitchen Supplies - Food and Beverages,02/12/2020,5484862,508.88,Thomas Ridley & Son Ltd
Children & Culture,Children's Social Care,Support Service and Management Costs,Schools Catering,Kitchen Supplies - Food and Beverages,02/12/2020,5484863,347.18,Thomas Ridley & Son Ltd
Children & Culture,Children's Social Care,Support Service and Management Costs,Schools Catering,Kitchen Supplies - Food and Beverages,02/12/2020,5484864,526.75,Thomas Ridley & Son Ltd
Children & Culture,Children's Social Care,Support Service and Management Costs,Schools Catering,Kitchen Supplies - Food and Beverages,02/12/2020,5484867,447.23,Thomas Ridley & Son Ltd
Children & Culture,Children's Social Care,Support Service and Management Costs,Swanlea,Kitchen Supplies - Food and Beverages,02/12/2020,5484868,542.37,Thomas Ridley & Son Ltd
Children & Culture,Children's Social Care,Support Service and Management Costs,Schools Catering,Kitchen Supplies - Food and Beverages,02/12/2020,5484870,385.82,Thomas Ridley & Son Ltd
Children & Culture,Children's Social Care,Support Service and Management Costs,Schools Catering,Kitchen Supplies - Food and Beverages,02/12/2020,5484871,467.68,Thomas Ridley & Son Ltd
Children & Culture,Children's Social Care,Support Service and Management Costs,Schools Catering,Kitchen Supplies - Food and Beverages,02/12/2020,5484874,258.6,Thomas Ridley & Son Ltd
Children & Culture,Children's Social Care,Support Service and Management Costs,Schools Catering,Kitchen Supplies - Food and Beverages,02/12/2020,5484875,269.81,Thomas Ridley & Son Ltd
Children & Culture,Children's Social Care,Support Service and Management Costs,Schools Catering,Kitchen Supplies - Food and Beverages,02/12/2020,5484876,392.91,Thomas Ridley & Son Ltd
Children & Culture,Children's Social Care,Support Service and Management Costs,Schools Catering,Kitchen Supplies - Food and Beverages,02/12/2020,5484879,404.72,Thomas Ridley & Son Ltd
Children & Culture,Children's Social Care,Support Service and Management Costs,Schools Catering,Kitchen Supplies - Food and Beverages,02/12/2020,5484880,557.23,Thomas Ridley & Son Ltd
Children & Culture,Children's Social Care,Support Service and Management Costs,Schools Catering,Kitchen Supplies - Food and Beverages,02/12/2020,5484882,696.5,Thomas Ridley & Son Ltd
Children & Culture,Children's Social Care,Support Service and Management Costs,Schools Catering,Kitchen Supplies - Food and Beverages,02/12/2020,5484883,413.44,Thomas Ridley & Son Ltd
Children & Culture,Children's Social Care,Support Service and Management Costs,Schools Catering,Kitchen Supplies - Food and Beverages,02/12/2020,5484884,337.51,Thomas Ridley & Son Ltd
Children & Culture,Children's Social Care,Support Service and Management Costs,Schools Catering,Kitchen Supplies - Food and Beverages,02/12/2020,5484885,299.89,Thomas Ridley & Son Ltd
Children & Culture,Children's Social Care,Support Service and Management Costs,Schools Catering,Kitchen Supplies - Food and Beverages,02/12/2020,5484887,284.01,Thomas Ridley & Son Ltd
Children & Culture,Children's Social Care,Support Service and Management Costs,Schools Catering,Kitchen Supplies - Food and Beverages,02/12/2020,5484888,649.47,Thomas Ridley & Son Ltd
Children & Culture,Children's Social Care,Support Service and Management Costs,Schools Catering,Kitchen Supplies - Food and Beverages,02/12/2020,5484889,437.59,Thomas Ridley & Son Ltd
Children & Culture,Children's Social Care,Support Service and Management Costs,Schools Catering,Kitchen Supplies - Food and Beverages,02/12/2020,5484891,"1,034.01",Thomas Ridley & Son Ltd
Children & Culture,Children's Social Care,Commissioning and Social Work,Independant Social Worker and Public Law Outline,Services - Professional Fees - Financial Services Fees,02/12/2020,5484907,"3,200.00",K.T. Jud Social Care Services Ltd
Children & Culture,Children's Social Care,Support Service and Management Costs,Schools Catering,Kitchen Supplies - Food and Beverages,02/12/2020,5485735,268.35,Thomas Ridley & Son Ltd
Children & Culture,Children's Social Care,Support Service and Management Costs,Schools Catering,Kitchen Supplies - Food and Beverages,02/12/2020,5485736,535.77,Thomas Ridley & Son Ltd
Children & Culture,Children's Social Care,Support Service and Management Costs,Schools Catering,Kitchen Supplies - Food and Beverages,02/12/2020,5485738,300.56,Thomas Ridley & Son Ltd
Children & Culture,Children's Social Care,Support Service and Management Costs,Schools Catering,Kitchen Supplies - Food and Beverages,02/12/2020,5485741,459.14,Thomas Ridley & Son Ltd
Children & Culture,Children's Social Care,Support Service and Management Costs,Schools Catering,Kitchen Supplies - Food and Beverages,02/12/2020,5485743,271.62,Thomas Ridley & Son Ltd
Children & Culture,Children's Social Care,Support Service and Management Costs,Schools Catering,Kitchen Supplies - Food and Beverages,02/12/2020,5485744,270.23,Thomas Ridley & Son Ltd
Children & Culture,Children's Social Care,Support Service and Management Costs,Schools Catering,Kitchen Supplies - Food and Beverages,02/12/2020,5485745,520.38,Thomas Ridley & Son Ltd
Children & Culture,Children's Social Care,Children Looked After,S23 Fam Pl P&V-F/Care,Social Care - Day Care,02/12/2020,5486014,"5,566.80",ThamesCare
Children & Culture,Children's Social Care,Services for young people,Youth Service Management,Third Party Payments - Voluntary Associations,02/12/2020,5486029,"7,000.00",Society Links
Children & Culture,Children's Social Care,Services for young people,Youth Service Management,Third Party Payments - Voluntary Associations,02/12/2020,5486031,"7,000.00",Society Links
Children & Culture,Children's Social Care,Support Service and Management Costs,Schools Catering,Kitchen Supplies - Food and Beverages,02/12/2020,5486036,259.59,Thomas Ridley & Son Ltd
Children & Culture,Children's Social Care,Support Service and Management Costs,Schools Catering,Kitchen Supplies - Food and Beverages,02/12/2020,5486037,294.29,Thomas Ridley & Son Ltd
Children & Culture,Children's Social Care,Support Service and Management Costs,Schools Catering,Kitchen Supplies - Food and Beverages,02/12/2020,5486038,642.76,Thomas Ridley & Son Ltd
Children & Culture,Children's Social Care,Support Service and Management Costs,Schools Catering,Kitchen Supplies - Food and Beverages,02/12/2020,5486040,363.48,Thomas Ridley & Son Ltd
Children & Culture,Children's Social Care,Support Service and Management Costs,Schools Catering,Kitchen Supplies - Food and Beverages,02/12/2020,5486042,252.01,Thomas Ridley & Son Ltd
Children & Culture,Children's Social Care,Support Service and Management Costs,Schools Catering,Kitchen Supplies - Food and Beverages,02/12/2020,5486043,265.23,Thomas Ridley & Son Ltd
Children & Culture,Children's Social Care,Support Service and Management Costs,Schools Catering,Kitchen Supplies - Food and Beverages,02/12/2020,5486044,374.82,Thomas Ridley & Son Ltd
Children & Culture,Children's Social Care,Support Service and Management Costs,Schools Catering,Kitchen Supplies - Food and Beverages,02/12/2020,5486046,457.34,Thomas Ridley & Son Ltd
Children & Culture,Children's Social Care,Support Service and Management Costs,Schools Catering,Kitchen Supplies - Food and Beverages,02/12/2020,5486047,389.53,Thomas Ridley & Son Ltd
Children & Culture,Children's Social Care,Support Service and Management Costs,Schools Catering,Kitchen Supplies - Food and Beverages,02/12/2020,5486048,668.65,Thomas Ridley & Son Ltd
Children & Culture,Children's Social Care,Support Service and Management Costs,Schools Catering,Kitchen Supplies - Food and Beverages,02/12/2020,5486050,583.24,Thomas Ridley & Son Ltd
Children & Culture,Children's Social Care,Support Service and Management Costs,Schools Catering,Kitchen Supplies - Food and Beverages,02/12/2020,5486051,252.26,Thomas Ridley & Son Ltd
Children & Culture,Children's Social Care,Support Service and Management Costs,Schools Catering,Kitchen Supplies - Food and Beverages,02/12/2020,5486052,330.35,Thomas Ridley & Son Ltd
Children & Culture,Children's Social Care,Support Service and Management Costs,Schools Catering,Kitchen Supplies - Food and Beverages,02/12/2020,5486053,865.55,Thomas Ridley & Son Ltd
Children & Culture,Children's Social Care,Support Service and Management Costs,Schools Catering,Kitchen Supplies - Food and Beverages,02/12/2020,5486054,648.35,Thomas Ridley & Son Ltd
Children & Culture,Children's Social Care,Support Service and Management Costs,Schools Catering,Kitchen Supplies - Food and Beverages,02/12/2020,5486055,704.01,Thomas Ridley & Son Ltd
Children & Culture,Children's Social Care,Support Service and Management Costs,Schools Catering,Kitchen Supplies - Food and Beverages,02/12/2020,5486056,252.23,Thomas Ridley & Son Ltd
Children & Culture,Children's Social Care,Support Service and Management Costs,Schools Catering,Kitchen Supplies - Food and Beverages,02/12/2020,5486058,662.96,Thomas Ridley & Son Ltd
Children & Culture,Children's Social Care,Support Service and Management Costs,Schools Catering,Kitchen Supplies - Food and Beverages,02/12/2020,5486060,515.98,Thomas Ridley & Son Ltd
Children & Culture,Children's Social Care,Support Service and Management Costs,Schools Catering,Kitchen Supplies - Food and Beverages,02/12/2020,5486061,642.35,Thomas Ridley & Son Ltd
Children & Culture,Children's Social Care,Support Service and Management Costs,Schools Catering,Kitchen Supplies - Food and Beverages,02/12/2020,5486064,827.75,Thomas Ridley & Son Ltd
Children & Culture,Children's Social Care,Support Service and Management Costs,Schools Catering,Kitchen Supplies - Food and Beverages,02/12/2020,5486067,283.59,Thomas Ridley & Son Ltd
Children & Culture,Children's Social Care,Support Service and Management Costs,Schools Catering,Kitchen Supplies - Food and Beverages,02/12/2020,5486085,255.6,Prescott-Thomas LTD.
Children & Culture,Children's Social Care,Support Service and Management Costs,Schools Catering,Kitchen Supplies - Food and Beverages,02/12/2020,5486099,394.95,Prescott-Thomas LTD.
Children & Culture,Children's Social Care,Support Service and Management Costs,Schools Catering,Kitchen Supplies - Food and Beverages,02/12/2020,5486221,327.4,Prescott-Thomas LTD.
Children & Culture,Children's Social Care,Support Service and Management Costs,Schools Catering,Kitchen Supplies - Food and Beverages,02/12/2020,5486286,475.88,Prescott-Thomas LTD.
Children & Culture,Children's Social Care,Support Service and Management Costs,Schools Catering,Kitchen Supplies - Food and Beverages,02/12/2020,5486360,486.15,Prescott-Thomas LTD.
Children & Culture,Children's Social Care,Support Service and Management Costs,Schools Catering,Kitchen Supplies - Food and Beverages,02/12/2020,5486435,251.66,Prescott-Thomas LTD.
Children & Culture,Children's Social Care,Support Service and Management Costs,Schools Catering,Kitchen Supplies - Food and Beverages,02/12/2020,5486436,528.91,Prescott-Thomas LTD.
Children & Culture,Children's Social Care,Support Service and Management Costs,Schools Catering,Kitchen Supplies - Food and Beverages,02/12/2020,5486621,292.55,Prescott-Thomas LTD.
Children & Culture,Children's Social Care,Support Service and Management Costs,Schools Catering,Kitchen Supplies - Food and Beverages,02/12/2020,5486650,615.35,Prescott-Thomas LTD.
Children & Culture,Children's Social Care,Support Service and Management Costs,Schools Catering,Kitchen Supplies - Food and Beverages,02/12/2020,5486740,294.45,Prescott-Thomas LTD.
Children & Culture,Children's Social Care,Support Service and Management Costs,Schools Catering,Kitchen Supplies - Food and Beverages,02/12/2020,5486789,255.35,Prescott-Thomas LTD.
Children & Culture,Children's Social Care,Support Service and Management Costs,Schools Catering,Kitchen Supplies - Food and Beverages,02/12/2020,5486794,626.78,Prescott-Thomas LTD.
Children & Culture,Children's Social Care,Support Service and Management Costs,Schools Catering,Kitchen Supplies - Food and Beverages,02/12/2020,5486800,259.8,Prescott-Thomas LTD.
Children & Culture,Children's Social Care,Support Service and Management Costs,Schools Catering,Kitchen Supplies - Food and Beverages,02/12/2020,5486827,314.77,Prescott-Thomas LTD.
Children & Culture,Children's Social Care,Support Service and Management Costs,Schools Catering,Kitchen Supplies - Food and Beverages,02/12/2020,5486830,424,Prescott-Thomas LTD.
Children & Culture,Children's Social Care,Support Service and Management Costs,Schools Catering,Kitchen Supplies - Food and Beverages,02/12/2020,5486884,290.58,Prescott-Thomas LTD.
Children & Culture,Children's Social Care,Support Service and Management Costs,Schools Catering,Kitchen Supplies - Food and Beverages,02/12/2020,5486886,311.27,Prescott-Thomas LTD.
Children & Culture,Children's Social Care,Support Service and Management Costs,Schools Catering,Kitchen Supplies - Food and Beverages,02/12/2020,5486906,311.84,Prescott-Thomas LTD.
Children & Culture,Children's Social Care,Support Service and Management Costs,Schools Catering,Kitchen Supplies - Food and Beverages,02/12/2020,5486924,336,Prescott-Thomas LTD.
Children & Culture,Education Services,Other Strategic Functions,Alternative Provision,Third Party Payments - Payments to Schools,02/12/2020,5487314,"3,000.00",BOW SCHOOL
Children & Culture,Education Services,Other Strategic Functions,Alternative Provision,Third Party Payments - Payments to Schools,02/12/2020,5487315,"3,000.00",George Green School
Children & Culture,Education Services,Other Strategic Functions,Alternative Provision,Third Party Payments - Payments to Schools,02/12/2020,5487316,"3,000.00",George Green School
Children & Culture,Education Services,Other Strategic Functions,Alternative Provision,Third Party Payments - Payments to Schools,02/12/2020,5487317,"3,000.00",George Green School
Children & Culture,Education Services,Other Strategic Functions,Alternative Provision,Third Party Payments - Payments to Schools,02/12/2020,5487318,"3,000.00",LANGDON PARK SCHOOL
Children & Culture,Education Services,Other Strategic Functions,Alternative Provision,Third Party Payments - Payments to Schools,02/12/2020,5487319,"3,000.00",LANGDON PARK SCHOOL
Children & Culture,Education Services,Other Strategic Functions,Alternative Provision,Third Party Payments - Payments to Schools,02/12/2020,5487320,"3,000.00",Mulberry Academy Shoreditch
Children & Culture,Education Services,Other Strategic Functions,Alternative Provision,Third Party Payments - Payments to Schools,02/12/2020,5487321,"3,000.00",Morpeth School
Children & Culture,Education Services,Other Strategic Functions,Alternative Provision,Third Party Payments - Payments to Schools,02/12/2020,5487322,"3,000.00",ST Pauls Way Trust School
Children & Culture,Education Services,Other Strategic Functions,Alternative Provision,Third Party Payments - Payments to Schools,02/12/2020,5487324,"3,000.00",ST Pauls Way Trust School
Children & Culture,Education Services,Other Strategic Functions,Alternative Provision,Third Party Payments - Payments to Schools,02/12/2020,5487326,"3,000.00",Stepney Green Maths Computing Science College
Children & Culture,Education Services,Other Strategic Functions,Alternative Provision,Third Party Payments - Payments to Schools,02/12/2020,5487327,"3,000.00",Stepney Green Maths Computing Science College
Children & Culture,Education Services,Other Strategic Functions,Alternative Provision,Third Party Payments - Payments to Schools,02/12/2020,5487328,"3,000.00",Stepney Green Maths Computing Science College
Children & Culture,Education Services,Other Strategic Functions,Alternative Provision,Third Party Payments - Payments to Schools,02/12/2020,5487329,"3,000.00",Stepney Green Maths Computing Science College
Children & Culture,Education Services,Other Strategic Functions,Alternative Provision,Third Party Payments - Payments to Schools,02/12/2020,5487330,"3,000.00",LBTH SWANLEA SCHOOL
Children & Culture,Education Services,Other Strategic Functions,High Needs Out Of Borough Special Schools,Third Party Payments - SEN Top Up Funding,02/12/2020,5487444,"5,600.00",Fairley House School
Children & Culture,Education Services,Other Strategic Functions,High Needs Out Of Borough Special Schools,Third Party Payments - SEN Top Up Funding,02/12/2020,5487445,"5,600.00",Fairley House School
Children & Culture,Children's Social Care,Support Service and Management Costs,Schools Catering,Kitchen Supplies - Food and Beverages,02/12/2020,5487457,389.53,Thomas Ridley & Son Ltd
Children & Culture,Children's Social Care,Support Service and Management Costs,Schools Catering,Kitchen Supplies - Food and Beverages,02/12/2020,5487459,457.34,Thomas Ridley & Son Ltd
Children & Culture,Children's Social Care,Support Service and Management Costs,Schools Catering,Kitchen Supplies - Food and Beverages,02/12/2020,5487460,296.54,Thomas Ridley & Son Ltd
Children & Culture,Children's Social Care,Support Service and Management Costs,Schools Catering,Kitchen Supplies - Food and Beverages,02/12/2020,5487463,583.24,Thomas Ridley & Son Ltd
Children & Culture,Children's Social Care,Support Service and Management Costs,Schools Catering,Kitchen Supplies - Food and Beverages,02/12/2020,5487464,281.24,Thomas Ridley & Son Ltd
Children & Culture,Children's Social Care,Support Service and Management Costs,Schools Catering,Kitchen Supplies - Food and Beverages,02/12/2020,5487466,733.52,Thomas Ridley & Son Ltd
Children & Culture,Children's Social Care,Support Service and Management Costs,Schools Catering,Kitchen Supplies - Food and Beverages,02/12/2020,5487467,312.65,Thomas Ridley & Son Ltd
Children & Culture,Children's Social Care,Support Service and Management Costs,Schools Catering,Kitchen Supplies - Food and Beverages,02/12/2020,5487468,483.74,Thomas Ridley & Son Ltd
Children & Culture,Children's Social Care,Support Service and Management Costs,Schools Catering,Kitchen Supplies - Food and Beverages,02/12/2020,5487469,422.03,Thomas Ridley & Son Ltd
Children & Culture,Children's Social Care,Support Service and Management Costs,Schools Catering,Kitchen Supplies - Food and Beverages,02/12/2020,5487470,832.33,Thomas Ridley & Son Ltd
Children & Culture,Children's Social Care,Support Service and Management Costs,Schools Catering,Kitchen Supplies - Food and Beverages,02/12/2020,5487471,469.72,Thomas Ridley & Son Ltd
Children & Culture,Children's Social Care,Support Service and Management Costs,Schools Catering,Kitchen Supplies - Food and Beverages,02/12/2020,5487472,486.88,Thomas Ridley & Son Ltd
Children & Culture,Children's Social Care,Support Service and Management Costs,Schools Catering,Kitchen Supplies - Food and Beverages,02/12/2020,5487473,358.06,Thomas Ridley & Son Ltd
Children & Culture,Children's Social Care,Support Service and Management Costs,Schools Catering,Kitchen Supplies - Food and Beverages,02/12/2020,5487475,388.07,Thomas Ridley & Son Ltd
Children & Culture,Children's Social Care,Support Service and Management Costs,Schools Catering,Kitchen Supplies - Food and Beverages,02/12/2020,5487477,504.19,Thomas Ridley & Son Ltd
Children & Culture,Children's Social Care,Support Service and Management Costs,Schools Catering,Kitchen Supplies - Food and Beverages,02/12/2020,5487479,391.2,Thomas Ridley & Son Ltd
Children & Culture,Children's Social Care,Support Service and Management Costs,Schools Catering,Kitchen Supplies - Food and Beverages,02/12/2020,5487480,353.93,Thomas Ridley & Son Ltd
Children & Culture,Children's Social Care,Support Service and Management Costs,Schools Catering,Kitchen Supplies - Food and Beverages,02/12/2020,5487481,347.13,Thomas Ridley & Son Ltd
Children & Culture,Children's Social Care,Support Service and Management Costs,Schools Catering,Kitchen Supplies - Food and Beverages,02/12/2020,5487484,483.11,Thomas Ridley & Son Ltd
Children & Culture,Children's Social Care,Support Service and Management Costs,Schools Catering,Kitchen Supplies - Food and Beverages,02/12/2020,5487485,392.85,Thomas Ridley & Son Ltd
Children & Culture,Children's Social Care,Support Service and Management Costs,Schools Catering,Kitchen Supplies - Food and Beverages,02/12/2020,5487487,488.01,Thomas Ridley & Son Ltd
Children & Culture,Children's Social Care,Support Service and Management Costs,Schools Catering,Kitchen Supplies - Food and Beverages,02/12/2020,5487488,266.45,Thomas Ridley & Son Ltd
Children & Culture,Children's Social Care,Support Service and Management Costs,Schools Catering,Kitchen Supplies - Food and Beverages,02/12/2020,5487489,696.51,Thomas Ridley & Son Ltd
Children & Culture,Children's Social Care,Support Service and Management Costs,Schools Catering,Kitchen Supplies - Food and Beverages,02/12/2020,5487490,386.81,Thomas Ridley & Son Ltd
Children & Culture,Children's Social Care,Support Service and Management Costs,Schools Catering,Kitchen Supplies - Food and Beverages,02/12/2020,5487495,729.27,Thomas Ridley & Son Ltd
Children & Culture,Children's Social Care,Support Service and Management Costs,Sch. Meals A/c - Central Production Unit,Kitchen Supplies - Food and Beverages,02/12/2020,5487496,"1,596.77",Thomas Ridley & Son Ltd
Children & Culture,Children's Social Care,Support Service and Management Costs,Schools Catering,Kitchen Supplies - Food and Beverages,02/12/2020,5487497,"1,150.49",Thomas Ridley & Son Ltd
Children & Culture,Children's Social Care,Support Service and Management Costs,Schools Catering,Kitchen Supplies - Food and Beverages,02/12/2020,5487498,671.6,Thomas Ridley & Son Ltd
Children & Culture,Children's Social Care,Support Service and Management Costs,Schools Catering,Kitchen Supplies - Food and Beverages,02/12/2020,5487499,384.41,Thomas Ridley & Son Ltd
Children & Culture,Children's Social Care,Support Service and Management Costs,Schools Catering,Kitchen Supplies - Food and Beverages,02/12/2020,5487872,257.4,Prescott-Thomas LTD.
Children & Culture,Children's Social Care,Support Service and Management Costs,Schools Catering,Kitchen Supplies - Food and Beverages,02/12/2020,5487904,539.4,Prescott-Thomas LTD.
Children & Culture,Children's Social Care,Support Service and Management Costs,Schools Catering,Kitchen Supplies - Food and Beverages,02/12/2020,5487924,255.34,Prescott-Thomas LTD.
Children & Culture,Children's Social Care,Support Service and Management Costs,Schools Catering,Kitchen Supplies - Food and Beverages,02/12/2020,5487978,368.4,Prescott-Thomas LTD.
Children & Culture,Education Services,Primary Schools,"Raines FS (Residual Acc)		",Third Party Payments - Contingencies,02/12/2020,5488065,"1,950.00",Greenhouse Sports Limited
Children & Culture,No Service Specified,No Division Specified,Capital-Minor Works (SC),Other External Fees - Consultants Fees,02/12/2020,5488171,"8,000.00",Patel Taylor Architects Ltd
Children & Culture,No Service Specified,No Division Specified,Capital-Minor Works (SC),Other External Fees - Consultants Fees,02/12/2020,5488172,325,Patel Taylor Architects Ltd
Children & Culture,No Service Specified,No Division Specified,Capital-Minor Works (SC),Building Works - Main Works,04/12/2020,5467972,735.4,Controlcare Ltd
Children & Culture,Children's Social Care,Children Looked After,S23-Other-Semi-Ind. Unit,Childrens Act Section 23 - Placement Fee,04/12/2020,5478916,"3,585.59",Inclusive Care Support Ltd
Children & Culture,Education Services,Other Strategic Functions,High Needs Out Of Borough Further Education Colleges,Third Party Payments - SEN Top Up Funding,04/12/2020,5478995,"31,157.40",South Thames Colleges Group
Children & Culture,Children's Social Care,Support Service and Management Costs,Schools Catering,Materials - Cleaning Materials,04/12/2020,5479401,415.29,The Maintenance Supply Co Ltd
Children & Culture,Education Services,Other Strategic Functions,C&C Covid19 Response,Education & Training - Non Staff Tuition Fees,04/12/2020,5479520,"4,058.30",South Quay College
Children & Culture,Children's Social Care,Support Service and Management Costs,Schools Catering,Kitchen Supplies - Food and Beverages,04/12/2020,5479829,390.14,William White Meats Ltd
Children & Culture,Children's Social Care,Support Service and Management Costs,Schools Catering,Kitchen Supplies - Food and Beverages,04/12/2020,5479832,410.98,William White Meats Ltd
Children & Culture,Children's Social Care,Support Service and Management Costs,Schools Catering,Kitchen Supplies - Food and Beverages,04/12/2020,5479835,330.72,William White Meats Ltd
Children & Culture,Children's Social Care,Support Service and Management Costs,Schools Catering,Kitchen Supplies - Food and Beverages,04/12/2020,5479844,280.55,William White Meats Ltd
Children & Culture,Children's Social Care,Support Service and Management Costs,Sch. Meals A/c - Central Production Unit,Kitchen Supplies - Food and Beverages,04/12/2020,5479849,"1,145.53",William White Meats Ltd
Children & Culture,Children's Social Care,Support Service and Management Costs,Sch. Meals A/c - Bow School,Kitchen Supplies - Food and Beverages,04/12/2020,5479911,"2,893.25",Tiffin Sandwiches
Children & Culture,Children's Social Care,Support Service and Management Costs,Sch. Meals A/c - C.F.S. Upper (Harley Grove),Kitchen Supplies - Food and Beverages,04/12/2020,5479912,759,Tiffin Sandwiches
Children & Culture,Children's Social Care,Support Service and Management Costs,Sch. Meals A/c - Morpeth,Kitchen Supplies - Food and Beverages,04/12/2020,5479913,"1,690.45",Tiffin Sandwiches
Children & Culture,Children's Social Care,Support Service and Management Costs,Sch. Meals A/c - Stepney Green,Kitchen Supplies - Food and Beverages,04/12/2020,5479914,289,Tiffin Sandwiches
Children & Culture,Children's Social Care,Support Service and Management Costs,Swanlea,Kitchen Supplies - Food and Beverages,04/12/2020,5479916,259,Tiffin Sandwiches
Children & Culture,Children's Social Care,Support Service and Management Costs,Sch. Meals A/c - St. Paul's Way Comm. Trust,Kitchen Supplies - Food and Beverages,04/12/2020,5481604,"2,544.30",Tiffin Sandwiches
Children & Culture,Education Services,Other Strategic Functions,Music Trading Account,Educational/Training Supplies - Arts & Crafts,04/12/2020,5481630,375,LMS Music Supplies
Children & Culture,Education Services,Other Strategic Functions,Music Trading Account,Educational/Training Supplies - Arts & Crafts,04/12/2020,5481630,556,LMS Music Supplies
Children & Culture,Education Services,Other Strategic Functions,Music Trading Account,Educational/Training Supplies - Arts & Crafts,04/12/2020,5481631,649.5,LMS Music Supplies
Children & Culture,Education Services,Other Strategic Functions,Music Trading Account,Educational/Training Supplies - Arts & Crafts,04/12/2020,5481631,"1,299.00",LMS Music Supplies
Children & Culture,Education Services,Other Strategic Functions,Music Trading Account,Educational/Training Supplies - Arts & Crafts,04/12/2020,5481789,357,LMS Music Supplies
Children & Culture,Education Services,Other Strategic Functions,Music Trading Account,Educational/Training Supplies - Arts & Crafts,04/12/2020,5481790,855,LMS Music Supplies
Children & Culture,Children's Social Care,Support Service and Management Costs,Schools Catering,Kitchen Supplies - Food and Beverages,04/12/2020,5482812,354.76,William White Meats Ltd
Children & Culture,Children's Social Care,Support Service and Management Costs,Schools Catering,Kitchen Supplies - Food and Beverages,04/12/2020,5482828,251.55,William White Meats Ltd
Children & Culture,Children's Social Care,Support Service and Management Costs,Schools Catering,Kitchen Supplies - Food and Beverages,04/12/2020,5482845,663.7,William White Meats Ltd
Children & Culture,Children's Social Care,Support Service and Management Costs,Swanlea,Kitchen Supplies - Food and Beverages,04/12/2020,5482846,323.84,William White Meats Ltd
Children & Culture,Children's Social Care,Support Service and Management Costs,Schools Catering,Kitchen Supplies - Food and Beverages,04/12/2020,5482847,338.97,William White Meats Ltd
Children & Culture,Children's Social Care,Support Service and Management Costs,Schools Catering,Kitchen Supplies - Food and Beverages,04/12/2020,5482850,431.74,William White Meats Ltd
Children & Culture,Children's Social Care,Support Service and Management Costs,Schools Catering,Kitchen Supplies - Food and Beverages,04/12/2020,5486964,382.5,Prescott-Thomas LTD.
Children & Culture,Education Services,Early Years,3&4 Year old PVI�s,Third Party Payments - Voluntary Associations,04/12/2020,5489138,"3,133.20",Tiddley Tots Daycare
Children & Culture,Education Services,Early Years,SSEYCG Two Year Old Pilot,Third Party Payments - Voluntary Associations,04/12/2020,5489140,"6,142.50",Tiddley Tots Daycare
Children & Culture,Education Services,Early Years,3&4 Year old PVI�s,Third Party Payments - Voluntary Associations,04/12/2020,5489141,429.6,Rise N Shine Nursery
Children & Culture,Education Services,Early Years,SSEYCG Two Year Old Pilot,Third Party Payments - Voluntary Associations,04/12/2020,5489144,"10,237.50",London Early Years Foundation
Children & Culture,Education Services,Early Years,SSEYCG Two Year Old Pilot,Third Party Payments - Voluntary Associations,04/12/2020,5489145,585,CATHOLIC CHILDREN'S SOCIETY(WESTMINSTER)
Children & Culture,Education Services,Early Years,SSEYCG Two Year Old Pilot,Third Party Payments - Voluntary Associations,04/12/2020,5489146,"2,730.00",Shining Futures Nursery
Children & Culture,Children's Social Care,Children Looked After,S23 Fam Pl P&V-F/Care,Childrens Act Section 23 - Non-Contact Taxi Costs,04/12/2020,5489301,"2,250.00",Healthcare and Transport Services Group Ltd
Children & Culture,Children's Social Care,Support Service and Management Costs,Toby Lane Function,Computing - Purchase of Software,04/12/2020,5489353,"2,200.00",Nutriplanner Limited
Children & Culture,Education Services,Early Years,Ocean CC,Educational/Training Supplies - Arts & Crafts,04/12/2020,5489415,448.5,Eduzone Ltd
Children & Culture,Children's Social Care,Support Service and Management Costs,Professional Dev Centre,Comms - Postages,04/12/2020,5489785,519.32,Pitney Bowes DMT
Children & Culture,Education Services,Early Years,Isle of Dogs. CC,Repairs and Maintenance - Responsive - Repair & Maintenance,07/12/2020,5479371,400,JC Coster (Metalworks) Ltd
Children & Culture,Education Services,Early Years,Isle of Dogs. CC,Repairs and Maintenance - Responsive - Repair & Maintenance,07/12/2020,5479372,"1,240.00",JC Coster (Metalworks) Ltd
Children & Culture,Cultural and Related Services,Open Spaces,Stepney Green,Repairs and Maintenance - Responsive - Repair & Maintenance,07/12/2020,5479856,480,JC Coster (Metalworks) Ltd
Children & Culture,Cultural and Related Services,Open Spaces,Victoria Park,Repairs and Maintenance - Responsive - Repair & Maintenance,07/12/2020,5479857,"1,950.00",JC Coster (Metalworks) Ltd
Children & Culture,Cultural and Related Services,Open Spaces,Mile End Park,Repairs and Maintenance - Responsive - General,07/12/2020,5479860,"1,084.00",JC Coster (Metalworks) Ltd
Children & Culture,Children's Social Care,Children Looked After,S23-Other-Semi-Ind. Unit,Childrens Act Section 23 - Placement Fee,07/12/2020,5479936,"1,388.03",Elastikos Services Ltd
Children & Culture,Education Services,Other Strategic Functions,High Needs Out Of Borough Special Schools,Third Party Payments - SEN Top Up Funding,07/12/2020,5479943,"4,387.50",Cavendish School
Children & Culture,Children's Social Care,Support Service and Management Costs,Schools Catering,Materials - Cleaning Materials,07/12/2020,5480858,256.33,The Maintenance Supply Co Ltd
Children & Culture,Children's Social Care,Support Service and Management Costs,Sch. Meals A/c - C.F.S. Upper (Harley Grove),Kitchen Supplies - Food and Beverages,07/12/2020,5480962,907.51,Chicken Joes
Children & Culture,Children's Social Care,Support Service and Management Costs,Sch. Meals A/c - Central Production Unit,Kitchen Supplies - Catering Equipment,07/12/2020,5481080,505.6,W V Howe LTD
Children & Culture,Children's Social Care,Support Service and Management Costs,Schools Catering,Repairs and Maintenance - Responsive - General,07/12/2020,5481776,492,Lambourne Refrigeration
Children & Culture,Children's Social Care,Support Service and Management Costs,Schools Catering,Repairs and Maintenance - Responsive - General,07/12/2020,5481777,494,Lambourne Refrigeration
Children & Culture,Children's Social Care,Support Service and Management Costs,Schools Catering,Repairs and Maintenance - Responsive - General,07/12/2020,5481778,422,Lambourne Refrigeration
Children & Culture,Children's Social Care,Service Strategy,CSC Childrens Resources M & A,Education & Training - Non Staff Tuition Fees,07/12/2020,5485726,600,Curve Solutions
Children & Culture,Children's Social Care,Support Service and Management Costs,Schools Catering,Kitchen Supplies - Food and Beverages,07/12/2020,5487013,297.55,Prescott-Thomas LTD.
Children & Culture,Children's Social Care,Support Service and Management Costs,Schools Catering,Kitchen Supplies - Food and Beverages,07/12/2020,5487039,308.64,Prescott-Thomas LTD.
Children & Culture,Children's Social Care,Support Service and Management Costs,Schools Catering,Kitchen Supplies - Food and Beverages,07/12/2020,5487294,365.61,Prescott-Thomas LTD.
Children & Culture,Education Services,Other Strategic Functions,High Needs Out Of Borough Special Schools,Third Party Payments - SEN Top Up Funding,07/12/2020,5487447,"18,648.00",Parayhouse School
Children & Culture,Children's Social Care,Children Looked After,S23 Fam Pl P&V-F/Care,Childrens Act Section 23 - All Contact Expenses,07/12/2020,5489302,"4,155.00",Toucan Nursery
Children & Culture,Children's Social Care,Children Looked After,Comm Outreach & Assmnt Team,Social Care - Day Care,07/12/2020,5489354,"46,652.00",Positive Families Partnership LLP
Children & Culture,Children's Social Care,Children Looked After,S23-Other-Semi-Ind. Unit,Childrens Act Section 23 - Placement Fee,07/12/2020,5489789,"2,173.42",Pangea Support Services
Children & Culture,Children's Social Care,Children Looked After,S23-Other-Semi-Ind. Unit,Childrens Act Section 23 - Placement Fee,07/12/2020,5489790,"8,951.00",Pangea Support Services
Children & Culture,Children's Social Care,Children Looked After,S23 Fam Pl P&V-F/Care,Childrens Act Section 23 - Placement Fee,07/12/2020,5489792,"3,319.42",Pangea Support Services
Children & Culture,Education Services,Other Strategic Functions,SEN External Travel,Non Staff Transport Costs - Reimbursement,07/12/2020,5489912,"193,875.00",Lindel Services LTD - T/A Fox Transport
Children & Culture,Children's Social Care,Service Strategy,FSP Sect 17 - Team 4,Environmental Health Supplies - Samples for Testing,07/12/2020,5489930,500,E4 Law Limited T/A Lextox
Children & Culture,Children's Social Care,Family Support Services,CNN Pool: Joint Family Support,Social Care - Homecare,07/12/2020,5489942,722,QALB Centre Short Break Services
Children & Culture,Children's Social Care,Family Support Services,CNN Pool: Joint Family Support,Social Care - Homecare,07/12/2020,5489943,912,QALB Centre Short Break Services
Children & Culture,Children's Social Care,Children Looked After,S23-Other-Semi-Ind. Unit,Childrens Act Section 23 - Placement Fee,07/12/2020,5490003,"2,020.62",ThamesCare
Children & Culture,Children's Social Care,Family Support Services,CNN Pool: Children Direct Paym,Social Care - Direct Payments,07/12/2020,5490172,"2,415.00",DH TOWER HAMLETS
Children & Culture,Education Services,Early Years,Marner. CC,Tools and Equipment - Purchase,09/12/2020,5466092,340,Williams Medical Supplies Ltd
Children & Culture,Children's Social Care,Children Looked After,C.B.C & Fam.Prev/Support-Mgmnt,Third Party Payments - Voluntary Associations,09/12/2020,5474393,"27,786.25",Barnardo's Services
Children & Culture,Children's Social Care,Support Service and Management Costs,Schools Catering,Repairs and Maintenance - Responsive - General,09/12/2020,5478897,480,Swiftclean LTD
Children & Culture,Cultural and Related Services,Culture & Heritage,Arts-Park Events,Events & Exhibition Supplies,09/12/2020,5480948,"3,400.00",Arts Without Borders
Children & Culture,Cultural and Related Services,Open Spaces,Mile End Park,Repairs and Maintenance - Responsive - Drainage & Sewers,09/12/2020,5481118,580,J&L Coster (Drainage) Ltd
Children & Culture,Education Services,Other Strategic Functions,High Needs Out Of Borough Special Schools,Third Party Payments - SEN Top Up Funding,09/12/2020,5481122,"12,285.33",Heathlands School
Children & Culture,Children's Social Care,Support Service and Management Costs,Sch. Meals A/c - Blue Gate Fields,Repairs and Maintenance - Responsive - General,09/12/2020,5481127,834,Lambourne Refrigeration
Children & Culture,Children's Social Care,Support Service and Management Costs,Sch. Meals A/c - St. Mary & St. Michael's,Repairs and Maintenance - Responsive - General,09/12/2020,5481128,892,Lambourne Refrigeration
Children & Culture,Education Services,Other Strategic Functions,High Needs Out Of Borough Special Schools,Third Party Payments - SEN Top Up Funding,09/12/2020,5481469,"16,800.00",Kedleston Schools
Children & Culture,Education Services,Other Strategic Functions,High Needs Out Of Borough Special Schools,Third Party Payments - SEN Top Up Funding,09/12/2020,5481470,"16,800.00",Kedleston Schools
Children & Culture,Education Services,Other Strategic Functions,High Needs Out Of Borough Special Schools,Third Party Payments - SEN Top Up Funding,09/12/2020,5481471,"17,666.67",Kedleston Schools
Children & Culture,Education Services,Other Strategic Functions,High Needs Out Of Borough Special Schools,Third Party Payments - SEN Top Up Funding,09/12/2020,5481472,"18,333.33",Kedleston Schools
Children & Culture,Education Services,Early Years,Marner. CC,Community Equipment  Supplies - Non Store Items,09/12/2020,5481636,408.3,Yorkshire Purchasing Organisation
Children & Culture,Cultural and Related Services,Open Spaces,Mile End Park,Community Equipment  Supplies - Non Store Items,09/12/2020,5481732,465,The Maintenance Supply Co Ltd
Children & Culture,Children's Social Care,Support Service and Management Costs,Sch. Meals A/c - St. Elizabeth's,Repairs and Maintenance - Responsive - General,09/12/2020,5481775,892,Lambourne Refrigeration
Children & Culture,Education Services,Services to Young People and Other Community Learners,Further and Higher Education,Education Trust - Grant,09/12/2020,5482522,"15,000.00",Account 3 Ltd
Children & Culture,Children's Social Care,Family Support Services,CNN Pool: Joint Family Support,Third Party Payments - Repair & Maintenance,09/12/2020,5482632,"1,098.00",HAMLETTS LTD
Children & Culture,Children's Social Care,Children Looked After,Virtual School PPG,Agency Staff - Associations,09/12/2020,5482643,"1,019.88",Academics ltd
Children & Culture,Children's Social Care,Children Looked After,Virtual School PPG,Agency Staff - Associations,09/12/2020,5482644,"1,274.85",Academics ltd
Children & Culture,Children's Social Care,Children Looked After,Virtual School PPG,Agency Staff - Associations,09/12/2020,5482645,"1,019.88",Academics ltd
Children & Culture,Children's Social Care,Children Looked After,Virtual School PPG,Agency Staff - Associations,09/12/2020,5482646,"1,019.88",Academics ltd
Children & Culture,Children's Social Care,Children Looked After,Virtual School PPG,Agency Staff - Associations,09/12/2020,5482647,764.91,Academics ltd
Children & Culture,Children's Social Care,Children Looked After,Virtual School PPG,Agency Staff - Associations,09/12/2020,5482648,254.97,Academics ltd
Children & Culture,Education Services,Other Strategic Functions,Special Education Needs DSG,Third Party Payments - SEN Top Up Funding,09/12/2020,5482891,"1,666.67",Integrated Service Programme
Children & Culture,Children's Social Care,Children Looked After,S23 Fam Pl P&V-F/Care,Childrens Act Section 23 - Placement Fee,09/12/2020,5483195,"7,800.00",Hexagon Care Services
Children & Culture,Education Services,Other Strategic Functions,Education Psychology Trading Account,Training Expenses - Staff External Training (UK Based),09/12/2020,5483475,750,The Educational Psychologists
Children & Culture,Children's Social Care,Support Service and Management Costs,Schools Catering,Kitchen Supplies - Food and Beverages,09/12/2020,5487054,270.7,Prescott-Thomas LTD.
Children & Culture,Children's Social Care,Support Service and Management Costs,Schools Catering,Kitchen Supplies - Food and Beverages,09/12/2020,5487085,283.96,Prescott-Thomas LTD.
Children & Culture,Children's Social Care,Services for young people,Youth Service Management,Room Hire,09/12/2020,5487382,308,City Of London Corporation
Children & Culture,Education Services,Other Strategic Functions,Parents Advice Centre,Stationery,09/12/2020,5487510,756,Love2Reward
Children & Culture,Children's Social Care,Youth Justice,Youth Justice Team,Services - Professional Fees - Consultants Fees,09/12/2020,5489345,680,The Appropriate Adult Service Ltd
Children & Culture,Children's Social Care,Family Support Services,CNN Pool: Joint Family Support,Social Care - Homecare,09/12/2020,5489936,792,QALB Centre Short Break Services
Children & Culture,Children's Social Care,Family Support Services,CNN Pool: Joint Family Support,Social Care - Homecare,09/12/2020,5489937,767.25,QALB Centre Short Break Services
Children & Culture,Children's Social Care,Family Support Services,CNN Pool: Joint Family Support,Social Care - Homecare,09/12/2020,5489938,742.5,QALB Centre Short Break Services
Children & Culture,Children's Social Care,Family Support Services,CNN Pool: Joint Family Support,Social Care - Homecare,09/12/2020,5489939,767.25,QALB Centre Short Break Services
Children & Culture,Children's Social Care,Family Support Services,CNN Pool: Joint Family Support,Social Care - Homecare,09/12/2020,5489940,997.5,QALB Centre Short Break Services
Children & Culture,Children's Social Care,Family Support Services,CNN Pool: Joint Family Support,Social Care - Homecare,09/12/2020,5489941,997.5,QALB Centre Short Break Services
Children & Culture,Children's Social Care,Family Support Services,CNN Pool: Joint Family Support,Social Care - Homecare,09/12/2020,5489944,"1,026.00",QALB Centre Short Break Services
Children & Culture,Education Services,Other Strategic Functions,High Needs Other Boroughs,Third Party Payments - SEN Top Up Funding,09/12/2020,5489948,"64,675.32",St Johns School
Children & Culture,Children's Social Care,Children Looked After,S23 Fam Pl P&V-F/Care,Childrens Act Section 23 - Non-Contact Taxi Costs,09/12/2020,5490192,646,AnR Cars Ltd
Children & Culture,Children's Social Care,Children Looked After,S23 Fam Pl P&V-F/Care,Childrens Act Section 23 - All Contact Expenses,09/12/2020,5490193,342,AnR Cars Ltd
Children & Culture,Children's Social Care,Commissioning and Social Work,Advice and Assessment Section 17,Childrens Act Section 17 - Other Placements Bed & Breakfast,09/12/2020,5490241,480,Apolonia Property Services (Exodus Housing)
Children & Culture,Education Services,Other Strategic Functions,Property & Asset Management,Services - Professional Fees - Analysts Fees,09/12/2020,5490277,"4,750.00",Greater London Authority
Children & Culture,Cultural and Related Services,Open Spaces,Mile End Park,Rent Charges,09/12/2020,5490298,"6,543.95",The Arch Company Properties Limited
Children & Culture,Education Services,Early Years,Chrisp St,Repairs and Maintenance - Responsive - Electrical,09/12/2020,5490320,369.38,Agilisys Professional Services
Children & Culture,Education Services,Early Years,Chrisp St,Repairs and Maintenance - Responsive - Electrical,09/12/2020,5490321,616,Agilisys Professional Services
Children & Culture,Children's Social Care,Children Looked After,C.B.C & Fam.Prev/Support-Mgmnt,Third Party Payments - Voluntary Associations,09/12/2020,5490563,"12,498.00",TCS SERVICES LTD
Children & Culture,Cultural and Related Services,Open Spaces,Mile End Park,Hire of Premises - Arts Pavilion,11/12/2020,5446247,"1,170.00",East London NHS Foundation Trust
Children & Culture,Children's Social Care,Children Looked After,S23-Other-Semi-Ind. Unit,Services - Professional Fees - Translation Fees,11/12/2020,5479203,"1,841.25",Oncall Interpreters LTD
Children & Culture,No Service Specified,No Division Specified,Capital-Minor Works (SC),Building Works - Main Works,11/12/2020,5481074,"13,492.20",XMA Ltd
Children & Culture,Children's Social Care,Children Looked After,S23-Resi-P&V/OLA-Child Home,Childrens Act Section 23 - Placement Fee,11/12/2020,5481075,"64,083.60",Cambian Autism Services Ltd
Children & Culture,Children's Social Care,Support Service and Management Costs,Sch. Meals A/c - St. Elizabeth's,Water Services - Metered,11/12/2020,5481592,779,Swiftclean LTD
Children & Culture,Education Services,Other Strategic Functions,High Needs Other Boroughs,Third Party Payments - Payments to Schools,11/12/2020,5481611,"24,174.33",Cambian Whinfell School Limited
Children & Culture,Education Services,Other Strategic Functions,High Needs Other Boroughs,Third Party Payments - Payments to Schools,11/12/2020,5481612,"6,633.33",Cambian Whinfell School Limited
Children & Culture,Children's Social Care,Children Looked After,S23 Fam Pl P&V-F/Care,Social Care - Day Care,11/12/2020,5481626,"4,050.00",St Christopher's Fellowship
Children & Culture,Children's Social Care,Children Looked After,S23 Fam Pl P&V-F/Care,Social Care - Day Care,11/12/2020,5481627,"4,500.00",St Christopher's Fellowship
Children & Culture,Education Services,Services to Young People and Other Community Learners,Further and Higher Education,Education Trust - Grant,11/12/2020,5481695,"3,749.95",University of Greenwich
Children & Culture,Children's Social Care,Support Service and Management Costs,Sch. Meals A/c - Stepney Greencoat,Kitchen Supplies - Catering Equipment,11/12/2020,5481708,460.4,W V Howe LTD
Children & Culture,Children's Social Care,Support Service and Management Costs,Schools Catering,Materials - Cleaning Materials,11/12/2020,5481741,351.98,The Maintenance Supply Co Ltd
Children & Culture,Children's Social Care,Support Service and Management Costs,Schools Catering,Materials - Cleaning Materials,11/12/2020,5481742,275.81,The Maintenance Supply Co Ltd
Children & Culture,Children's Social Care,Support Service and Management Costs,Sch. Meals A/c - Bow School,Kitchen Supplies - Food and Beverages,11/12/2020,5481748,"2,781.00",Tiffin Sandwiches
Children & Culture,Children's Social Care,Support Service and Management Costs,Sch. Meals A/c - C.F.S. Upper (Harley Grove),Kitchen Supplies - Food and Beverages,11/12/2020,5481749,759,Tiffin Sandwiches
Children & Culture,Children's Social Care,Support Service and Management Costs,Sch. Meals A/c - Morpeth,Kitchen Supplies - Food and Beverages,11/12/2020,5481750,"1,726.67",Tiffin Sandwiches
Children & Culture,Children's Social Care,Support Service and Management Costs,Sch. Meals A/c - Stepney Green,Kitchen Supplies - Food and Beverages,11/12/2020,5481751,289,Tiffin Sandwiches
Children & Culture,Children's Social Care,Support Service and Management Costs,Swanlea,Kitchen Supplies - Food and Beverages,11/12/2020,5481753,518,Tiffin Sandwiches
Children & Culture,Education Services,Other Strategic Functions,Special Education Needs DSG,Third Party Payments - Payments to Schools,11/12/2020,5481862,"37,350.63",Kisimul Group Ltd
Children & Culture,Children's Social Care,Children Looked After,S23-Resi-P&V/OLA-Boarding Sch,Childrens Act Section 17 - Placement Fee,11/12/2020,5481862,"37,350.63",Kisimul Group Ltd
Children & Culture,Education Services,Early Years,Children Centre Central Team,Medical Requisites,11/12/2020,5482587,304.4,Supply Chain Coordination Limited (NHS Supply Chain)
Children & Culture,Education Services,Early Years,Children Centre Central Team,Medical Requisites,11/12/2020,5482588,283.8,Supply Chain Coordination Limited (NHS Supply Chain)
Children & Culture,Education Services,Early Years,Children Centre Central Team,Medical Requisites,11/12/2020,5482589,341.4,Supply Chain Coordination Limited (NHS Supply Chain)
Children & Culture,Children's Social Care,Support Service and Management Costs,Sch. Meals A/c - St. Paul's Way Comm. Trust,Kitchen Supplies - Food and Beverages,11/12/2020,5482594,"2,626.05",Tiffin Sandwiches
Children & Culture,Education Services,Other Strategic Functions,Special Education Needs DSG,Third Party Payments - Payments to Schools,11/12/2020,5482605,349.3,Unlocking Language Ltd
Children & Culture,Children's Social Care,Support Service and Management Costs,Schools Catering,Kitchen Supplies - Food and Beverages,11/12/2020,5482837,273.44,William White Meats Ltd
Children & Culture,Children's Social Care,Support Service and Management Costs,Swanlea,Kitchen Supplies - Food and Beverages,11/12/2020,5482863,535.5,William White Meats Ltd
Children & Culture,Children's Social Care,Support Service and Management Costs,Schools Catering,Kitchen Supplies - Food and Beverages,11/12/2020,5482871,456.34,William White Meats Ltd
Children & Culture,Children's Social Care,Support Service and Management Costs,Sch. Meals A/c - Central Production Unit,Kitchen Supplies - Food and Beverages,11/12/2020,5482874,"1,374.53",William White Meats Ltd
Children & Culture,Children's Social Care,Support Service and Management Costs,Schools Catering,Kitchen Supplies - Food and Beverages,11/12/2020,5482878,301.21,William White Meats Ltd
Children & Culture,Children's Social Care,Support Service and Management Costs,Schools Catering,Kitchen Supplies - Food and Beverages,11/12/2020,5482887,298.58,William White Meats Ltd
Children & Culture,Children's Social Care,Children Looked After,S23-Resi-P&V/OLA-Boarding Sch,Childrens Act Section 23 - Placement Fee,11/12/2020,5482904,"70,355.00",Coxlease school
Children & Culture,Children's Social Care,Children Looked After,Staying Put,Childrens Act Section 23 - Placement Fee,11/12/2020,5482980,"1,752.90",Children First Fostering Agency LTD
Children & Culture,Children's Social Care,Children Looked After,S23 Fam Pl P&V-F/Care,Childrens Act Section 23 - Placement Fee,11/12/2020,5482981,"3,044.40",Children First Fostering Agency LTD
Children & Culture,Children's Social Care,Children Looked After,S23 Fam Pl P&V-F/Care,Childrens Act Section 23 - Placement Fee,11/12/2020,5482982,"3,071.40",Children First Fostering Agency LTD
Children & Culture,Education Services,Other Strategic Functions,High Needs Academies & Free Schs,Third Party Payments - SEN Top Up Funding,11/12/2020,5484717,"93,602.91",Mulberry UTC
Children & Culture,Children's Social Care,Support Service and Management Costs,Schools Catering,Kitchen Supplies - Food and Beverages,11/12/2020,5485516,339.09,William White Meats Ltd
Children & Culture,Children's Social Care,Support Service and Management Costs,Schools Catering,Kitchen Supplies - Food and Beverages,11/12/2020,5485525,278.86,William White Meats Ltd
Children & Culture,Children's Social Care,Support Service and Management Costs,Schools Catering,Kitchen Supplies - Food and Beverages,11/12/2020,5485528,278.7,William White Meats Ltd
Children & Culture,Children's Social Care,Support Service and Management Costs,Schools Catering,Kitchen Supplies - Food and Beverages,11/12/2020,5485540,453,William White Meats Ltd
Children & Culture,Children's Social Care,Support Service and Management Costs,Schools Catering,Kitchen Supplies - Food and Beverages,11/12/2020,5485541,381.21,William White Meats Ltd
Children & Culture,Children's Social Care,Support Service and Management Costs,Schools Catering,Kitchen Supplies - Food and Beverages,11/12/2020,5485547,284.8,William White Meats Ltd
Children & Culture,Children's Social Care,Support Service and Management Costs,Schools Catering,Kitchen Supplies - Food and Beverages,11/12/2020,5485553,503.6,William White Meats Ltd
Children & Culture,Children's Social Care,Support Service and Management Costs,Schools Catering,Kitchen Supplies - Food and Beverages,11/12/2020,5485555,281.75,William White Meats Ltd
Children & Culture,Children's Social Care,Support Service and Management Costs,Schools Catering,Kitchen Supplies - Food and Beverages,11/12/2020,5485773,286.9,Prescott-Thomas LTD.
Children & Culture,Children's Social Care,Support Service and Management Costs,Schools Catering,Kitchen Supplies - Food and Beverages,11/12/2020,5487092,256.23,Prescott-Thomas LTD.
Children & Culture,Children's Social Care,Children Looked After,S23-Other-Semi-Ind. Unit,Childrens Act Section 23 - Placement Fee,11/12/2020,5489795,876,Pangea Support Services
Children & Culture,Children's Social Care,Support Service and Management Costs,Sch. Meals A/c - St. Elizabeth's,Catering - Hospitality,11/12/2020,5489970,460,Tiffin Sandwiches
Children & Culture,Children's Social Care,Children Looked After,LCS/Allowances-Accom,Leaving Care Financial Assistance - Supp Accom/Hous Rents,11/12/2020,5490002,"3,928.05",ThamesCare
Children & Culture,Children's Social Care,Children Looked After,S23-Other-Semi-Ind. Unit,Childrens Act Section 23 - Placement Fee,11/12/2020,5490035,"5,756.58",Pangea Support Services
Children & Culture,Education Services,Other Strategic Functions,Alternative Provision,Third Party Payments - Payments to Schools,11/12/2020,5490166,"3,000.00",LANGDON PARK SCHOOL
Children & Culture,Education Services,Other Strategic Functions,Alternative Provision,Third Party Payments - Payments to Schools,11/12/2020,5490179,"3,000.00",LANGDON PARK SCHOOL
Children & Culture,Education Services,Other Strategic Functions,Alternative Provision,Third Party Payments - Contingencies,11/12/2020,5490196,"2,105.20",The Bridge Education Centre
Children & Culture,Children's Social Care,Children Looked After,S23 Fam Pl In-Hse-S/Term F/C,Childrens Act Section 23 - All Contact Expenses,11/12/2020,5490742,660,HOPE Superjobs Ltd
Children & Culture,Children's Social Care,Family Support Services,CNN Pool: Joint Family Support,Social Care - Homecare,11/12/2020,5491429,"1,728.00",QALB Centre Short Break Services
Children & Culture,Children's Social Care,Family Support Services,CNN Pool: Joint Family Support,Social Care - Homecare,11/12/2020,5491433,"2,322.00",QALB Centre Short Break Services
Children & Culture,Children's Social Care,Family Support Services,CNN Pool: Joint Family Support,Social Care - Homecare,11/12/2020,5491436,"1,732.50",QALB Centre Short Break Services
Children & Culture,Children's Social Care,Family Support Services,CNN Pool: Joint Family Support,Social Care - Homecare,11/12/2020,5491437,"1,831.50",QALB Centre Short Break Services
Children & Culture,Children's Social Care,Family Support Services,CNN Pool: Joint Family Support,Social Care - Homecare,11/12/2020,5491439,"1,732.50",QALB Centre Short Break Services
Children & Culture,Children's Social Care,Family Support Services,CNN Pool: Joint Family Support,Social Care - Homecare,11/12/2020,5491441,"1,116.00",QALB Centre Short Break Services
Children & Culture,Children's Social Care,Family Support Services,CNN Pool: Joint Family Support,Social Care - Homecare,11/12/2020,5491442,"1,116.00",QALB Centre Short Break Services
Children & Culture,Children's Social Care,Family Support Services,CNN Pool: Joint Family Support,Social Care - Homecare,11/12/2020,5491443,"1,152.00",QALB Centre Short Break Services
Children & Culture,Children's Social Care,Family Support Services,CNN Pool: Joint Family Support,Social Care - Homecare,11/12/2020,5491444,"1,080.00",QALB Centre Short Break Services
Children & Culture,Children's Social Care,Family Support Services,CNN Pool: Joint Family Support,Social Care - Homecare,11/12/2020,5491445,"1,188.00",QALB Centre Short Break Services
Children & Culture,Children's Social Care,Family Support Services,CNN Pool: Joint Family Support,Social Care - Homecare,11/12/2020,5491450,950,QALB Centre Short Break Services
Children & Culture,Children's Social Care,Children Looked After,S23 Fam Pl P&V-F/Care,Childrens Act Section 23 - Non-Contact Taxi Costs,11/12/2020,5491503,"1,424.16",Aim High Fostering Limited
Children & Culture,Children's Social Care,Children Looked After,S23-Other-Semi-Ind. Unit,Childrens Act Section 23 - Placement Fee,11/12/2020,5491512,"2,379.11",ThamesCare
Children & Culture,No Service Specified,No Division Specified,Capital-Minor Works (SC),Building Works - Main Works,11/12/2020,5491638,"60,000.00",LBTH Pupil Referral Unit
Children & Culture,Education Services,Other Strategic Functions,Support for Learning Serv DSG,Management & Admin Salaries - Pay & Oncost,11/12/2020,5491641,342,Redacted Section 40 FOI Act
Children & Culture,Education Services,Other Strategic Functions,Special Education Needs DSG,Third Party Payments - Payments to Schools,11/12/2020,5491843,"9,178.17",Benjamin UK Ltd
Children & Culture,Children's Social Care,Children Looked After,S23-Resi-P&V/OLA-Child Home,Childrens Act Section 23 - Placement Fee,11/12/2020,5491843,"9,178.17",Benjamin UK Ltd
Children & Culture,Children's Social Care,Children Looked After,S23 Fam Pl P&V-F/Care,Childrens Act Section 23 - Placement Fee,11/12/2020,5491847,"2,921.27",Five Rivers Childcare Limited
Children & Culture,Children's Social Care,Children Looked After,S23 Fam Pl P&V-F/Care,Childrens Act Section 23 - Placement Fee,11/12/2020,5491848,"6,214.29",Five Rivers Childcare Limited
Children & Culture,Children's Social Care,Service Strategy,FSP Sect 17 - Team 5,Services - Professional Fees - Translation Fees,14/12/2020,5479195,"1,862.40",Oncall Interpreters LTD
Children & Culture,Cultural and Related Services,Open Spaces,Mile End Park,Repairs and Maintenance - Responsive - General,14/12/2020,5481595,920,JC Coster (Metalworks) Ltd
Children & Culture,Children's Social Care,Children Looked After,S23-Resi-P&V/OLA-Child Home,Childrens Act Section 23 - Placement Fee,14/12/2020,5481765,"8,815.65",Blossom Care Group Limited
Children & Culture,Children's Social Care,Children Looked After,Virtual School PPG,Third Party Payments - Payments to Schools,14/12/2020,5482525,"1,000.00",Integrated Service Programme
Children & Culture,Children's Social Care,Support Service and Management Costs,Schools Catering,Kitchen Supplies - Packaging,14/12/2020,5482526,252.14,Tri-Star Packaging Supplies LTD
Children & Culture,Children's Social Care,Support Service and Management Costs,Schools Catering,Materials - Cleaning Materials,14/12/2020,5482584,254.3,The Maintenance Supply Co Ltd
Children & Culture,No Service Specified,No Division Specified,Capital-Minor Works (SC),Building Works - Asbestos- Surveys & Removal,14/12/2020,5482586,"1,795.00",Environtec Ltd
Children & Culture,Children's Social Care,Children Looked After,S23 Fam Pl P&V-F/Care,Childrens Act Section 23 - Placement Fee,14/12/2020,5482599,"5,957.14",Fostering Innovations Ltd
Children & Culture,Children's Social Care,Children Looked After,S23 Fam Pl P&V-F/Care,Childrens Act Section 23 - Placement Fee,14/12/2020,5482600,"3,381.43",Fostering Innovations Ltd
Children & Culture,Children's Social Care,Children Looked After,S23 Fam Pl P&V-F/Care,Social Care - Day Care,14/12/2020,5482601,"3,313.80",Fostering Innovations Ltd
Children & Culture,Children's Social Care,Children Looked After,S23 Fam Pl P&V-F/Care,Social Care - Day Care,14/12/2020,5482602,"3,381.43",Fostering Innovations Ltd
Children & Culture,Children's Social Care,Children Looked After,S23 Fam Pl P&V-F/Care,Social Care - Day Care,14/12/2020,5482603,"3,313.80",Fostering Innovations Ltd
Children & Culture,Children's Social Care,Children Looked After,S23 Fam Pl P&V-F/Care,Childrens Act Section 23 - Placement Fee,14/12/2020,5482604,"3,381.43",Fostering Innovations Ltd
Children & Culture,Children's Social Care,Children Looked After,S23 Family Placements P&V,Childrens Act Section 23 - Placement Fee,14/12/2020,5482619,"3,427.50",Ryancare Fostering Ltd
Children & Culture,Children's Social Care,Children Looked After,S23 Family Placements P&V,Childrens Act Section 23 - Placement Fee,14/12/2020,5482620,"4,500.00",Ryancare Fostering Ltd
Children & Culture,Children's Social Care,Children Looked After,S23 Family Placements P&V,Childrens Act Section 23 - Placement Fee,14/12/2020,5482621,"3,256.20",Ryancare Fostering Ltd
Children & Culture,Children's Social Care,Children Looked After,S23 Fam Pl P&V-F/Care,Childrens Act Section 23 - Placement Fee,14/12/2020,5482622,"3,750.00",Ryancare Fostering Ltd
Children & Culture,Education Services,Other Strategic Functions,Music Trading Account,Educational/Training Supplies - Arts & Crafts,14/12/2020,5482636,429.5,LMS Music Supplies
Children & Culture,Children's Social Care,Service Strategy,CSC Childrens Resources M & A,Childrens Act Section 23 - Placement Fee,14/12/2020,5482654,600,Brighter Future Solutions
Children & Culture,Children's Social Care,Support Service and Management Costs,Swanlea,Kitchen Supplies - Food and Beverages,14/12/2020,5482656,659.9,Chicken Joes
Children & Culture,Children's Social Care,Support Service and Management Costs,Sch. Meals A/c - C.F.S. Upper (Harley Grove),Kitchen Supplies - Food and Beverages,14/12/2020,5482658,942.46,Chicken Joes
Children & Culture,Education Services,Services to Young People and Other Community Learners,Supported Housing - Young People,Third Party Payments - Voluntary Associations,14/12/2020,5483399,"36,501.14",Providence Row Housing Association
Children & Culture,Children's Social Care,Children Looked After,S23 Fam Pl P&V-F/Care,Childrens Act Section 23 - Placement Fee,14/12/2020,5483439,"6,642.86",Fostering Innovations Ltd
Children & Culture,Children's Social Care,Support Service and Management Costs,Schools Catering,Kitchen Supplies - Food and Beverages,14/12/2020,5485562,290.7,William White Meats Ltd
Children & Culture,Children's Social Care,Support Service and Management Costs,Schools Catering,Repairs and Maintenance - Responsive - General,14/12/2020,5485682,685.22,Lambourne Refrigeration
Children & Culture,Children's Social Care,Support Service and Management Costs,Schools Catering,Kitchen Supplies - Food and Beverages,14/12/2020,5485779,318.05,Prescott-Thomas LTD.
Children & Culture,Children's Social Care,Support Service and Management Costs,Schools Catering,Kitchen Supplies - Food and Beverages,14/12/2020,5487113,383.7,Prescott-Thomas LTD.
Children & Culture,Children's Social Care,Support Service and Management Costs,Schools Catering,Kitchen Supplies - Food and Beverages,14/12/2020,5487133,268.36,Prescott-Thomas LTD.
Children & Culture,Children's Social Care,Support Service and Management Costs,Schools Catering,Kitchen Supplies - Food and Beverages,14/12/2020,5487160,261.6,Prescott-Thomas LTD.
Children & Culture,Children's Social Care,Children Looked After,S23 Fam Pl In-Hse-For Adopt,Childrens Act Section 23 - Spec Pymnts Miscellaneous,14/12/2020,5488148,"23,513.00",Coram Academy Ltd T/A CoramBAAF
Children & Culture,Education Services,Early Years,Children Centre Central Team,Services - Professional Fees - Environmental Services Fees,14/12/2020,5489368,801,SA Associate creation Ltd T/A SA Aquatic
Children & Culture,Education Services,Other Strategic Functions,Music Trading Account,Panel & Conference Expenses - Conference - UK Based,14/12/2020,5490033,600,The UK Association for Music Education - Music Mark
Children & Culture,Children's Social Care,Children Looked After,S23-Other-Semi-Ind. Unit,Childrens Act Section 23 - Placement Fee,14/12/2020,5490040,"6,145.15",Pangea Support Services
Children & Culture,Education Services,Other Strategic Functions,Music Trading Account,Educational/Training Supplies - Arts & Crafts,14/12/2020,5490050,800,Bow Strings
Children & Culture,Education Services,Other Strategic Functions,Auxilary Aids,Training Expenses - Staff External Training (UK Based),14/12/2020,5491395,658.32,Ewing Foundation
Children & Culture,Education Services,Other Strategic Functions,Auxilary Aids,Training Expenses - Staff External Training (UK Based),14/12/2020,5491396,446.05,Ewing Foundation
Children & Culture,Education Services,Other Strategic Functions,Schools Library,Books - General Purchases,14/12/2020,5491409,320.45,Peters Bookselling Services
Children & Culture,Children's Social Care,Children Looked After,S23 Fam Pl P&V-F/Care,Childrens Act Section 23 - Placement Fee,14/12/2020,5491849,"2,921.27",Five Rivers Childcare Limited
Children & Culture,Children's Social Care,Family Support Services,CNN Pool: Joint Family Support,Social Care - Homecare,14/12/2020,5492003,912,QALB Centre Short Break Services
Children & Culture,Children's Social Care,Children Looked After,S23 Fam Pl P&V-F/Care,Childrens Act Section 23 - Placement Fee,14/12/2020,5492087,"5,649.48",Talawa Fostering Services
Children & Culture,Children's Social Care,Children Looked After,S23 Fam Pl P&V-F/Care,Childrens Act Section 23 - Placement Fee,14/12/2020,5492089,"3,257.14",Five Rivers Childcare Limited
Children & Culture,Children's Social Care,Children Looked After,S23 Fam Pl P&V-F/Care,Childrens Act Section 23 - Placement Fee,14/12/2020,5492090,"3,159.43",Five Rivers Childcare Limited
Children & Culture,Children's Social Care,Children Looked After,S23 Fam Pl P&V-F/Care,Childrens Act Section 23 - Placement Fee,14/12/2020,5492091,"4,714.29",Five Rivers Childcare Limited
Children & Culture,Children's Social Care,Children Looked After,S23 Fam Pl P&V-F/Care,Childrens Act Section 23 - Placement Fee,14/12/2020,5492093,"3,159.43",Five Rivers Childcare Limited
Children & Culture,Children's Social Care,Children Looked After,S23 Fam Pl P&V-F/Care,Childrens Act Section 23 - Placement Fee,14/12/2020,5492094,"3,461.57",Five Rivers Childcare Limited
Children & Culture,Children's Social Care,Children Looked After,S23 Fam Pl P&V-F/Care,Childrens Act Section 23 - Placement Fee,14/12/2020,5492095,"4,714.29",Five Rivers Childcare Limited
Children & Culture,Children's Social Care,Children Looked After,S23 Fam Pl P&V-F/Care,Childrens Act Section 23 - Placement Fee,14/12/2020,5492098,290,HAMLETTS LTD
Children & Culture,Children's Social Care,Children Looked After,S23 Fam Pl P&V-F/Care,Childrens Act Section 23 - Placement Fee,14/12/2020,5492100,290,HAMLETTS LTD
Children & Culture,Children's Social Care,Children Looked After,S23 Fam Pl P&V-F/Care,Childrens Act Section 23 - Placement Fee,14/12/2020,5492102,290,HAMLETTS LTD
Children & Culture,Children's Social Care,Children Looked After,S23 Fam Pl P&V-F/Care,Childrens Act Section 23 - Placement Fee,14/12/2020,5492105,290,HAMLETTS LTD
Children & Culture,Children's Social Care,Children Looked After,S23 Fam Pl P&V-F/Care,Childrens Act Section 23 - Placement Fee,14/12/2020,5492121,290,HAMLETTS LTD
Children & Culture,Children's Social Care,Services for young people,Youth Service Management,Third Party Payments - Voluntary Associations,16/12/2020,5471242,"13,125.00",Tower Project
Children & Culture,Children's Social Care,Family Support Services,Short Breaks and Family Support,Third Party Payments - Voluntary Associations,16/12/2020,5475170,"19,296.00",Tower Project
Children & Culture,Education Services,Other Strategic Functions,High Needs Academies & Free Schs,Third Party Payments - SEN Top Up Funding,16/12/2020,5482521,"89,080.00",Tower Project
Children & Culture,No Service Specified,No Division Specified,Capital-Minor Works (SC),Building Works - Asbestos- Surveys & Removal,16/12/2020,5482929,"1,795.00",Environtec Ltd
Children & Culture,No Service Specified,No Division Specified,Capital-Minor Works (SC),Building Works - Asbestos- Surveys & Removal,16/12/2020,5482930,"2,700.00",Environtec Ltd
Children & Culture,Education Services,Other Strategic Functions,SACRE,Services - Professional Fees - Consultants Fees,16/12/2020,5483146,"5,200.00",Deborah Weston RE Consultant
Children & Culture,Children's Social Care,Support Service and Management Costs,Sch. Meals A/c � Columbia,Kitchen Supplies - Catering Equipment,16/12/2020,5483168,325.68,W V Howe LTD
Children & Culture,Children's Social Care,Children Looked After,Virtual School PPG,Agency Staff - Associations,16/12/2020,5483209,762,Active & Creative Teachers Recruitment
Children & Culture,Children's Social Care,Children Looked After,Virtual School PPG,Agency Staff - Associations,16/12/2020,5483210,762,Active & Creative Teachers Recruitment
Children & Culture,Education Services,Services to Young People and Other Community Learners,Further and Higher Education,Education Trust - Grant,16/12/2020,5483476,"5,410.00",Tower Hamlets Mission
Children & Culture,Children's Social Care,Support Service and Management Costs,Schools Catering,Kitchen Supplies - Food and Beverages,16/12/2020,5485577,252.57,William White Meats Ltd
Children & Culture,Children's Social Care,Support Service and Management Costs,Schools Catering,Kitchen Supplies - Food and Beverages,16/12/2020,5487153,584,Prescott-Thomas LTD.
Children & Culture,Children's Social Care,Support Service and Management Costs,Schools Catering,Kitchen Supplies - Food and Beverages,16/12/2020,5487176,252.6,Prescott-Thomas LTD.
Children & Culture,Children's Social Care,Support Service and Management Costs,Schools Catering,Kitchen Supplies - Food and Beverages,16/12/2020,5487203,418.9,Prescott-Thomas LTD.
Children & Culture,Education Services,Early Years,Isle of Dogs. CC,Educational/Training Supplies - Resources,16/12/2020,5489780,378.9,Wesco UK
Children & Culture,Children's Social Care,Children Looked After,LCS/Allowances-Accom,Stationery,16/12/2020,5489833,800,Love2Reward
Children & Culture,Children's Social Care,Children Looked After,LCS/Allowances-Accom,Stationery,16/12/2020,5489833,"1,200.00",Love2Reward
Children & Culture,Children's Social Care,Children Looked After,LCS/Allowances-Accom,Leaving Care Financial Assistance - Reg Plan Maint L-Allow,16/12/2020,5489933,290,Heartwood Outreach Services Ltd
Children & Culture,Children's Social Care,Children Looked After,LCS/Allowances-Accom,Leaving Care Financial Assistance - Reg Plan Maint L-Allow,16/12/2020,5489934,312,Heartwood Outreach Services Ltd
Children & Culture,Children's Social Care,Commissioning and Social Work,Advice and Assessment Section 17,Childrens Act Section 17 - Other Placements Bed & Breakfast,16/12/2020,5490242,875,Apolonia Property Services (Exodus Housing)
Children & Culture,Children's Social Care,Commissioning and Social Work,Advice and Assessment Section 17,Childrens Act Section 17 - Other Placements Bed & Breakfast,16/12/2020,5490243,"1,856.00",Apolonia Property Services (Exodus Housing)
Children & Culture,Children's Social Care,Commissioning and Social Work,Independant Social Worker and Public Law Outline,Services - Professional Fees - Financial Services Fees,16/12/2020,5490414,"5,102.00",Umeed Ltd
Children & Culture,Children's Social Care,Children Looked After,S23 Fam Pl P&V-F/Care,Childrens Act Section 23 - Placement Fee,16/12/2020,5490554,"2,211.03",Redacted Section 40 FOI Act
Children & Culture,Children's Social Care,Children Looked After,Leaving Care-UASC,Leaving Care Financial Assistance - Supp Accom/Hous Rents,16/12/2020,5491525,"1,028.89",HAMLETTS LTD
Children & Culture,Education Services,Other Strategic Functions,SEN External Travel,Non Staff Transport Costs - Reimbursement,16/12/2020,5491781,"11,094.00",Mile End Car Hire Limited
Children & Culture,Education Services,Other Strategic Functions,SEN External Travel,Non Staff Transport Costs - Reimbursement,16/12/2020,5491782,"11,631.00",Mile End Car Hire Limited
Children & Culture,Education Services,Other Strategic Functions,Alternative Provision,Third Party Payments - Contingencies,16/12/2020,5491970,"1,052.60",The Bridge Education Centre
Children & Culture,Education Services,Other Strategic Functions,Alternative Provision,Third Party Payments - Contingencies,16/12/2020,5491975,"1,052.60",The Bridge Education Centre
Children & Culture,Education Services,Other Strategic Functions,Alternative Provision,Third Party Payments - Contingencies,16/12/2020,5491976,"1,263.12",The Bridge Education Centre
Children & Culture,Education Services,Other Strategic Functions,Alternative Provision,Third Party Payments - Contingencies,16/12/2020,5491977,"1,578.90",The Bridge Education Centre
Children & Culture,Education Services,Other Strategic Functions,Alternative Provision,Third Party Payments - Contingencies,16/12/2020,5491978,"2,210.46",The Bridge Education Centre
Children & Culture,Education Services,Other Strategic Functions,Alternative Provision,Third Party Payments - Contingencies,16/12/2020,5491980,"2,420.98",The Bridge Education Centre
Children & Culture,Education Services,Other Strategic Functions,Alternative Provision,Third Party Payments - Contingencies,16/12/2020,5491981,"2,315.72",The Bridge Education Centre
Children & Culture,Education Services,Other Strategic Functions,Alternative Provision,Third Party Payments - Contingencies,16/12/2020,5491982,"1,684.16",The Bridge Education Centre
Children & Culture,Children's Social Care,Children Looked After,Leaving Care-UASC,Leaving Care Financial Assistance - Supp Accom/Hous Rents,16/12/2020,5492107,"1,038.60",HAMLETTS LTD
Children & Culture,Children's Social Care,Children Looked After,Leaving Care-UASC,Leaving Care Financial Assistance - Supp Accom/Hous Rents,16/12/2020,5492109,995.7,HAMLETTS LTD
Children & Culture,Children's Social Care,Children Looked After,Leaving Care-UASC,Leaving Care Financial Assistance - Supp Accom/Hous Rents,16/12/2020,5492111,"1,038.60",HAMLETTS LTD
Children & Culture,Children's Social Care,Children Looked After,Leaving Care-UASC,Leaving Care Financial Assistance - Supp Accom/Hous Rents,16/12/2020,5492112,"1,038.60",HAMLETTS LTD
Children & Culture,Children's Social Care,Children Looked After,Leaving Care-UASC,Leaving Care Financial Assistance - Supp Accom/Hous Rents,16/12/2020,5492113,"1,038.60",HAMLETTS LTD
Children & Culture,Children's Social Care,Children Looked After,Leaving Care-UASC,Leaving Care Financial Assistance - Supp Accom/Hous Rents,16/12/2020,5492114,"1,038.60",HAMLETTS LTD
Children & Culture,Children's Social Care,Children Looked After,Leaving Care-UASC,Leaving Care Financial Assistance - Supp Accom/Hous Rents,16/12/2020,5492115,"1,038.60",HAMLETTS LTD
Children & Culture,Children's Social Care,Children Looked After,Leaving Care-UASC,Leaving Care Financial Assistance - Supp Accom/Hous Rents,16/12/2020,5492116,"1,038.60",HAMLETTS LTD
Children & Culture,Children's Social Care,Children Looked After,Leaving Care-UASC,Leaving Care Financial Assistance - Supp Accom/Hous Rents,16/12/2020,5492117,"1,042.80",HAMLETTS LTD
Children & Culture,Children's Social Care,Children Looked After,Leaving Care-UASC,Leaving Care Financial Assistance - Supp Accom/Hous Rents,16/12/2020,5492118,"1,038.60",HAMLETTS LTD
Children & Culture,Children's Social Care,Family Support Services,CNN Pool: Children Direct Paym,Social Care - Direct Payments,16/12/2020,5492198,"1,718.04",DH TOWER HAMLETS
Children & Culture,Children's Social Care,Youth Justice,Youth Justice Team,Third Party Payments - Other Local Authorities,16/12/2020,5492241,500,London Borough of Barnet
Children & Culture,No Service Specified,No Division Specified,Capital-Minor Works (SC),Other External Fees - Consultants Fees,16/12/2020,5492272,"1,092.77",Arcus Consulting LLP
Children & Culture,Education Services,Other Strategic Functions,Special Education Needs DSG,Third Party Payments - Payments to Schools,16/12/2020,5492341,"8,882.10",Benjamin UK Ltd
Children & Culture,Children's Social Care,Children Looked After,S23-Resi-P&V/OLA-Child Home,Childrens Act Section 23 - Placement Fee,16/12/2020,5492341,"8,882.10",Benjamin UK Ltd
Children & Culture,Children's Social Care,Children Looked After,S23 Fam Pl P&V-F/Care,Childrens Act Section 23 - Placement Fee,16/12/2020,5492347,"3,173.78",Children First Fostering Agency LTD
Children & Culture,Education Services,Other Strategic Functions,Alternative Provision,Third Party Payments - Payments to Schools,16/12/2020,5492458,"3,000.00",Central Foundation Girls School
Children & Culture,Education Services,Other Strategic Functions,Alternative Provision,Third Party Payments - Payments to Schools,16/12/2020,5492459,"3,000.00",George Green School
Children & Culture,Education Services,Other Strategic Functions,Alternative Provision,Third Party Payments - Payments to Schools,16/12/2020,5492462,"3,000.00",Morpeth School
Children & Culture,Education Services,Other Strategic Functions,Pupil & Student Services GF,Non Staff Transport Costs - Tfl Concessionary fares,16/12/2020,5492783,"2,239.80",Oyster Sales Service
Children & Culture,Education Services,Other Strategic Functions,Pupil & Student Services GF,Non Staff Transport Costs - Tfl Concessionary fares,16/12/2020,5492783,"2,931.00",Oyster Sales Service
Children & Culture,Education Services,Other Strategic Functions,Pupil & Student Services GF,Non Staff Transport Costs - Tfl Concessionary fares,16/12/2020,5492783,826.8,Oyster Sales Service
Children & Culture,Education Services,Other Strategic Functions,Pupil & Student Services GF,Non Staff Transport Costs - Tfl Concessionary fares,16/12/2020,5492784,998.2,Oyster Sales Service
Children & Culture,Children's Social Care,Family Support Services,CNN Pool: Joint Family Support,Social Care - Homecare,16/12/2020,5492793,643.5,QALB Centre Short Break Services
Children & Culture,Children's Social Care,Family Support Services,CNN Pool: Joint Family Support,Social Care - Homecare,16/12/2020,5492795,"2,016.00",QALB Centre Short Break Services
Children & Culture,Children's Social Care,Family Support Services,CNN Pool: Joint Family Support,Social Care - Homecare,16/12/2020,5492796,"2,448.00",QALB Centre Short Break Services
Children & Culture,Children's Social Care,Family Support Services,CNN Pool: Joint Family Support,Social Care - Homecare,16/12/2020,5492797,"2,196.00",QALB Centre Short Break Services
Children & Culture,Children's Social Care,Family Support Services,CNN Pool: Joint Family Support,Social Care - Homecare,16/12/2020,5492799,"1,720.00",QALB Centre Short Break Services
Children & Culture,Children's Social Care,Family Support Services,CNN Pool: Joint Family Support,Social Care - Homecare,16/12/2020,5492800,"1,683.00",QALB Centre Short Break Services
Children & Culture,Children's Social Care,Family Support Services,CNN Pool: Joint Family Support,Social Care - Homecare,16/12/2020,5492803,396,QALB Centre Short Break Services
Children & Culture,Children's Social Care,Family Support Services,CNN Pool: Joint Family Support,Social Care - Homecare,16/12/2020,5492805,396,QALB Centre Short Break Services
Children & Culture,Children's Social Care,Family Support Services,CNN Pool: Joint Family Support,Social Care - Homecare,16/12/2020,5492811,340,QALB Centre Short Break Services
Children & Culture,Children's Social Care,Family Support Services,CNN Pool: Joint Family Support,Social Care - Homecare,16/12/2020,5492812,391,QALB Centre Short Break Services
Children & Culture,Children's Social Care,Family Support Services,CNN Pool: Joint Family Support,Social Care - Homecare,16/12/2020,5492814,306,QALB Centre Short Break Services
Children & Culture,Children's Social Care,Children Looked After,S23-Other-Semi-Ind. Unit,Childrens Act Section 23 - Placement Fee,16/12/2020,5492837,"6,757.86",Youth reality homes
Children & Culture,Children's Social Care,Children Looked After,S23 Fam Pl P&V-F/Care,Childrens Act Section 23 - Placement Fee,16/12/2020,5492878,270,Five Rivers Childcare Limited
Children & Culture,Children's Social Care,Children Looked After,S23 Fam Pl P&V-F/Care,Childrens Act Section 23 - Placement Fee,16/12/2020,5492879,450,Five Rivers Childcare Limited
Children & Culture,Children's Social Care,Children Looked After,S23 Fam Pl P&V-F/Care,Childrens Act Section 23 - Placement Fee,16/12/2020,5492880,270,Five Rivers Childcare Limited
Children & Culture,Children's Social Care,Children Looked After,S23 Fam Pl P&V-F/Care,Childrens Act Section 23 - Placement Fee,16/12/2020,5492882,270,Five Rivers Childcare Limited
Children & Culture,Children's Social Care,Children Looked After,S23 Fam Pl P&V-F/Care,Childrens Act Section 23 - Placement Fee,16/12/2020,5492883,450,Five Rivers Childcare Limited
Children & Culture,Children's Social Care,Children Looked After,S23 Fam Pl P&V-F/Care,Childrens Act Section 23 - Placement Fee,16/12/2020,5492884,450,Five Rivers Childcare Limited
Children & Culture,Children's Social Care,Children Looked After,Leaving Care-UASC,Leaving Care Financial Assistance - Supp Accom/Hous Rents,18/12/2020,5474652,"1,080.00",Pangea Support Services
Children & Culture,Children's Social Care,Children Looked After,S23-Other-Semi-Ind. Unit,Childrens Act Section 23 - Placement Fee,18/12/2020,5483169,"3,955.71",Alpha Care Service Ltd
Children & Culture,Children's Social Care,Children Looked After,S23-Other-Semi-Ind. Unit,Childrens Act Section 23 - Placement Fee,18/12/2020,5483172,"3,955.71",Alpha Care Service Ltd
Children & Culture,No Service Specified,No Division Specified,Capital-Minor Works (SC),Other External Fees - Consultants Fees,18/12/2020,5483177,900,E Riley Associates Chartered Surveyors
Children & Culture,Children's Social Care,Support Service and Management Costs,Schools Catering,Kitchen Supplies - Packaging,18/12/2020,5483389,354.11,Tri-Star Packaging Supplies LTD
Children & Culture,Education Services,Early Years,Children Centre Central Team,Medical Requisites,18/12/2020,5484700,454.5,Supply Chain Coordination Limited (NHS Supply Chain)
Children & Culture,Children's Social Care,Support Service and Management Costs,Sch. Meals A/c - Bow School,Kitchen Supplies - Food and Beverages,18/12/2020,5484706,"2,697.55",Tiffin Sandwiches
Children & Culture,Children's Social Care,Support Service and Management Costs,Sch. Meals A/c - C.F.S. Upper (Harley Grove),Kitchen Supplies - Food and Beverages,18/12/2020,5484707,759,Tiffin Sandwiches
Children & Culture,Children's Social Care,Support Service and Management Costs,Sch. Meals A/c - Morpeth,Kitchen Supplies - Food and Beverages,18/12/2020,5484708,"1,753.84",Tiffin Sandwiches
Children & Culture,Children's Social Care,Support Service and Management Costs,Sch. Meals A/c - St. Paul's Way Comm. Trust,Kitchen Supplies - Food and Beverages,18/12/2020,5484709,"2,328.55",Tiffin Sandwiches
Children & Culture,Children's Social Care,Support Service and Management Costs,Sch. Meals A/c - Stepney Green,Kitchen Supplies - Food and Beverages,18/12/2020,5484710,289,Tiffin Sandwiches
Children & Culture,Children's Social Care,Support Service and Management Costs,Swanlea,Kitchen Supplies - Food and Beverages,18/12/2020,5484712,259,Tiffin Sandwiches
Children & Culture,Education Services,Early Years,EYS Mangt & Admin GF,Printing - Internal,18/12/2020,5484713,350,Redacted Section 40 FOI Act
Children & Culture,Education Services,Other Strategic Functions,High Needs Out Of Borough Academies & Free Schools,Third Party Payments - SEN Placement Funding,18/12/2020,5484716,"37,034.05",Parkwood Hall Co-operative Academy
Children & Culture,No Service Specified,No Division Specified,Capital-Minor Works (SC),Other External Fees - Consultants Fees,18/12/2020,5484729,275,Benchmark Site Engineering Services Ltd
Children & Culture,Education Services,Services to Young People and Other Community Learners,Further and Higher Education,Education Trust - Grant,18/12/2020,5484749,"4,220.00",Birkbeck university Of London
Children & Culture,Children's Social Care,Support Service and Management Costs,Schools Catering,Kitchen Supplies - Food and Beverages,18/12/2020,5485573,381.36,William White Meats Ltd
Children & Culture,Children's Social Care,Support Service and Management Costs,Schools Catering,Kitchen Supplies - Food and Beverages,18/12/2020,5485576,286.72,William White Meats Ltd
Children & Culture,Children's Social Care,Support Service and Management Costs,Schools Catering,Kitchen Supplies - Food and Beverages,18/12/2020,5485582,383.65,William White Meats Ltd
Children & Culture,Children's Social Care,Support Service and Management Costs,Sch. Meals A/c - Central Production Unit,Kitchen Supplies - Food and Beverages,18/12/2020,5485584,"1,349.22",William White Meats Ltd
Children & Culture,Children's Social Care,Support Service and Management Costs,Swanlea,Kitchen Supplies - Food and Beverages,18/12/2020,5485592,716.08,William White Meats Ltd
Children & Culture,Children's Social Care,Support Service and Management Costs,Schools Catering,Kitchen Supplies - Food and Beverages,18/12/2020,5485594,391.5,William White Meats Ltd
Children & Culture,Children's Social Care,Family Support Services,Disabled Children�s Outreach Service,Social Care - Nursing Care,18/12/2020,5485667,"108,034.00",East London NHS Foundation Trust
Children & Culture,Children's Social Care,Family Support Services,Disabled Children�s Outreach Service,Social Care - Nursing Care,18/12/2020,5485668,"54,017.00",East London NHS Foundation Trust
Children & Culture,Education Services,Other Strategic Functions,Non-Statemented Ed.Placemts,Third Party Payments - SEN Placement Funding,18/12/2020,5485669,"10,585.25",East London NHS Foundation Trust
Children & Culture,Children's Social Care,Support Service and Management Costs,Schools Catering,Kitchen Supplies - Food and Beverages,18/12/2020,5485943,330.72,William White Meats Ltd
Children & Culture,Children's Social Care,Support Service and Management Costs,Schools Catering,Kitchen Supplies - Food and Beverages,18/12/2020,5487196,310,Prescott-Thomas LTD.
Children & Culture,Children's Social Care,Support Service and Management Costs,Sch. Meals A/c - St. Elizabeth's,Catering - Hospitality,18/12/2020,5487774,"1,340.00",Tiffin Sandwiches
Children & Culture,Children's Social Care,Support Service and Management Costs,Schools Catering,Kitchen Supplies - Food and Beverages,18/12/2020,5488098,352.31,William White Meats Ltd
Children & Culture,Children's Social Care,Support Service and Management Costs,Schools Catering,Kitchen Supplies - Food and Beverages,18/12/2020,5488110,254.96,William White Meats Ltd
Children & Culture,Children's Social Care,Support Service and Management Costs,Schools Catering,Kitchen Supplies - Food and Beverages,18/12/2020,5489200,344.06,William White Meats Ltd
Children & Culture,Children's Social Care,Support Service and Management Costs,Schools Catering,Kitchen Supplies - Food and Beverages,18/12/2020,5489212,440.22,William White Meats Ltd
Children & Culture,Children's Social Care,Support Service and Management Costs,Schools Catering,Kitchen Supplies - Food and Beverages,18/12/2020,5489215,319.02,William White Meats Ltd
Children & Culture,Children's Social Care,Support Service and Management Costs,Schools Catering,Kitchen Supplies - Food and Beverages,18/12/2020,5489219,271.49,William White Meats Ltd
Children & Culture,Children's Social Care,Support Service and Management Costs,Schools Catering,Kitchen Supplies - Food and Beverages,18/12/2020,5489228,635,William White Meats Ltd
Children & Culture,Children's Social Care,Children Looked After,Virtual School PPG,Third Party Payments - Payments to Schools,18/12/2020,5489344,300,Bryn Melyn Care Ltd
Children & Culture,Children's Social Care,Children Looked After,LCS/Allowances-Accom,Leaving Care Financial Assistance - Supp Accom/Hous Rents,18/12/2020,5489675,"1,554.49",Heartwood Outreach Services Ltd
Children & Culture,Children's Social Care,Children Looked After,LCS/Allowances-Accom,Leaving Care Financial Assistance - Supported Living,18/12/2020,5489675,"2,205.50",Heartwood Outreach Services Ltd
Children & Culture,Children's Social Care,Children Looked After,LCS/Allowances-Accom,Leaving Care Financial Assistance - Supp Accom/Hous Rents,18/12/2020,5490272,968,Youth reality homes
Children & Culture,Children's Social Care,Children Looked After,LCS/Allowances-Accom,Leaving Care Financial Assistance - Supported Living,18/12/2020,5490272,"2,132.00",Youth reality homes
Children & Culture,Children's Social Care,Children Looked After,S23-Other-Semi-Ind. Unit,Childrens Act Section 23 - Placement Fee,18/12/2020,5492245,288,The Way Care Services Ltd
Children & Culture,Children's Social Care,Children Looked After,S23-Other-Semi-Ind. Unit,Childrens Act Section 23 - Placement Fee,18/12/2020,5492246,280,The Way Care Services Ltd
Children & Culture,Children's Social Care,Children's and Young People's Safety,Community Safeguarding,Education & Training - Non Staff Tuition Fees,18/12/2020,5492357,500,Chambers of G.D. Tetteh
Children & Culture,Children's Social Care,Family Support Services,CNN Pool: Joint Family Support,Social Care - Homecare,18/12/2020,5492802,396,QALB Centre Short Break Services
Children & Culture,Children's Social Care,Family Support Services,CNN Pool: Joint Family Support,Social Care - Homecare,18/12/2020,5492804,495,QALB Centre Short Break Services
Children & Culture,Children's Social Care,Family Support Services,CNN Pool: Joint Family Support,Social Care - Homecare,18/12/2020,5492807,703,QALB Centre Short Break Services
Children & Culture,Children's Social Care,Family Support Services,CNN Pool: Joint Family Support,Social Care - Homecare,18/12/2020,5492808,646,QALB Centre Short Break Services
Children & Culture,Children's Social Care,Family Support Services,CNN Pool: Joint Family Support,Social Care - Homecare,18/12/2020,5492809,703,QALB Centre Short Break Services
Children & Culture,Children's Social Care,Family Support Services,CNN Pool: Joint Family Support,Social Care - Homecare,18/12/2020,5492815,289,QALB Centre Short Break Services
Children & Culture,Children's Social Care,Children Looked After,S23 Fam Pl P&V-F/Care,Childrens Act Section 23 - Placement Fee,18/12/2020,5492885,450,Five Rivers Childcare Limited
Children & Culture,Children's Social Care,Children Looked After,S23 Fam Pl P&V-F/Care,Childrens Act Section 23 - Placement Fee,18/12/2020,5492886,450,Five Rivers Childcare Limited
Children & Culture,Education Services,Other Strategic Functions,Alternative Provision,Third Party Payments - Payments to Schools,18/12/2020,5493095,"3,000.00",Sir John Cass Foundation&Redcoat School
Children & Culture,Education Services,Other Strategic Functions,Alternative Provision,Third Party Payments - Payments to Schools,18/12/2020,5493096,"3,000.00",Sir John Cass Foundation&Redcoat School
Children & Culture,Education Services,Other Strategic Functions,Alternative Provision,Third Party Payments - Payments to Schools,18/12/2020,5493097,"3,000.00",Sir John Cass Foundation&Redcoat School
Children & Culture,No Service Specified,No Division Specified,Capital-Minor Works (SC),Other External Fees - Consultants Fees,18/12/2020,5493651,"1,050.00",Thames Water Utilities LTD
Children & Culture,No Service Specified,No Division Specified,Capital-Minor Works (SC),Building Works - Main Works,18/12/2020,5493658,"22,636.95",ST Pauls Way Trust School
Children & Culture,Education Services,Other Strategic Functions,BHLPS (Budget Holding Lead Professional Scheme),Uniforms & Clothing,18/12/2020,5493759,"2,218.80",Khalsa
Children & Culture,Children's Social Care,Support Service and Management Costs,Schools Catering,Repairs and Maintenance - Responsive - General,18/12/2020,5493767,"1,709.00",Swiftclean LTD
Children & Culture,Children's Social Care,Children Looked After,S23 Fam Pl P&V-F/Care,Childrens Act Section 23 - Spec Pymnts Legal,18/12/2020,5493793,424,E4 Law Limited T/A Lextox
Children & Culture,Children's Social Care,Family Support Services,CNN Pool: Joint Family Support,Social Care - Homecare,18/12/2020,5493814,495,QALB Centre Short Break Services
Children & Culture,Children's Social Care,Family Support Services,CNN Pool: Joint Family Support,Social Care - Homecare,18/12/2020,5493816,374,QALB Centre Short Break Services
Children & Culture,Children's Social Care,Commissioning and Social Work,Family Support & Protection Team 1,Recruitment Agency Costs,18/12/2020,5493834,"4,608.36",Sanctuary Personnel Ltd
Children & Culture,Children's Social Care,Other Children's and Family Services,Adoption Support,Social Care - Day Care,18/12/2020,5493847,"1,778.00",Families for Childrens Trust
Children & Culture,Children's Social Care,Other Children's and Family Services,Adoption Support,Third Party Payments - Other Establishments,18/12/2020,5493848,"1,778.00",Families for Childrens Trust
Children & Culture,Education Services,Early Years,Children Centre Central Team,Services - Professional Fees - Environmental Services Fees,18/12/2020,5493849,712,SA Associate creation Ltd T/A SA Aquatic
Children & Culture,Children's Social Care,Children Looked After,S23 Fam Pl P&V-F/Care,Childrens Act Section 23 - Placement Fee,18/12/2020,5493866,"3,642.60",Aim High Fostering Limited
Children & Culture,Children's Social Care,Family Support Services,Short Breaks and Family Support,Third Party Payments - Voluntary Associations,18/12/2020,5493877,405,REMARK LTD
Children & Culture,Children's Social Care,Children Looked After,LCS/Allowances-Accom,Council Tax,18/12/2020,5493974,711.6,Crawley Borough Council
Children & Culture,Education Services,Secondary Schools,Trade Union Facilities,Other Sales and Fees - General Fees and Charges,18/12/2020,5493975,"58,638.62",Stepney Green Maths Computing Science College
Children & Culture,Education Services,Secondary Schools,Trade Union Facilities,Other Sales and Fees - General Fees and Charges,18/12/2020,5493976,"23,569.88",Mulberry School for Girls
Children & Culture,Education Services,Secondary Schools,Trade Union Facilities,Other Sales and Fees - General Fees and Charges,18/12/2020,5493977,"24,050.20",Mulberry School for Girls
Children & Culture,Children's Social Care,Service Strategy,Contribution to CAMHS Pool,Medical Requisites,18/12/2020,5494073,"424,000.00",NHS Tower Hamlets Clinical Commissioning Group (CCG)
Children & Culture,Education Services,Services to Young People and Other Community Learners,Further and Higher Education,Education Trust - Grant,18/12/2020,5494074,"4,500.00",ROYAL COLLEGE OF ART
Children & Culture,Children's Social Care,Commissioning and Social Work,Advice and Assessment Section 17,Childrens Act Section 17 - Other Placements Bed & Breakfast,18/12/2020,5494131,450,Finefair Management
Children & Culture,Cultural and Related Services,Open Spaces,Victoria Park,Repairs and Maintenance - Responsive - Repair & Maintenance,21/12/2020,5483396,885,JC Coster (Metalworks) Ltd
Children & Culture,Children's Social Care,Children Looked After,S23 Fam Pl P&V-F/Care,Childrens Act Section 23 - Placement Fee,21/12/2020,5483437,"16,650.00",Hexagon Care Services
Children & Culture,Education Services,Other Strategic Functions,Education Psychologists GF,Education & Training - Non Staff Tuition Fees,21/12/2020,5485613,"7,900.00",University of East London
Children & Culture,Children's Social Care,Support Service and Management Costs,Schools Catering,Materials - Cleaning Materials,21/12/2020,5485641,342.88,The Maintenance Supply Co Ltd
Children & Culture,Children's Social Care,Children Looked After,Virtual School PPG,Agency Staff - Associations,21/12/2020,5485675,762,Active & Creative Teachers Recruitment
Children & Culture,Children's Social Care,Support Service and Management Costs,Sch. Meals A/c - C.F.S. Upper (Harley Grove),Kitchen Supplies - Food and Beverages,21/12/2020,5485729,919.41,Chicken Joes
Children & Culture,Education Services,Other Strategic Functions,Empty Properties,Property Leases - Buildings,21/12/2020,5485972,"33,333.32",The Diocese Of London~ Board For Schools
Children & Culture,Education Services,Other Strategic Functions,Special Education Needs DSG,Third Party Payments - Payments to Schools,21/12/2020,5486006,399.2,Unlocking Language Ltd
Children & Culture,Children's Social Care,Support Service and Management Costs,Schools Catering,Kitchen Supplies - Food and Beverages,21/12/2020,5487168,293.52,Prescott-Thomas LTD.
Children & Culture,Children's Social Care,Support Service and Management Costs,Schools Catering,Kitchen Supplies - Food and Beverages,21/12/2020,5487239,318.85,Prescott-Thomas LTD.
Children & Culture,Children's Social Care,Support Service and Management Costs,Schools Catering,Kitchen Supplies - Food and Beverages,21/12/2020,5487269,262.96,Prescott-Thomas LTD.
Children & Culture,Children's Social Care,Support Service and Management Costs,Schools Catering,Kitchen Supplies - Food and Beverages,21/12/2020,5487274,257.3,Prescott-Thomas LTD.
Children & Culture,Education Services,Early Years,John Smith CC,Educational/Training Supplies - Resources,21/12/2020,5487738,"2,295.00",Space kraft Ltd
Children & Culture,Children's Social Care,Other Children's and Family Services,Adoption Support Fund,Medical Fees - Recruitment,21/12/2020,5488060,895,Clinical Partners
Children & Culture,Children's Social Care,Support Service and Management Costs,Schools Catering,Repairs and Maintenance - Responsive - General,21/12/2020,5488192,285.63,Lambourne Refrigeration
Children & Culture,Children's Social Care,Children Looked After,LCS/Allowances-Accom,Leaving Care Financial Assistance - Supp Accom/Hous Rents,21/12/2020,5489673,"1,153.33",Heartwood Outreach Services Ltd
Children & Culture,Children's Social Care,Children Looked After,LCS/Allowances-Accom,Leaving Care Financial Assistance - Supported Living,21/12/2020,5489673,"1,636.34",Heartwood Outreach Services Ltd
Children & Culture,Children's Social Care,Children Looked After,LCS/Allowances-Accom,Leaving Care Financial Assistance - Supp Accom/Hous Rents,21/12/2020,5489674,"1,554.49",Heartwood Outreach Services Ltd
Children & Culture,Children's Social Care,Children Looked After,LCS/Allowances-Accom,Leaving Care Financial Assistance - Supported Living,21/12/2020,5489674,"2,205.50",Heartwood Outreach Services Ltd
Children & Culture,Children's Social Care,Services for young people,Youth Service Management,Third Party Payments - Voluntary Associations,21/12/2020,5489798,"13,868.09",Osmani Trust
Children & Culture,Children's Social Care,Other Children's and Family Services,Permanancy and Adoption Support Team 1,Childrens Act Section 23 - Inter-Agency Fees,21/12/2020,5489985,"1,778.00",Families for Childrens Trust
Children & Culture,Children's Social Care,Other Children's and Family Services,Permanancy and Adoption Support Team 1,Childrens Act Section 23 - Inter-Agency Fees,21/12/2020,5489986,889,Families for Childrens Trust
Children & Culture,Children's Social Care,Children Looked After,Fostering and Development Team 1,Education & Training - Trainee Payments/Expenses,21/12/2020,5490594,"1,045.00",Family Futures CIC
Children & Culture,Children's Social Care,Family Support Services,IPST S17 NRPF,Childrens Act Section 17 - Other Placements Bed & Breakfast,21/12/2020,5492955,"4,250.00",Finefair Management
Children & Culture,Children's Social Care,Family Support Services,IPST S17 NRPF,Childrens Act Section 17 - Other Placements Bed & Breakfast,21/12/2020,5492956,"2,550.00",Finefair Management
Children & Culture,Children's Social Care,Family Support Services,IPST S17 NRPF,Childrens Act Section 17 - Other Placements Bed & Breakfast,21/12/2020,5492957,"2,400.00",Finefair Management
Children & Culture,Children's Social Care,Family Support Services,IPST S17 NRPF,Childrens Act Section 17 - Other Placements Bed & Breakfast,21/12/2020,5492959,"2,400.00",Finefair Management
Children & Culture,Children's Social Care,Family Support Services,IPST S17 NRPF,Childrens Act Section 17 - Other Placements Bed & Breakfast,21/12/2020,5492960,"1,350.00",Finefair Management
Children & Culture,Children's Social Care,Family Support Services,IPST S17 NRPF,Childrens Act Section 17 - Other Placements Bed & Breakfast,21/12/2020,5492961,"1,200.00",Finefair Management
Children & Culture,Children's Social Care,Family Support Services,IPST S17 NRPF,Childrens Act Section 17 - Other Placements Bed & Breakfast,21/12/2020,5492962,"1,500.00",Finefair Management
Children & Culture,Children's Social Care,Services for young people,Youth Service Management,Third Party Payments - Voluntary Associations,21/12/2020,5493764,"13,125.00",Tower Project
Children & Culture,Children's Social Care,Family Support Services,IPST S17 NRPF,Childrens Act Section 17 - Other Placements Bed & Breakfast,21/12/2020,5494133,"1,050.00",Finefair Management
Children & Culture,Children's Social Care,Family Support Services,IPST S17 NRPF,Childrens Act Section 17 - Other Placements Bed & Breakfast,21/12/2020,5494134,850,Finefair Management
Children & Culture,Children's Social Care,Children Looked After,Leaving Care-UASC,Leaving Care Financial Assistance - Grant Pay Special Needs,21/12/2020,5494218,750,Thompson & Co Solicitors
Children & Culture,Education Services,Other Strategic Functions,SEN External Travel,Non Staff Transport Costs - Client Transport Costs,21/12/2020,5494335,"2,100.00",ThamesCare
Children & Culture,Children's Social Care,Support Service and Management Costs,Sch. Meals A/c - C.F.S. Upper (Harley Grove),Kitchen Supplies - Food and Beverages,21/12/2020,5494453,834.14,Bewley's Tea & Coffee UK Ltd
Children & Culture,Children's Social Care,Support Service and Management Costs,Sch. Meals A/c - C.F.S. Upper (Harley Grove),Kitchen Supplies - Food and Beverages,21/12/2020,5494454,-834.14,Bewley's Tea & Coffee UK Ltd
Children & Culture,Children's Social Care,Support Service and Management Costs,Sch. Meals A/c - C.F.S. Upper (Harley Grove),Kitchen Supplies - Food and Beverages,21/12/2020,5494455,834.14,Bewley's Tea & Coffee UK Ltd
Children & Culture,Cultural and Related Services,Culture & Heritage,Arts-Park Events,Events & Exhibition Supplies,21/12/2020,5494482,"2,000.00",CATH (Chinese Association TH)
Children & Culture,Children's Social Care,Family Support Services,CNN Pool: Children Direct Paym,Social Care - Direct Payments,21/12/2020,5494634,"49,782.62",DH TOWER HAMLETS
Children & Culture,Children's Social Care,Family Support Services,CNN Pool: Children Direct Paym,Social Care - Direct Payments,21/12/2020,5494641,"1,401.78",D D PAYROLL SERVICES
Children & Culture,Children's Social Care,Family Support Services,CNN Pool: Children Direct Paym,Social Care - Direct Payments,21/12/2020,5494643,"11,468.17",DH TOWER HAMLETS
Children & Culture,Children's Social Care,Family Support Services,CNN Pool: Children Direct Paym,Social Care - Direct Payments,21/12/2020,5494645,"1,113.00",DH TOWER HAMLETS
Children & Culture,Children's Social Care,Family Support Services,CNN Pool: Children Direct Paym,Social Care - Direct Payments,21/12/2020,5494657,"2,385.41",DH TOWER HAMLETS
Children & Culture,Children's Social Care,Family Support Services,CNN Pool: Children Direct Paym,Social Care - Direct Payments,21/12/2020,5494661,"19,854.37",DH TOWER HAMLETS
Children & Culture,Children's Social Care,Family Support Services,CNN Pool: Children Direct Paym,Social Care - Direct Payments,21/12/2020,5494672,"16,622.10",DH TOWER HAMLETS
Children & Culture,Children's Social Care,Family Support Services,CNN Pool: Children Direct Paym,Social Care - Direct Payments,21/12/2020,5494676,"3,726.00",D D PAYROLL SERVICES
Children & Culture,Children's Social Care,Family Support Services,CNN Pool: Children Direct Paym,Social Care - Direct Payments,21/12/2020,5494678,"2,248.66",DH TOWER HAMLETS
Children & Culture,Children's Social Care,Family Support Services,CNN Pool: Children Direct Paym,Social Care - Direct Payments,21/12/2020,5494679,"1,124.33",DH TOWER HAMLETS
Children & Culture,Children's Social Care,Family Support Services,CNN Pool: Children Direct Paym,Social Care - Direct Payments,21/12/2020,5494687,"2,626.70",DH TOWER HAMLETS
Children & Culture,Children's Social Care,Family Support Services,CNN Pool: Children Direct Paym,Social Care - Direct Payments,21/12/2020,5494691,"3,279.00",DH TOWER HAMLETS
Children & Culture,Children's Social Care,Family Support Services,CNN Pool: Children Direct Paym,Social Care - Direct Payments,21/12/2020,5494698,"1,381.79",DH TOWER HAMLETS
Children & Culture,Children's Social Care,Family Support Services,CNN Pool: Children Direct Paym,Social Care - Direct Payments,21/12/2020,5494699,"1,349.20",DH TOWER HAMLETS
Children & Culture,Children's Social Care,Family Support Services,CNN Pool: Children Direct Paym,Social Care - Direct Payments,21/12/2020,5494700,"3,372.99",DH TOWER HAMLETS
Children & Culture,Children's Social Care,Family Support Services,CNN Pool: Children Direct Paym,Social Care - Direct Payments,21/12/2020,5494703,"4,989.56",DH TOWER HAMLETS
Children & Culture,Children's Social Care,Family Support Services,CNN Pool: Children Direct Paym,Social Care - Direct Payments,21/12/2020,5494705,"1,656.00",DH TOWER HAMLETS
Children & Culture,Children's Social Care,Family Support Services,CNN Pool: Children Direct Paym,Social Care - Direct Payments,21/12/2020,5494716,"1,590.00",DH TOWER HAMLETS
Children & Culture,Children's Social Care,Family Support Services,CNN Pool: Children Direct Paym,Social Care - Direct Payments,21/12/2020,5494717,"3,039.00",DH TOWER HAMLETS
Children & Culture,Children's Social Care,Family Support Services,CNN Pool: Children Direct Paym,Social Care - Direct Payments,21/12/2020,5494727,"2,023.79",DH TOWER HAMLETS
Children & Culture,Children's Social Care,Family Support Services,CNN Pool: Children Direct Paym,Social Care - Direct Payments,21/12/2020,5494732,"4,761.00",DH TOWER HAMLETS
Children & Culture,Children's Social Care,Family Support Services,CNN Pool: Children Direct Paym,Social Care - Direct Payments,21/12/2020,5494734,"1,493.20",DH TOWER HAMLETS
Children & Culture,Children's Social Care,Family Support Services,CNN Pool: Children Direct Paym,Social Care - Direct Payments,21/12/2020,5494738,"4,140.00",DH TOWER HAMLETS
Children & Culture,Children's Social Care,Family Support Services,CNN Pool: Children Direct Paym,Social Care - Direct Payments,21/12/2020,5494739,"1,035.00",DH TOWER HAMLETS
Children & Culture,Children's Social Care,Family Support Services,CNN Pool: Children Direct Paym,Social Care - Direct Payments,21/12/2020,5494742,"1,656.00",DH TOWER HAMLETS
Children & Culture,Children's Social Care,Family Support Services,CNN Pool: Children Direct Paym,Social Care - Direct Payments,21/12/2020,5494744,"2,652.19",DH TOWER HAMLETS
Children & Culture,Children's Social Care,Family Support Services,CNN Pool: Children Direct Paym,Social Care - Direct Payments,21/12/2020,5494748,"1,349.20",DH TOWER HAMLETS
Children & Culture,Children's Social Care,Support Service and Management Costs,Sch. Meals A/c - Elizabeth Selby,Water Services - Metered,22/12/2020,5485602,779,Swiftclean LTD
Children & Culture,Education Services,Other Strategic Functions,Special Education Needs DSG,Third Party Payments - SEN Top Up Funding,22/12/2020,5485663,"41,066.67",Transitional Care LTD
Children & Culture,Education Services,Other Strategic Functions,Special Education Needs DSG,Third Party Payments - SEN Top Up Funding,22/12/2020,5485664,"79,700.00",Transitional Care LTD
Children & Culture,Education Services,Other Strategic Functions,Special Education Needs DSG,Third Party Payments - SEN Top Up Funding,22/12/2020,5485665,"41,066.67",Transitional Care LTD
Children & Culture,Education Services,Other Strategic Functions,High Needs Out Of Borough Special Schools,Third Party Payments - SEN Top Up Funding,22/12/2020,5485952,"6,516.90",Woodcroft School Ltd
Children & Culture,Education Services,Other Strategic Functions,High Needs Out Of Borough Special Schools,Third Party Payments - SEN Top Up Funding,22/12/2020,5485953,"16,943.94",Woodcroft School Ltd
Children & Culture,Children's Social Care,Children Looked After,S23 Fam Pl P&V-F/Care,Medical Requisites,22/12/2020,5485989,"3,407.10",Affinity Fostering Services Ltd
Children & Culture,Children's Social Care,Children Looked After,S23 Fam Pl P&V-F/Care,Childrens Act Section 23 - Placement Fee,22/12/2020,5485990,"3,407.10",Affinity Fostering Services Ltd
Children & Culture,Children's Social Care,Children Looked After,S23 Fam Pl P&V-F/Care,Childrens Act Section 23 - Placement Fee,22/12/2020,5485991,"3,235.80",Affinity Fostering Services Ltd
Children & Culture,Children's Social Care,Children Looked After,S23 Fam Pl P&V-F/Care,Childrens Act Section 23 - Placement Fee,22/12/2020,5485992,"3,236.70",Affinity Fostering Services Ltd
Children & Culture,Children's Social Care,Children Looked After,S23 Fam Pl P&V-F/Care,Childrens Act Section 23 - Placement Fee,22/12/2020,5485993,"3,407.10",Affinity Fostering Services Ltd
Children & Culture,Children's Social Care,Children Looked After,S23 Fam Pl P&V-F/Care,Childrens Act Section 23 - Placement Fee,22/12/2020,5485994,"3,642.90",Affinity Fostering Services Ltd
Children & Culture,Children's Social Care,Children Looked After,S23 Fam Pl P&V-F/Care,Childrens Act Section 23 - Placement Fee,22/12/2020,5485995,"5,464.20",Affinity Fostering Services Ltd
Children & Culture,Children's Social Care,Children Looked After,S23 Fam Pl P&V-F/Care,Childrens Act Section 23 - Placement Fee,22/12/2020,5485996,"3,407.10",Affinity Fostering Services Ltd
Children & Culture,Children's Social Care,Children Looked After,S23 Fam Pl P&V-F/Care,Childrens Act Section 23 - Placement Fee,22/12/2020,5485997,"3,638.40",Affinity Fostering Services Ltd
Children & Culture,Education Services,Other Strategic Functions,Special Education Needs DSG,Third Party Payments - SEN Top Up Funding,22/12/2020,5485998,"4,063.08",UK Behaviour Analysis & Research Group CIC
Children & Culture,Education Services,Early Years,Early Years-Qaulity Assurance Teachers,Comms - Courier,22/12/2020,5486018,379.5,Figurehead Studios
Children & Culture,Education Services,Other Strategic Functions,Schools Library,Comms - Courier,22/12/2020,5486019,"1,635.00",Figurehead Studios
Children & Culture,Education Services,Early Years,John Smith CC,Stationery,22/12/2020,5486027,365,ESPO
Children & Culture,Education Services,Other Strategic Functions,CS Prem Retirement (Non-School,Services - Professional Fees - Financial Services Fees,22/12/2020,5487727,"20,593.96",London Pensions Fund Authority
Children & Culture,Children's Social Care,Children Looked After,S23 Fam Pl P&V-F/Care,Childrens Act Section 23 - Placement Fee,22/12/2020,5487731,"5,284.80",Integrated Service Programme
Children & Culture,Children's Social Care,Children Looked After,S23-Other-Semi-Ind. Unit,Childrens Act Section 23 - Placement Fee,22/12/2020,5487732,"3,523.17",Integrated Service Programme
Children & Culture,Children's Social Care,Support Service and Management Costs,Schools Catering,Kitchen Supplies - Food and Beverages,22/12/2020,5488100,257.2,William White Meats Ltd
Children & Culture,Children's Social Care,Children Looked After,S23 Fam Pl P&V-F/Care,Childrens Act Section 23 - Placement Fee,22/12/2020,5489312,"3,653.66",Select Fostercare Services Ltd
Children & Culture,Children's Social Care,Children Looked After,S23 Fam Pl P&V-F/Care,Childrens Act Section 23 - Placement Fee,22/12/2020,5489313,"3,653.66",Select Fostercare Services Ltd
Children & Culture,Education Services,Other Strategic Functions,Special Education Needs GF,Third Party Payments - Other Agencies,22/12/2020,5489779,720,Art Therapy Agency
Children & Culture,Children's Social Care,Children Looked After,S23 Fam Pl P&V-F/Care,Childrens Act Section 23 - Placement Fee,22/12/2020,5490302,"29,361.34",Calcot Services for Children Ltd
Children & Culture,Children's Social Care,Service Strategy,CSC Childrens Resources M & A,Education & Training - Non Staff Tuition Fees,22/12/2020,5491859,600,Curve Solutions
Children & Culture,Education Services,Other Strategic Functions,Special Education Needs DSG,Third Party Payments - Payments to Schools,22/12/2020,5492339,"9,178.17",Benjamin UK Ltd
Children & Culture,Children's Social Care,Children Looked After,S23-Resi-P&V/OLA-Child Home,Childrens Act Section 23 - Placement Fee,22/12/2020,5492339,"9,178.17",Benjamin UK Ltd
Children & Culture,Education Services,Other Strategic Functions,Special Education Needs DSG,Third Party Payments - Payments to Schools,22/12/2020,5492340,"9,178.17",Benjamin UK Ltd
Children & Culture,Children's Social Care,Children Looked After,S23-Resi-P&V/OLA-Child Home,Childrens Act Section 23 - Placement Fee,22/12/2020,5492340,"9,178.17",Benjamin UK Ltd
Children & Culture,Children's Social Care,Children Looked After,Leaving Care-UASC,Leaving Care Financial Assistance - Supp Accom/Hous Rents,22/12/2020,5492901,940.2,HAMLETTS LTD
Children & Culture,Children's Social Care,Children Looked After,Leaving Care-UASC,Leaving Care Financial Assistance - Supp Accom/Hous Rents,22/12/2020,5492916,995.7,HAMLETTS LTD
Children & Culture,Children's Social Care,Children Looked After,LCS/Allowances-Accom,Leaving Care Financial Assistance - Supp Accom/Hous Rents,22/12/2020,5494117,822.86,Jordan Xavier LTD
Children & Culture,Children's Social Care,Children Looked After,LCS/Allowances-Accom,Leaving Care Financial Assistance - Supported Living,22/12/2020,5494117,257.14,Jordan Xavier LTD
Children & Culture,Education Services,Other Strategic Functions,Alternative Provision,Third Party Payments - Payments to Schools,22/12/2020,5494210,"3,000.00",Woolmore Primary School
Children & Culture,Education Services,Other Strategic Functions,Alternative Provision,Third Party Payments - Payments to Schools,22/12/2020,5494239,"3,000.00",Central Foundation Girls School
Children & Culture,Children's Social Care,Children Looked After,Fostering Recruitment,Services - Professional Fees - Legal Fees/Expenses,22/12/2020,5494631,"3,800.00",Old Square Chambers
Children & Culture,Children's Social Care,Family Support Services,CNN Pool: Children Direct Paym,Social Care - Direct Payments,22/12/2020,5494637,674.6,DH TOWER HAMLETS
Children & Culture,Children's Social Care,Family Support Services,CNN Pool: Children Direct Paym,Social Care - Direct Payments,22/12/2020,5494644,898.42,DH TOWER HAMLETS
Children & Culture,Children's Social Care,Family Support Services,CNN Pool: Children Direct Paym,Social Care - Direct Payments,22/12/2020,5494648,674.6,DH TOWER HAMLETS
Children & Culture,Children's Social Care,Family Support Services,CNN Pool: Children Direct Paym,Social Care - Direct Payments,22/12/2020,5494649,899.42,DH TOWER HAMLETS
Children & Culture,Children's Social Care,Family Support Services,CNN Pool: Children Direct Paym,Social Care - Direct Payments,22/12/2020,5494655,674.6,DH TOWER HAMLETS
Children & Culture,Children's Social Care,Family Support Services,CNN Pool: Children Direct Paym,Social Care - Direct Payments,22/12/2020,5494656,674.6,DH TOWER HAMLETS
Children & Culture,Children's Social Care,Family Support Services,CNN Pool: Children Direct Paym,Social Care - Direct Payments,22/12/2020,5494671,899.46,DH TOWER HAMLETS
Children & Culture,Children's Social Care,Family Support Services,CNN Pool: Children Direct Paym,Social Care - Direct Payments,22/12/2020,5494674,548.4,DH TOWER HAMLETS
Children & Culture,Children's Social Care,Family Support Services,CNN Pool: Children Direct Paym,Social Care - Direct Payments,22/12/2020,5494677,674.6,DH TOWER HAMLETS
Children & Culture,Children's Social Care,Family Support Services,CNN Pool: Children Direct Paym,Social Care - Direct Payments,22/12/2020,5494681,674.6,DH TOWER HAMLETS
Children & Culture,Children's Social Care,Family Support Services,CNN Pool: Children Direct Paym,Social Care - Direct Payments,22/12/2020,5494682,674.6,DH TOWER HAMLETS
Children & Culture,Children's Social Care,Family Support Services,CNN Pool: Children Direct Paym,Social Care - Direct Payments,22/12/2020,5494683,518.14,DH TOWER HAMLETS
Children & Culture,Children's Social Care,Family Support Services,CNN Pool: Children Direct Paym,Social Care - Direct Payments,22/12/2020,5494684,674.6,DH TOWER HAMLETS
Children & Culture,Children's Social Care,Family Support Services,CNN Pool: Children Direct Paym,Social Care - Direct Payments,22/12/2020,5494686,674.6,DH TOWER HAMLETS
Children & Culture,Children's Social Care,Family Support Services,CNN Pool: Children Direct Paym,Social Care - Direct Payments,22/12/2020,5494688,674.6,DH TOWER HAMLETS
Children & Culture,Children's Social Care,Family Support Services,CNN Pool: Children Direct Paym,Social Care - Direct Payments,22/12/2020,5494689,674.6,DH TOWER HAMLETS
Children & Culture,Children's Social Care,Family Support Services,CNN Pool: Children Direct Paym,Social Care - Direct Payments,22/12/2020,5494690,674.6,DH TOWER HAMLETS
Children & Culture,Children's Social Care,Family Support Services,CNN Pool: Children Direct Paym,Social Care - Direct Payments,22/12/2020,5494692,674.6,DH TOWER HAMLETS
Children & Culture,Children's Social Care,Family Support Services,CNN Pool: Children Direct Paym,Social Care - Direct Payments,22/12/2020,5494693,674.6,DH TOWER HAMLETS
Children & Culture,Children's Social Care,Family Support Services,CNN Pool: Children Direct Paym,Social Care - Direct Payments,22/12/2020,5494694,863.62,DH TOWER HAMLETS
Children & Culture,Children's Social Care,Family Support Services,CNN Pool: Children Direct Paym,Social Care - Direct Payments,22/12/2020,5494695,674.6,DH TOWER HAMLETS
Children & Culture,Children's Social Care,Family Support Services,CNN Pool: Children Direct Paym,Social Care - Direct Payments,22/12/2020,5494697,674.6,DH TOWER HAMLETS
Children & Culture,Children's Social Care,Family Support Services,CNN Pool: Children Direct Paym,Social Care - Direct Payments,22/12/2020,5494701,672.75,D D PAYROLL SERVICES
Children & Culture,Children's Social Care,Family Support Services,CNN Pool: Children Direct Paym,Social Care - Direct Payments,22/12/2020,5494702,899.42,D D PAYROLL SERVICES
Children & Culture,Children's Social Care,Family Support Services,CNN Pool: Children Direct Paym,Social Care - Direct Payments,22/12/2020,5494704,674.6,DH TOWER HAMLETS
Children & Culture,Children's Social Care,Family Support Services,CNN Pool: Children Direct Paym,Social Care - Direct Payments,22/12/2020,5494707,674.6,DH TOWER HAMLETS
Children & Culture,Children's Social Care,Family Support Services,CNN Pool: Children Direct Paym,Social Care - Direct Payments,22/12/2020,5494708,674.6,DH TOWER HAMLETS
Children & Culture,Children's Social Care,Family Support Services,CNN Pool: Children Direct Paym,Social Care - Direct Payments,22/12/2020,5494709,674.6,DH TOWER HAMLETS
Children & Culture,Children's Social Care,Family Support Services,CNN Pool: Children Direct Paym,Social Care - Direct Payments,22/12/2020,5494710,674.6,DH TOWER HAMLETS
Children & Culture,Children's Social Care,Family Support Services,CNN Pool: Children Direct Paym,Social Care - Direct Payments,22/12/2020,5494711,674.6,DH TOWER HAMLETS
Children & Culture,Children's Social Care,Family Support Services,CNN Pool: Children Direct Paym,Social Care - Direct Payments,22/12/2020,5494712,674.6,DH TOWER HAMLETS
Children & Culture,Children's Social Care,Family Support Services,CNN Pool: Children Direct Paym,Social Care - Direct Payments,22/12/2020,5494713,674.6,DH TOWER HAMLETS
Children & Culture,Children's Social Care,Family Support Services,CNN Pool: Children Direct Paym,Social Care - Direct Payments,22/12/2020,5494714,674.6,DH TOWER HAMLETS
Children & Culture,Children's Social Care,Family Support Services,CNN Pool: Children Direct Paym,Social Care - Direct Payments,22/12/2020,5494715,674.6,DH TOWER HAMLETS
Children & Culture,Children's Social Care,Family Support Services,CNN Pool: Children Direct Paym,Social Care - Direct Payments,22/12/2020,5494718,674.6,DH TOWER HAMLETS
Children & Culture,Children's Social Care,Family Support Services,CNN Pool: Children Direct Paym,Social Care - Direct Payments,22/12/2020,5494719,732,DH TOWER HAMLETS
Children & Culture,Children's Social Care,Family Support Services,CNN Pool: Children Direct Paym,Social Care - Direct Payments,22/12/2020,5494720,674.6,DH TOWER HAMLETS
Children & Culture,Children's Social Care,Family Support Services,CNN Pool: Children Direct Paym,Social Care - Direct Payments,22/12/2020,5494722,674.6,DH TOWER HAMLETS
Children & Culture,Children's Social Care,Family Support Services,CNN Pool: Children Direct Paym,Social Care - Direct Payments,22/12/2020,5494723,674.6,DH TOWER HAMLETS
Children & Culture,Children's Social Care,Family Support Services,CNN Pool: Children Direct Paym,Social Care - Direct Payments,22/12/2020,5494724,674.6,DH TOWER HAMLETS
Children & Culture,Children's Social Care,Family Support Services,CNN Pool: Children Direct Paym,Social Care - Direct Payments,22/12/2020,5494725,674.6,DH TOWER HAMLETS
Children & Culture,Children's Social Care,Family Support Services,CNN Pool: Children Direct Paym,Social Care - Direct Payments,22/12/2020,5494726,674.6,DH TOWER HAMLETS
Children & Culture,Children's Social Care,Family Support Services,CNN Pool: Children Direct Paym,Social Care - Direct Payments,22/12/2020,5494728,674.6,DH TOWER HAMLETS
Children & Culture,Children's Social Care,Family Support Services,CNN Pool: Children Direct Paym,Social Care - Direct Payments,22/12/2020,5494729,674.6,DH TOWER HAMLETS
Children & Culture,Children's Social Care,Family Support Services,CNN Pool: Children Direct Paym,Social Care - Direct Payments,22/12/2020,5494730,674.6,DH TOWER HAMLETS
Children & Culture,Children's Social Care,Family Support Services,CNN Pool: Children Direct Paym,Social Care - Direct Payments,22/12/2020,5494731,674.6,DH TOWER HAMLETS
Children & Culture,Children's Social Care,Family Support Services,CNN Pool: Children Direct Paym,Social Care - Direct Payments,22/12/2020,5494733,674.6,DH TOWER HAMLETS
Children & Culture,Children's Social Care,Family Support Services,CNN Pool: Children Direct Paym,Social Care - Direct Payments,22/12/2020,5494735,674.6,DH TOWER HAMLETS
Children & Culture,Children's Social Care,Family Support Services,CNN Pool: Children Direct Paym,Social Care - Direct Payments,22/12/2020,5494736,674.6,DH TOWER HAMLETS
Children & Culture,Children's Social Care,Family Support Services,CNN Pool: Children Direct Paym,Social Care - Direct Payments,22/12/2020,5494737,674.6,DH TOWER HAMLETS
Children & Culture,Children's Social Care,Family Support Services,CNN Pool: Children Direct Paym,Social Care - Direct Payments,22/12/2020,5494740,674.6,DH TOWER HAMLETS
Children & Culture,Children's Social Care,Family Support Services,CNN Pool: Children Direct Paym,Social Care - Direct Payments,22/12/2020,5494741,674.6,DH TOWER HAMLETS
Children & Culture,Children's Social Care,Family Support Services,CNN Pool: Children Direct Paym,Social Care - Direct Payments,22/12/2020,5494743,818.6,DH TOWER HAMLETS
Children & Culture,Children's Social Care,Family Support Services,CNN Pool: Children Direct Paym,Social Care - Direct Payments,22/12/2020,5494746,674.6,DH TOWER HAMLETS
Children & Culture,Children's Social Care,Family Support Services,CNN Pool: Children Direct Paym,Social Care - Direct Payments,22/12/2020,5494747,674.6,DH TOWER HAMLETS
Children & Culture,Children's Social Care,Family Support Services,CNN Pool: Joint Family Support,Social Care - Homecare,22/12/2020,5494813,"4,902.50",QALB Centre Short Break Services
Children & Culture,Education Services,Other Strategic Functions,High Needs Other Boroughs,Third Party Payments - Day Care,22/12/2020,5494840,"3,015.00",Family Futures CIC
Children & Culture,Children's Social Care,Family Support Services,CNN Pool: Joint Family Support,Social Care - Homecare,22/12/2020,5494848,483,Carebridge Staffing Ltd
Children & Culture,Children's Social Care,Family Support Services,CNN Pool: Joint Family Support,Social Care - Homecare,22/12/2020,5494849,396.75,Carebridge Staffing Ltd
Children & Culture,Children's Social Care,Family Support Services,CNN Pool: Joint Family Support,Social Care - Homecare,22/12/2020,5494850,396.75,Carebridge Staffing Ltd
Children & Culture,Children's Social Care,Family Support Services,CNN Pool: Joint Family Support,Social Care - Homecare,22/12/2020,5494851,396.75,Carebridge Staffing Ltd
Children & Culture,Children's Social Care,Family Support Services,CNN Pool: Joint Family Support,Social Care - Homecare,22/12/2020,5494852,396.75,Carebridge Staffing Ltd
Children & Culture,Children's Social Care,Family Support Services,CNN Pool: Joint Family Support,Social Care - Homecare,22/12/2020,5494853,396.75,Carebridge Staffing Ltd
Children & Culture,Children's Social Care,Family Support Services,CNN Pool: Joint Family Support,Social Care - Homecare,22/12/2020,5494854,396.75,Carebridge Staffing Ltd
Children & Culture,Children's Social Care,Family Support Services,CNN Pool: Joint Family Support,Social Care - Homecare,22/12/2020,5494855,396.75,Carebridge Staffing Ltd
Children & Culture,Children's Social Care,Family Support Services,CNN Pool: Joint Family Support,Social Care - Homecare,22/12/2020,5494856,483,Carebridge Staffing Ltd
Children & Culture,Children's Social Care,Family Support Services,CNN Pool: Joint Family Support,Social Care - Homecare,22/12/2020,5494857,396.75,Carebridge Staffing Ltd
Children & Culture,Children's Social Care,Family Support Services,CNN Pool: Joint Family Support,Social Care - Homecare,22/12/2020,5494858,396.75,Carebridge Staffing Ltd
Children & Culture,Children's Social Care,Service Strategy,"FSP Sect 17 - Team 7		",Services - Professional Fees - Translation Fees,24/12/2020,5479197,"1,270.90",Oncall Interpreters LTD
Children & Culture,Education Services,Other Strategic Functions,High Needs Academies & Free Schs,Third Party Payments - SEN Top Up Funding,24/12/2020,5485973,"15,110.81",Waltham Forest College
Children & Culture,Children's Social Care,Support Service and Management Costs,Swanlea,Kitchen Supplies - Food and Beverages,24/12/2020,5486041,"1,036.82",Thomas Ridley & Son Ltd
Children & Culture,Children's Social Care,Children Looked After,S23 Fam Pl P&V-F/Care,Childrens Act Section 23 - Placement Fee,24/12/2020,5487426,"3,900.00",Family Fostering
Children & Culture,Education Services,Other Strategic Functions,High Needs Academies & Free Schs,Independent Schools - SEN Top Up Funding,24/12/2020,5487432,"21,000.00",Transitional Care LTD
Children & Culture,Education Services,Other Strategic Functions,High Needs Academies & Free Schs,Independent Schools - SEN Top Up Funding,24/12/2020,5487432,"21,000.00",Transitional Care LTD
Children & Culture,Education Services,Other Strategic Functions,High Needs Academies & Free Schs,Independent Schools - SEN Top Up Funding,24/12/2020,5487432,"19,166.67",Transitional Care LTD
Children & Culture,Education Services,Other Strategic Functions,High Needs Academies & Free Schs,Independent Schools - SEN Top Up Funding,24/12/2020,5487432,"21,000.00",Transitional Care LTD
Children & Culture,Education Services,Other Strategic Functions,High Needs Academies & Free Schs,Independent Schools - SEN Top Up Funding,24/12/2020,5487432,"21,000.00",Transitional Care LTD
Children & Culture,Education Services,Other Strategic Functions,High Needs Academies & Free Schs,Independent Schools - SEN Top Up Funding,24/12/2020,5487432,"21,000.00",Transitional Care LTD
Children & Culture,Education Services,Other Strategic Functions,High Needs Academies & Free Schs,Independent Schools - SEN Top Up Funding,24/12/2020,5487432,"21,000.00",Transitional Care LTD
Children & Culture,Children's Social Care,Support Service and Management Costs,Schools Catering,Kitchen Supplies - Food and Beverages,24/12/2020,5487504,"1,726.06",Thomas Ridley & Son Ltd
Children & Culture,Children's Social Care,Support Service and Management Costs,Schools Catering,Kitchen Supplies - Food and Beverages,24/12/2020,5487505,289.82,Thomas Ridley & Son Ltd
Children & Culture,Children's Social Care,Support Service and Management Costs,Schools Catering,Kitchen Supplies - Food and Beverages,24/12/2020,5487506,422.78,Thomas Ridley & Son Ltd
Children & Culture,Children's Social Care,Support Service and Management Costs,Schools Catering,Kitchen Supplies - Food and Beverages,24/12/2020,5487508,"1,167.13",Thomas Ridley & Son Ltd
Children & Culture,Cultural and Related Services,Open Spaces,Mile End Park,Repairs and Maintenance - Responsive - General,24/12/2020,5487734,340,JC Coster (Metalworks) Ltd
Children & Culture,Cultural and Related Services,Open Spaces,Parks & Open Spaces Man&Admin,Repairs and Maintenance - Responsive - Buildings,24/12/2020,5487783,"1,700.00",J&L Coster (Drainage) Ltd
Children & Culture,Cultural and Related Services,Open Spaces,Mile End Park,Repairs and Maintenance - Responsive - Drainage & Sewers,24/12/2020,5487784,330,J&L Coster (Drainage) Ltd
Children & Culture,No Service Specified,No Division Specified,Capital-Minor Works (SC),Other External Fees - Consultants Fees,24/12/2020,5488126,"1,120.00",Pellings LLP
Children & Culture,Children's Social Care,Support Service and Management Costs,Sch. Meals A/c - Bow School,Kitchen Supplies - Food and Beverages,24/12/2020,5488162,"2,225.65",Tiffin Sandwiches
Children & Culture,Children's Social Care,Support Service and Management Costs,Sch. Meals A/c - C.F.S. Upper (Harley Grove),Kitchen Supplies - Food and Beverages,24/12/2020,5488163,759,Tiffin Sandwiches
Children & Culture,Children's Social Care,Support Service and Management Costs,Sch. Meals A/c - Morpeth,Kitchen Supplies - Food and Beverages,24/12/2020,5488164,"1,402.80",Tiffin Sandwiches
Children & Culture,Children's Social Care,Support Service and Management Costs,Sch. Meals A/c - St. Paul's Way Comm. Trust,Kitchen Supplies - Food and Beverages,24/12/2020,5488165,"1,896.65",Tiffin Sandwiches
Children & Culture,Children's Social Care,Support Service and Management Costs,Sch. Meals A/c - Stepney Green,Kitchen Supplies - Food and Beverages,24/12/2020,5488166,289,Tiffin Sandwiches
Children & Culture,Children's Social Care,Children Looked After,S23 Fam Pl P&V-F/Care,Childrens Act Section 23 - Placement Fee,24/12/2020,5488168,"3,100.00",Aspirations Fostering
Children & Culture,Education Services,Secondary Schools,PFI Hldg Account-Grouped Schoo,Payments to Private Contractors - Other Contractors,24/12/2020,5488186,"1,319,227.82",Tower Hamlets Schools LTD
Children & Culture,Education Services,Other Strategic Functions,Music Trading Account,Educational/Training Supplies - Arts & Crafts,24/12/2020,5488197,259,LMS Music Supplies
Children & Culture,Education Services,Other Strategic Functions,Music Trading Account,Educational/Training Supplies - Arts & Crafts,24/12/2020,5488198,278.5,LMS Music Supplies
Children & Culture,Education Services,Other Strategic Functions,Music Trading Account,Educational/Training Supplies - Arts & Crafts,24/12/2020,5488199,519.6,LMS Music Supplies
Children & Culture,Education Services,Other Strategic Functions,Music Trading Account,Educational/Training Supplies - Arts & Crafts,24/12/2020,5488200,"1,248.00",LMS Music Supplies
Children & Culture,Children's Social Care,Support Service and Management Costs,Schools Catering,Kitchen Supplies - Food and Beverages,24/12/2020,5488226,429.28,Thomas Ridley & Son Ltd
Children & Culture,Children's Social Care,Support Service and Management Costs,Schools Catering,Kitchen Supplies - Food and Beverages,24/12/2020,5488288,376.5,Prescott-Thomas LTD.
Children & Culture,Children's Social Care,Support Service and Management Costs,Schools Catering,Kitchen Supplies - Food and Beverages,24/12/2020,5488305,260.81,Prescott-Thomas LTD.
Children & Culture,Children's Social Care,Support Service and Management Costs,Schools Catering,Kitchen Supplies - Food and Beverages,24/12/2020,5488373,304.92,Prescott-Thomas LTD.
Children & Culture,Children's Social Care,Support Service and Management Costs,Sch. Meals A/c - Central Production Unit,Kitchen Supplies - Food and Beverages,24/12/2020,5489240,"1,620.02",William White Meats Ltd
Children & Culture,Children's Social Care,Support Service and Management Costs,Schools Catering,Kitchen Supplies - Food and Beverages,24/12/2020,5489242,348.02,William White Meats Ltd
Children & Culture,Children's Social Care,Support Service and Management Costs,Schools Catering,Kitchen Supplies - Food and Beverages,24/12/2020,5489247,430.11,William White Meats Ltd
Children & Culture,Children's Social Care,Support Service and Management Costs,Schools Catering,Kitchen Supplies - Food and Beverages,24/12/2020,5489250,257.06,William White Meats Ltd
Children & Culture,Children's Social Care,Support Service and Management Costs,Schools Catering,Kitchen Supplies - Food and Beverages,24/12/2020,5489254,271.33,William White Meats Ltd
Children & Culture,Children's Social Care,Support Service and Management Costs,Swanlea,Kitchen Supplies - Food and Beverages,24/12/2020,5489256,726.18,William White Meats Ltd
Children & Culture,Children's Social Care,Children Looked After,Virtual School PPG,Third Party Payments - Payments to Schools,24/12/2020,5489270,"2,100.00",OLD FORD SCHOOL
Children & Culture,Highways and Transport Services,Management and Support Services,Contract Services M & A,Kitchen Supplies - Catering Equipment,24/12/2020,5489306,870,W V Howe LTD
Children & Culture,Children's Social Care,Children Looked After,S23 Family Placements P&V,Social Care - Day Care,24/12/2020,5489315,"4,340.00",COMPASS FOSTERING LONDON LIMITED
Children & Culture,Children's Social Care,Children Looked After,S23 Fam Pl P&V-F/Care,Childrens Act Section 23 - Placement Fee,24/12/2020,5489316,"5,143.52",COMPASS FOSTERING LONDON LIMITED
Children & Culture,Children's Social Care,Children Looked After,Staying Put,Childrens Act Section 23 - Placement Fee,24/12/2020,5489317,"3,489.98",COMPASS FOSTERING LONDON LIMITED
Children & Culture,Children's Social Care,Children Looked After,S23 Fam Pl P&V-F/Care,Childrens Act Section 23 - Placement Fee,24/12/2020,5489318,782.16,COMPASS FOSTERING LONDON LIMITED
Children & Culture,Children's Social Care,Children Looked After,S23 Fam Pl P&V-F/Care,Childrens Act Section 23 - Placement Fee,24/12/2020,5489319,"6,061.74",COMPASS FOSTERING LONDON LIMITED
Children & Culture,Children's Social Care,Children Looked After,S23 Fam Pl P&V-F/Care,Childrens Act Section 23 - Placement Fee,24/12/2020,5489337,"3,356.99",Futures for Children Ltd
Children & Culture,Children's Social Care,Children Looked After,S23 Fam Pl P&V-F/Care,Childrens Act Section 23 - Placement Fee,24/12/2020,5489338,"3,323.51",Futures for Children Ltd
Children & Culture,Children's Social Care,Children Looked After,S23 Fam Pl P&V-F/Care,Childrens Act Section 23 - Placement Fee,24/12/2020,5489339,"3,100.00",Futures for Children Ltd
Children & Culture,Education Services,Early Years,Children Centre Central Team,Medical Requisites,24/12/2020,5489342,378.4,Supply Chain Coordination Limited (NHS Supply Chain)
Children & Culture,Education Services,Other Strategic Functions,Special Education Needs DSG,Third Party Payments - SEN Top Up Funding,24/12/2020,5489347,"10,571.38",Education Links
Children & Culture,Children's Social Care,Children Looked After,S23-Other-Prison,Childrens Act Section 23 - Placement Fee,24/12/2020,5489356,"9,951.00",National Offender Management Service
Children & Culture,Children's Social Care,Children Looked After,S23-Other-Prison,Childrens Act Section 23 - Placement Fee,24/12/2020,5489357,"3,531.00",National Offender Management Service
Children & Culture,Children's Social Care,Children Looked After,S23-Other-Semi-Ind. Unit,Childrens Act Section 23 - Placement Fee,24/12/2020,5489358,"2,718.00",National Offender Management Service
Children & Culture,Children's Social Care,Children Looked After,S23-Resi-P&V/OLA-Sec Acc-Rem,Childrens Act Section 23 - Placement Fee,24/12/2020,5489359,"1,284.00",National Offender Management Service
Children & Culture,Education Services,Other Strategic Functions,High Needs Other Boroughs,Third Party Payments - SEN Top Up Funding,24/12/2020,5489382,"6,388.04",London Design & Engineering UTC
Children & Culture,Children's Social Care,Children Looked After,S23 Fam Pl P&V-F/Care,Childrens Act Section 23 - Placement Fee,24/12/2020,5489410,"7,285.80",Caring Hearts Fostering
Children & Culture,Children's Social Care,Children Looked After,Virtual School PPG,Third Party Payments - Payments to Schools,24/12/2020,5489411,700,Hamilton Hope CE Primary School
Children & Culture,Children's Social Care,Children Looked After,S23-Other-Semi-Ind. Unit,Childrens Act Section 23 - Placement Fee,24/12/2020,5489416,"4,319.43",Epic care home Ltd
Children & Culture,Children's Social Care,Children Looked After,S23-Other-Mother & Baby Unit,Childrens Act Section 23 - Placement Fee,24/12/2020,5489418,"14,361.30",Care 2 Share LTD
Children & Culture,Children's Social Care,Children Looked After,S23 Fam Pl P&V-F/Care,Childrens Act Section 23 - Placement Fee,24/12/2020,5489420,"3,555.70",Foster Care Associates Limited
Children & Culture,Children's Social Care,Children Looked After,S23 Fam Pl P&V-F/Care,Childrens Act Section 23 - Placement Fee,24/12/2020,5489421,"4,588.66",CAPSTONE FOSTER CARE (SE) LTD
